Effective Dates,Department,Supplier - Name,Payment Date,Amount**,Purpose of Spend,Merchant Category,Card Transactions
18/05/2023-19/06/2023,Adults & Communities,Aldi,22/05/2023,39.37,Materials,Grocery Stores and Supermarkets,GPC
18/05/2023-19/06/2023,Adults & Communities,Aldi 4 772,15/06/2023,10.42,Materials,Grocery Stores and Supermarkets,GPC
18/05/2023-19/06/2023,Adults & Communities,Amazon.Co.Uk*3k7ot9u45,30/05/2023,33.75,Stationery,Other Direct Marketing-Other Direct Marketers,GPC
18/05/2023-19/06/2023,Adults & Communities,Amazon.Co.Uk*5h14w62k5,05/06/2023,8.64,Stationery,Other Direct Marketing-Other Direct Marketers,GPC
18/05/2023-19/06/2023,Adults & Communities,Amazon.Co.Uk*843yg72y5,30/05/2023,33.75,Stationery,Other Direct Marketing-Other Direct Marketers,GPC
18/05/2023-19/06/2023,Adults & Communities,Amazon.Co.Uk*fx45w5wh5,30/05/2023,33.75,Stationery,Other Direct Marketing-Other Direct Marketers,GPC
18/05/2023-19/06/2023,Adults & Communities,Amazon.Co.Uk*m60ni4t05,08/06/2023,23.71,General Equipment - Purchase &,Other Direct Marketing-Other Direct Marketers,GPC
18/05/2023-19/06/2023,Adults & Communities,Amazon.Co.Uk*pp6el0945,30/05/2023,33.74,Stationery,Other Direct Marketing-Other Direct Marketers,GPC
18/05/2023-19/06/2023,Adults & Communities,Amz*amazon.Co.Uk,02/06/2023,-174.17,IT Equipment Hardware,Miscellaneous and Specialty Retail Stores,GPC
18/05/2023-19/06/2023,Adults & Communities,Amznbusiness*0f7pc93g5 Am,12/06/2023,5.23,Consultants & Specialists-Inte,Miscellaneous and Specialty Retail Stores,GPC
18/05/2023-19/06/2023,Adults & Communities,Amznbusiness*0z86o8pp5 Am,06/06/2023,3.24,Stationery,Miscellaneous and Specialty Retail Stores,GPC
18/05/2023-19/06/2023,Adults & Communities,Amznbusiness*1i99z5dq5,15/06/2023,11.17,Materials,Miscellaneous and Specialty Retail Stores,GPC
18/05/2023-19/06/2023,Adults & Communities,Amznbusiness*2a4ky9z15 Am,28/05/2023,162.94,IT Equipment Hardware,Miscellaneous and Specialty Retail Stores,GPC
18/05/2023-19/06/2023,Adults & Communities,Amznbusiness*2k46s92g5 Am,19/05/2023,7.77,Stationery,Miscellaneous and Specialty Retail Stores,GPC
18/05/2023-19/06/2023,Adults & Communities,Amznbusiness*348qm2d15 Am,21/05/2023,23.69,General Equipment - Purchase &,Miscellaneous and Specialty Retail Stores,GPC
18/05/2023-19/06/2023,Adults & Communities,Amznbusiness*4008m3ww5,18/05/2023,18.62,Stationery,Miscellaneous and Specialty Retail Stores,GPC
18/05/2023-19/06/2023,Adults & Communities,Amznbusiness*6h94142d5 Am,17/05/2023,13.98,Materials,Miscellaneous and Specialty Retail Stores,GPC
18/05/2023-19/06/2023,Adults & Communities,Amznbusiness*6j8538hl5,15/06/2023,46.66,IT Equipment Hardware,Miscellaneous and Specialty Retail Stores,GPC
18/05/2023-19/06/2023,Adults & Communities,Amznbusiness*7z2004tc5 Am,18/05/2023,33.58,Materials,Miscellaneous and Specialty Retail Stores,GPC
18/05/2023-19/06/2023,Adults & Communities,Amznbusiness*8p3oa7jk5 Am,23/05/2023,11.2,General Equipment - Purchase &,Miscellaneous and Specialty Retail Stores,GPC
18/05/2023-19/06/2023,Adults & Communities,Amznbusiness*8s8ov96o5,18/05/2023,18.62,Stationery,Miscellaneous and Specialty Retail Stores,GPC
18/05/2023-19/06/2023,Adults & Communities,Amznbusiness*8z97t4ue5,18/05/2023,18.62,Stationery,Miscellaneous and Specialty Retail Stores,GPC
18/05/2023-19/06/2023,Adults & Communities,Amznbusiness*bc9or8n45 Am,23/05/2023,10.93,General Equipment - Purchase &,Miscellaneous and Specialty Retail Stores,GPC
18/05/2023-19/06/2023,Adults & Communities,Amznbusiness*d11qk58q5 Am,05/06/2023,215.83,IT Equipment Hardware,Miscellaneous and Specialty Retail Stores,GPC
18/05/2023-19/06/2023,Adults & Communities,Amznbusiness*dz1vl7ci5 Am,21/05/2023,23.69,General Equipment - Purchase &,Miscellaneous and Specialty Retail Stores,GPC
18/05/2023-19/06/2023,Adults & Communities,Amznbusiness*e30fm5uj5,26/05/2023,8.32,Materials,Miscellaneous and Specialty Retail Stores,GPC
18/05/2023-19/06/2023,Adults & Communities,Amznbusiness*e55zh6mk5,14/06/2023,44.93,General Equipment - Purchase &,Miscellaneous and Specialty Retail Stores,GPC
18/05/2023-19/06/2023,Adults & Communities,Amznbusiness*fz4j508l5 Am,24/05/2023,4.21,General Equipment - Purchase &,Miscellaneous and Specialty Retail Stores,GPC
18/05/2023-19/06/2023,Adults & Communities,Amznbusiness*ib5fj23v5 Am,28/05/2023,108.32,Other Expenditure,Miscellaneous and Specialty Retail Stores,GPC
18/05/2023-19/06/2023,Adults & Communities,Amznbusiness*iz4x75mo5,18/05/2023,18.62,Stationery,Miscellaneous and Specialty Retail Stores,GPC
18/05/2023-19/06/2023,Adults & Communities,Amznbusiness*jc2qy8795 Am,21/05/2023,33.33,General Equipment - Purchase &,Miscellaneous and Specialty Retail Stores,GPC
18/05/2023-19/06/2023,Adults & Communities,Amznbusiness*lw1ui5p75 Am,23/05/2023,6.66,General Equipment - Purchase &,Miscellaneous and Specialty Retail Stores,GPC
18/05/2023-19/06/2023,Adults & Communities,Amznbusiness*mu8l00qv5 Am,06/06/2023,5.68,Stationery,Miscellaneous and Specialty Retail Stores,GPC
18/05/2023-19/06/2023,Adults & Communities,Amznbusiness*n551m0pt5 Am,21/05/2023,66.65,General Equipment - Purchase &,Miscellaneous and Specialty Retail Stores,GPC
18/05/2023-19/06/2023,Adults & Communities,Amznbusiness*oa8j193b5,22/05/2023,9.39,Materials,Miscellaneous and Specialty Retail Stores,GPC
18/05/2023-19/06/2023,Adults & Communities,Amznbusiness*os6y83pi5 Am,23/05/2023,6.25,General Equipment - Purchase &,Miscellaneous and Specialty Retail Stores,GPC
18/05/2023-19/06/2023,Adults & Communities,Amznbusiness*p22mk17s5 Am,15/06/2023,43,Stationery,Miscellaneous and Specialty Retail Stores,GPC
18/05/2023-19/06/2023,Adults & Communities,Amznbusiness*rn3yx80l5,18/05/2023,59.48,Materials,Miscellaneous and Specialty Retail Stores,GPC
18/05/2023-19/06/2023,Adults & Communities,Amznbusiness*se8pl1ib5,07/06/2023,224.17,General Equipment - Purchase &,Miscellaneous and Specialty Retail Stores,GPC
18/05/2023-19/06/2023,Adults & Communities,Amznbusiness*sn9r67j15 Am,21/05/2023,23.69,General Equipment - Purchase &,Miscellaneous and Specialty Retail Stores,GPC
18/05/2023-19/06/2023,Adults & Communities,Amznbusiness*tq4879by5 Am,06/06/2023,12.32,Consultants & Specialists-Inte,Miscellaneous and Specialty Retail Stores,GPC
18/05/2023-19/06/2023,Adults & Communities,Amznbusiness*xh38b7b85,24/05/2023,4.99,General Equipment - Purchase &,Miscellaneous and Specialty Retail Stores,GPC
18/05/2023-19/06/2023,Adults & Communities,Amznbusiness*zf9pm53w5,30/05/2023,22.32,Books & Audio Visual,Miscellaneous and Specialty Retail Stores,GPC
18/05/2023-19/06/2023,Adults & Communities,Amznmktplace,22/05/2023,15.39,"Advertising, Publicity & Marke",Miscellaneous and Specialty Retail Stores,GPC
18/05/2023-19/06/2023,Adults & Communities,Amznmktplace,22/05/2023,21.99,"Advertising, Publicity & Marke",Miscellaneous and Specialty Retail Stores,GPC
18/05/2023-19/06/2023,Adults & Communities,Amznmktplace,23/05/2023,54.99,"Advertising, Publicity & Marke",Miscellaneous and Specialty Retail Stores,GPC
18/05/2023-19/06/2023,Adults & Communities,Amznmktplace,23/05/2023,30.99,"Advertising, Publicity & Marke",Miscellaneous and Specialty Retail Stores,GPC
18/05/2023-19/06/2023,Adults & Communities,Amznmktplace,25/05/2023,3.13,Books & Audio Visual,Miscellaneous and Specialty Retail Stores,GPC
18/05/2023-19/06/2023,Adults & Communities,Amznmktplace,09/06/2023,13.3,Books & Audio Visual,Miscellaneous and Specialty Retail Stores,GPC
18/05/2023-19/06/2023,Adults & Communities,Amznmktplace,15/06/2023,16.88,Books & Audio Visual,Miscellaneous and Specialty Retail Stores,GPC
18/05/2023-19/06/2023,Adults & Communities,Amznmktplace,15/06/2023,12.41,Books & Audio Visual,Miscellaneous and Specialty Retail Stores,GPC
18/05/2023-19/06/2023,Adults & Communities,Amznmktplace,15/06/2023,4.16,Books & Audio Visual,Miscellaneous and Specialty Retail Stores,GPC
18/05/2023-19/06/2023,Adults & Communities,Amznmktplace,18/05/2023,48.32,Cleaning Materials,Miscellaneous and Specialty Retail Stores,GPC
18/05/2023-19/06/2023,Adults & Communities,Amznmktplace,18/05/2023,112.4,General Equipment - Purchase &,Miscellaneous and Specialty Retail Stores,GPC
18/05/2023-19/06/2023,Adults & Communities,Amznmktplace,19/05/2023,57.98,General Equipment - Purchase &,Miscellaneous and Specialty Retail Stores,GPC
18/05/2023-19/06/2023,Adults & Communities,Amznmktplace,22/05/2023,11.42,General Equipment - Purchase &,Miscellaneous and Specialty Retail Stores,GPC
18/05/2023-19/06/2023,Adults & Communities,Amznmktplace,06/06/2023,4.99,General Equipment - Purchase &,Miscellaneous and Specialty Retail Stores,GPC
18/05/2023-19/06/2023,Adults & Communities,Amznmktplace,08/06/2023,85.85,General Equipment - Purchase &,Miscellaneous and Specialty Retail Stores,GPC
18/05/2023-19/06/2023,Adults & Communities,Amznmktplace,14/06/2023,89.2,General Equipment - Purchase &,Miscellaneous and Specialty Retail Stores,GPC
18/05/2023-19/06/2023,Adults & Communities,Amznmktplace,12/06/2023,9.16,IT Equipment Hardware,Miscellaneous and Specialty Retail Stores,GPC
18/05/2023-19/06/2023,Adults & Communities,Amznmktplace,12/06/2023,16.99,IT Equipment Hardware,Miscellaneous and Specialty Retail Stores,GPC
18/05/2023-19/06/2023,Adults & Communities,Amznmktplace,17/05/2023,105.98,Materials,Miscellaneous and Specialty Retail Stores,GPC
18/05/2023-19/06/2023,Adults & Communities,Amznmktplace,18/05/2023,14.88,Materials,Miscellaneous and Specialty Retail Stores,GPC
18/05/2023-19/06/2023,Adults & Communities,Amznmktplace,18/05/2023,13.99,Materials,Miscellaneous and Specialty Retail Stores,GPC
18/05/2023-19/06/2023,Adults & Communities,Amznmktplace,18/05/2023,17.26,Materials,Miscellaneous and Specialty Retail Stores,GPC
18/05/2023-19/06/2023,Adults & Communities,Amznmktplace,19/05/2023,30.99,Materials,Miscellaneous and Specialty Retail Stores,GPC
18/05/2023-19/06/2023,Adults & Communities,Amznmktplace,19/05/2023,13.63,Materials,Miscellaneous and Specialty Retail Stores,GPC
18/05/2023-19/06/2023,Adults & Communities,Amznmktplace,20/05/2023,21.66,Materials,Miscellaneous and Specialty Retail Stores,GPC
18/05/2023-19/06/2023,Adults & Communities,Amznmktplace,23/05/2023,2.91,Materials,Miscellaneous and Specialty Retail Stores,GPC
18/05/2023-19/06/2023,Adults & Communities,Amznmktplace,23/05/2023,3.14,Materials,Miscellaneous and Specialty Retail Stores,GPC
18/05/2023-19/06/2023,Adults & Communities,Amznmktplace,24/05/2023,30.57,Materials,Miscellaneous and Specialty Retail Stores,GPC
18/05/2023-19/06/2023,Adults & Communities,Amznmktplace,25/05/2023,25.99,Materials,Miscellaneous and Specialty Retail Stores,GPC
18/05/2023-19/06/2023,Adults & Communities,Amznmktplace,29/05/2023,10.75,Materials,Miscellaneous and Specialty Retail Stores,GPC
18/05/2023-19/06/2023,Adults & Communities,Amznmktplace,31/05/2023,17.48,Materials,Miscellaneous and Specialty Retail Stores,GPC
18/05/2023-19/06/2023,Adults & Communities,Amznmktplace,31/05/2023,66.78,Materials,Miscellaneous and Specialty Retail Stores,GPC
18/05/2023-19/06/2023,Adults & Communities,Amznmktplace,02/06/2023,4.25,Materials,Miscellaneous and Specialty Retail Stores,GPC
18/05/2023-19/06/2023,Adults & Communities,Amznmktplace,05/06/2023,14.99,Materials,Miscellaneous and Specialty Retail Stores,GPC
18/05/2023-19/06/2023,Adults & Communities,Amznmktplace,05/06/2023,159.74,Materials,Miscellaneous and Specialty Retail Stores,GPC
18/05/2023-19/06/2023,Adults & Communities,Amznmktplace,12/06/2023,13.98,Materials,Miscellaneous and Specialty Retail Stores,GPC
18/05/2023-19/06/2023,Adults & Communities,Amznmktplace,12/06/2023,19.18,Materials,Miscellaneous and Specialty Retail Stores,GPC
18/05/2023-19/06/2023,Adults & Communities,Amznmktplace,12/06/2023,41.56,Materials,Miscellaneous and Specialty Retail Stores,GPC
18/05/2023-19/06/2023,Adults & Communities,Amznmktplace,13/06/2023,35.55,Materials,Miscellaneous and Specialty Retail Stores,GPC
18/05/2023-19/06/2023,Adults & Communities,Amznmktplace,14/06/2023,74.73,Materials,Miscellaneous and Specialty Retail Stores,GPC
18/05/2023-19/06/2023,Adults & Communities,Amznmktplace,15/06/2023,6.62,Materials,Miscellaneous and Specialty Retail Stores,GPC
18/05/2023-19/06/2023,Adults & Communities,Amznmktplace,15/06/2023,6.67,Materials,Miscellaneous and Specialty Retail Stores,GPC
18/05/2023-19/06/2023,Adults & Communities,Amznmktplace,15/06/2023,6.67,Materials,Miscellaneous and Specialty Retail Stores,GPC
18/05/2023-19/06/2023,Adults & Communities,Amznmktplace,15/06/2023,6.67,Materials,Miscellaneous and Specialty Retail Stores,GPC
18/05/2023-19/06/2023,Adults & Communities,Amznmktplace,15/06/2023,6.67,Materials,Miscellaneous and Specialty Retail Stores,GPC
18/05/2023-19/06/2023,Adults & Communities,Amznmktplace,23/05/2023,14.33,Other Expenditure,Miscellaneous and Specialty Retail Stores,GPC
18/05/2023-19/06/2023,Adults & Communities,Amznmktplace,24/05/2023,10.79,Other Expenditure,Miscellaneous and Specialty Retail Stores,GPC
18/05/2023-19/06/2023,Adults & Communities,Amznmktplace,25/05/2023,8.92,Other Expenditure,Miscellaneous and Specialty Retail Stores,GPC
18/05/2023-19/06/2023,Adults & Communities,Amznmktplace,25/05/2023,13.32,Other Expenditure,Miscellaneous and Specialty Retail Stores,GPC
18/05/2023-19/06/2023,Adults & Communities,Amznmktplace,25/05/2023,13.31,Other Expenditure,Miscellaneous and Specialty Retail Stores,GPC
18/05/2023-19/06/2023,Adults & Communities,Amznmktplace,26/05/2023,12.2,Other Expenditure,Miscellaneous and Specialty Retail Stores,GPC
18/05/2023-19/06/2023,Adults & Communities,Amznmktplace,26/05/2023,5.83,Other Expenditure,Miscellaneous and Specialty Retail Stores,GPC
18/05/2023-19/06/2023,Adults & Communities,Amznmktplace,28/05/2023,36.64,Other Expenditure,Miscellaneous and Specialty Retail Stores,GPC
18/05/2023-19/06/2023,Adults & Communities,Amznmktplace,28/05/2023,14.57,Other Expenditure,Miscellaneous and Specialty Retail Stores,GPC
18/05/2023-19/06/2023,Adults & Communities,Amznmktplace,28/05/2023,11,Other Expenditure,Miscellaneous and Specialty Retail Stores,GPC
18/05/2023-19/06/2023,Adults & Communities,Amznmktplace,28/05/2023,102.72,Other Expenditure,Miscellaneous and Specialty Retail Stores,GPC
18/05/2023-19/06/2023,Adults & Communities,Amznmktplace,29/05/2023,66.97,Other Expenditure,Miscellaneous and Specialty Retail Stores,GPC
18/05/2023-19/06/2023,Adults & Communities,Amznmktplace,29/05/2023,79.84,Other Expenditure,Miscellaneous and Specialty Retail Stores,GPC
18/05/2023-19/06/2023,Adults & Communities,Amznmktplace,04/06/2023,5.49,Other Expenditure,Miscellaneous and Specialty Retail Stores,GPC
18/05/2023-19/06/2023,Adults & Communities,Amznmktplace,05/06/2023,11.61,Other Expenditure,Miscellaneous and Specialty Retail Stores,GPC
18/05/2023-19/06/2023,Adults & Communities,Amznmktplace,05/06/2023,10.82,Other Expenditure,Miscellaneous and Specialty Retail Stores,GPC
18/05/2023-19/06/2023,Adults & Communities,Amznmktplace,05/06/2023,24.98,Other Expenditure,Miscellaneous and Specialty Retail Stores,GPC
18/05/2023-19/06/2023,Adults & Communities,Amznmktplace,06/06/2023,46.65,Other Expenditure,Miscellaneous and Specialty Retail Stores,GPC
18/05/2023-19/06/2023,Adults & Communities,Amznmktplace,12/06/2023,21.42,Other Expenditure,Miscellaneous and Specialty Retail Stores,GPC
18/05/2023-19/06/2023,Adults & Communities,Amznmktplace,12/06/2023,7.5,Other Expenditure,Miscellaneous and Specialty Retail Stores,GPC
18/05/2023-19/06/2023,Adults & Communities,Amznmktplace,13/06/2023,23.32,Other Expenditure,Miscellaneous and Specialty Retail Stores,GPC
18/05/2023-19/06/2023,Adults & Communities,Amznmktplace,06/06/2023,23.99,Other Services ,Miscellaneous and Specialty Retail Stores,GPC
18/05/2023-19/06/2023,Adults & Communities,Amznmktplace,20/05/2023,75.97,Stationery,Miscellaneous and Specialty Retail Stores,GPC
18/05/2023-19/06/2023,Adults & Communities,Amznmktplace,22/05/2023,2.59,Stationery,Miscellaneous and Specialty Retail Stores,GPC
18/05/2023-19/06/2023,Adults & Communities,Amznmktplace,22/05/2023,13.96,Stationery,Miscellaneous and Specialty Retail Stores,GPC
18/05/2023-19/06/2023,Adults & Communities,Amznmktplace,22/05/2023,36.27,Stationery,Miscellaneous and Specialty Retail Stores,GPC
18/05/2023-19/06/2023,Adults & Communities,Amznmktplace,22/05/2023,15.97,Stationery,Miscellaneous and Specialty Retail Stores,GPC
18/05/2023-19/06/2023,Adults & Communities,Amznmktplace,23/05/2023,8.58,Stationery,Miscellaneous and Specialty Retail Stores,GPC
18/05/2023-19/06/2023,Adults & Communities,Amznmktplace,23/05/2023,11.7,Stationery,Miscellaneous and Specialty Retail Stores,GPC
18/05/2023-19/06/2023,Adults & Communities,Amznmktplace,08/06/2023,31.98,Stationery,Miscellaneous and Specialty Retail Stores,GPC
18/05/2023-19/06/2023,Adults & Communities,Amznmktplace,12/06/2023,39.33,Stationery,Miscellaneous and Specialty Retail Stores,GPC
18/05/2023-19/06/2023,Adults & Communities,Amznmktplace,15/06/2023,21.95,Stationery,Miscellaneous and Specialty Retail Stores,GPC
18/05/2023-19/06/2023,Adults & Communities,Angel Hill Site Ca314,07/06/2023,10.5,Consultants & Specialists-Inte,Caterers,GPC
18/05/2023-19/06/2023,Adults & Communities,Ao Retail Limited,15/06/2023,489,IT Equipment Hardware,Household Appliance Stores,GPC
18/05/2023-19/06/2023,Adults & Communities,Ao Retail Limited,15/06/2023,-7.78,IT Equipment Hardware,Household Appliance Stores,GPC
18/05/2023-19/06/2023,Adults & Communities,Asda Groceries Online,20/05/2023,-0.01,Provisions Purchases,Grocery Stores and Supermarkets,GPC
18/05/2023-19/06/2023,Adults & Communities,Asda Groceries Online,20/05/2023,199.86,Provisions Purchases,Grocery Stores and Supermarkets,GPC
18/05/2023-19/06/2023,Adults & Communities,Asda Groceries Online,29/05/2023,-4,Provisions Purchases,Grocery Stores and Supermarkets,GPC
18/05/2023-19/06/2023,Adults & Communities,Asda Groceries Online,29/05/2023,202.89,Provisions Purchases,Grocery Stores and Supermarkets,GPC
18/05/2023-19/06/2023,Adults & Communities,Asda Groceries Online,10/06/2023,206.03,Provisions Purchases,Grocery Stores and Supermarkets,GPC
18/05/2023-19/06/2023,Adults & Communities,Asda Stores,24/05/2023,112,Materials,Grocery Stores and Supermarkets,GPC
18/05/2023-19/06/2023,Adults & Communities,Asda Stores 4533,18/05/2023,6.82,Other Expenditure,Grocery Stores and Supermarkets,GPC
18/05/2023-19/06/2023,Adults & Communities,Asda Superstore,20/05/2023,13.06,Provisions Purchases,Grocery Stores and Supermarkets,GPC
18/05/2023-19/06/2023,Adults & Communities,Asda Superstore,09/06/2023,36,Provisions Purchases,Grocery Stores and Supermarkets,GPC
18/05/2023-19/06/2023,Adults & Communities,Asda Superstore,17/06/2023,15.58,Provisions Purchases,Grocery Stores and Supermarkets,GPC
18/05/2023-19/06/2023,Adults & Communities,B & Q 1043,26/05/2023,74.3,Materials,Home Supply Warehouse Stores,GPC
18/05/2023-19/06/2023,Adults & Communities,B & Q 1299,14/06/2023,10.8,Grounds Maintenance,Home Supply Warehouse Stores,GPC
18/05/2023-19/06/2023,Adults & Communities,B&m 404 - Coalville,31/05/2023,51.24,General Equipment - Purchase &,Miscellaneous General Merchandise,GPC
18/05/2023-19/06/2023,Adults & Communities,B&q Marketplace,08/06/2023,62.49,Grounds Maintenance,Lumber & Building Materials Stores,GPC
18/05/2023-19/06/2023,Adults & Communities,B&q Marketplace,13/06/2023,-50,Grounds Maintenance,Lumber & Building Materials Stores,GPC
18/05/2023-19/06/2023,Adults & Communities,Bc.Basecamp 2 2997305,23/05/2023,16.17,IT Software Licenses/Subscript,"Organizations, Membership",GPC
18/05/2023-19/06/2023,Adults & Communities,C2e856000247j Ukvi,08/06/2023,5199,Salaries,Government Services,GPC
18/05/2023-19/06/2023,Adults & Communities,C2e856000443e Ukvi,08/06/2023,1199,Salaries,Government Services,GPC
18/05/2023-19/06/2023,Adults & Communities,Central Eng Co Op,26/05/2023,3.1,Materials,Grocery Stores and Supermarkets,GPC
18/05/2023-19/06/2023,Adults & Communities,Central Eng Co Op,27/05/2023,3.1,Materials,Grocery Stores and Supermarkets,GPC
18/05/2023-19/06/2023,Adults & Communities,Central Eng Co Op,31/05/2023,7.2,Materials,Grocery Stores and Supermarkets,GPC
18/05/2023-19/06/2023,Adults & Communities,Central Eng Co Op,02/06/2023,2.75,Materials,Grocery Stores and Supermarkets,GPC
18/05/2023-19/06/2023,Adults & Communities,Central Eng Co Op,02/06/2023,3.7,Materials,Grocery Stores and Supermarkets,GPC
18/05/2023-19/06/2023,Adults & Communities,Central Eng Co Op,02/06/2023,3.9,Materials,Grocery Stores and Supermarkets,GPC
18/05/2023-19/06/2023,Adults & Communities,Central Eng Co Op,07/06/2023,3.85,Materials,Grocery Stores and Supermarkets,GPC
18/05/2023-19/06/2023,Adults & Communities,Central Eng Co Op,09/06/2023,10.05,Materials,Grocery Stores and Supermarkets,GPC
18/05/2023-19/06/2023,Adults & Communities,Central Eng Co Op,14/06/2023,19.05,Materials,Grocery Stores and Supermarkets,GPC
18/05/2023-19/06/2023,Adults & Communities,Central Eng Co Op,15/06/2023,6.92,Materials,Grocery Stores and Supermarkets,GPC
18/05/2023-19/06/2023,Adults & Communities,Central Eng Co Op,16/06/2023,7.5,Materials,Grocery Stores and Supermarkets,GPC
18/05/2023-19/06/2023,Adults & Communities,Central Eng Co Op,16/06/2023,2.25,Materials,Grocery Stores and Supermarkets,GPC
18/05/2023-19/06/2023,Adults & Communities,Central Eng Co Op,16/06/2023,3.88,Materials,Grocery Stores and Supermarkets,GPC
18/05/2023-19/06/2023,Adults & Communities,Central Eng Co Op,18/06/2023,5.1,Materials,Grocery Stores and Supermarkets,GPC
18/05/2023-19/06/2023,Adults & Communities,Central Eng Co Op,18/06/2023,14.75,Materials,Grocery Stores and Supermarkets,GPC
18/05/2023-19/06/2023,Adults & Communities,Charnwood Borough Council,24/05/2023,3.2,Consultants & Specialists-Inte,Automobile Parking Lots and Garages,GPC
18/05/2023-19/06/2023,Adults & Communities,Charnwood Borough Council,24/05/2023,6,Mileage Casual,Automobile Parking Lots and Garages,GPC
18/05/2023-19/06/2023,Adults & Communities,Cilip,15/06/2023,75,Training Expenses ,"Organizations, Charitable and Social Service",GPC
18/05/2023-19/06/2023,Adults & Communities,Communicate-Ed,05/06/2023,155,Training Expenses ,Other Schools and Educational Services,GPC
18/05/2023-19/06/2023,Adults & Communities,Community Action Partners,13/06/2023,81.7,Other Transport Costs,"Organizations, Charitable and Social Service",GPC
18/05/2023-19/06/2023,Adults & Communities,Corby Kilns Ltd,05/06/2023,16.15,Materials,"Artist Supply Stores, Craft Shops",GPC
18/05/2023-19/06/2023,Adults & Communities,Corby Kilns Ltd,05/06/2023,165.38,Materials,"Artist Supply Stores, Craft Shops",GPC
18/05/2023-19/06/2023,Adults & Communities,Costco Wholesale #123,16/06/2023,185.92,Consultants & Specialists,"Shopping Clubs, Services",GPC
18/05/2023-19/06/2023,Adults & Communities,Costco Wholesale #123,09/06/2023,33.6,Provisions Purchases,"Shopping Clubs, Services",GPC
18/05/2023-19/06/2023,Adults & Communities,Costco Wholesale #123,09/06/2023,250,Provisions Purchases,"Shopping Clubs, Services",GPC
18/05/2023-19/06/2023,Adults & Communities,Croft Hotel,15/06/2023,385,Other Services ,"Hotels, Motels, Resorts",GPC
18/05/2023-19/06/2023,Adults & Communities,Croft Hotel,26/05/2023,715,Subsistance & Conference,"Hotels, Motels, Resorts",GPC
18/05/2023-19/06/2023,Adults & Communities,Crosscountrycom,02/06/2023,84.7,Public Transport - Staff Trave,Passenger Railways,GPC
18/05/2023-19/06/2023,Adults & Communities,Domino S Pizza,17/06/2023,24.06,Provisions Purchases,"Eating Places, Restaurants",GPC
18/05/2023-19/06/2023,Adults & Communities,Eb *the Autism Show Bi,15/06/2023,20.21,Client / Volunteers Reimbursem,Other Business Services,GPC
18/05/2023-19/06/2023,Adults & Communities,Eb *the Autism Show Bi,18/05/2023,139,Subsistance & Conference,Other Business Services,GPC
18/05/2023-19/06/2023,Adults & Communities,Eb *the Autism Show Bi,25/05/2023,27.8,Subsistance & Conference,Other Business Services,GPC
18/05/2023-19/06/2023,Adults & Communities,Ebay O*08-10144-33724,06/06/2023,8.15,Books & Audio Visual,Department Stores,GPC
18/05/2023-19/06/2023,Adults & Communities,Ebay O*15-10140-98721,06/06/2023,8.8,Books & Audio Visual,Department Stores,GPC
18/05/2023-19/06/2023,Adults & Communities,Edge Training Ltd,16/06/2023,180,Training Expenses ,Professional Services,GPC
18/05/2023-19/06/2023,Adults & Communities,Etsy.Com - Sondrasestateb,23/05/2023,26.09,Books & Audio Visual,Miscellaneous General Merchandise,GPC
18/05/2023-19/06/2023,Adults & Communities,Etsy.Com - Thelittlewoode,14/06/2023,8.17,Other Expenditure,Miscellaneous General Merchandise,GPC
18/05/2023-19/06/2023,Adults & Communities,Facebk *z4mpmqk7r2,01/06/2023,60,"Advertising, Publicity & Marke",Advertising Services,GPC
18/05/2023-19/06/2023,Adults & Communities,Fast Key Services Limited,16/06/2023,12.21,General Equipment - Purchase &,Other Business Services,GPC
18/05/2023-19/06/2023,Adults & Communities,Fasthosts,14/06/2023,109,IT Software Licenses/Subscript,Computer Network/Information Services,GPC
18/05/2023-19/06/2023,Adults & Communities,Firstaid4less,31/05/2023,48.75,General Equipment - Purchase &,Other Commercial Equipment,GPC
18/05/2023-19/06/2023,Adults & Communities,Foreign Exchange Fee,24/05/2023,0.44,IT Software Licenses/Subscript,,GPC
18/05/2023-19/06/2023,Adults & Communities,Foreign Exchange Fee,05/06/2023,3.95,,,GPC
18/05/2023-19/06/2023,Adults & Communities,Forum Centrespace Limi,30/05/2023,100,"Advertising, Publicity & Marke",Real Estate Managers - Rentals,GPC
18/05/2023-19/06/2023,Adults & Communities,H&bbc Internet,18/05/2023,23,Site Licenses,Government Services,GPC
18/05/2023-19/06/2023,Adults & Communities,Harborough District Co,24/05/2023,1.5,Other Transport Costs,Automobile Parking Lots and Garages,GPC
18/05/2023-19/06/2023,Adults & Communities,Headway The Brain Injury,17/05/2023,1.99,Consultants & Specialists-Inte,"Organizations, Charitable and Social Service",GPC
18/05/2023-19/06/2023,Adults & Communities,Home Bargains,15/06/2023,2.81,Other Expenditure,Hardware Stores,GPC
18/05/2023-19/06/2023,Adults & Communities,Hoo*hootsuite Inc,04/06/2023,143.73,IT Software Licenses/Subscript,Other Business Services,GPC
18/05/2023-19/06/2023,Adults & Communities,Horizon Iceland Hinckl,22/05/2023,1,Other Transport Costs,Automobile Parking Lots and Garages,GPC
18/05/2023-19/06/2023,Adults & Communities,House Of Gods Hotel,16/06/2023,16.5,Training Expenses ,"Bars, Cocktail Lounges, Discotheques, Nightclubs",GPC
18/05/2023-19/06/2023,Adults & Communities,Https://Www.Broschdirect,26/05/2023,64.9,Cleaning Materials,Dental/Laboratory/Medical Equipment & Supplies,GPC
18/05/2023-19/06/2023,Adults & Communities,Iceland,30/05/2023,5,Stationery,Grocery Stores and Supermarkets,GPC
18/05/2023-19/06/2023,Adults & Communities,Indeed Jobs,19/05/2023,250,Recruitment ,"Employment Agencies, Temporary Help Services",GPC
18/05/2023-19/06/2023,Adults & Communities,Indeed Jobs,11/06/2023,250,Recruitment ,"Employment Agencies, Temporary Help Services",GPC
18/05/2023-19/06/2023,Adults & Communities,Lcc Donington Manor House,16/06/2023,-3.25,Bank Charges,Government Services,GPC
18/05/2023-19/06/2023,Adults & Communities,Lcc Donington Manor House,16/06/2023,-3.25,Bank Charges,Government Services,GPC
18/05/2023-19/06/2023,Adults & Communities,Lcc Donington Manor House,16/06/2023,3.25,Bank Charges,Government Services,GPC
18/05/2023-19/06/2023,Adults & Communities,Lcc Donington Manor House,16/06/2023,3.25,Bank Charges,Government Services,GPC
18/05/2023-19/06/2023,Adults & Communities,Lcc Donington Manor House,17/06/2023,0.01,Bank Charges,Government Services,GPC
18/05/2023-19/06/2023,Adults & Communities,Lcc Donington Manor House,17/06/2023,0.01,Bank Charges,Government Services,GPC
18/05/2023-19/06/2023,Adults & Communities,Leicester City Council,24/05/2023,3.1,Mileage Casual,Automobile Parking Lots and Garages,GPC
18/05/2023-19/06/2023,Adults & Communities,Lne Rail Catering,15/06/2023,12.4,Training Expenses ,Passenger Railways,GPC
18/05/2023-19/06/2023,Adults & Communities,Lner Car Park Nng,24/05/2023,14,Public Transport - Staff Trave,Passenger Railways,GPC
18/05/2023-19/06/2023,Adults & Communities,Lner Car Park Nng,07/06/2023,28,Public Transport - Staff Trave,Passenger Railways,GPC
18/05/2023-19/06/2023,Adults & Communities,Loros,17/05/2023,4,Consultants & Specialists-Inte,"Organizations, Charitable and Social Service",GPC
18/05/2023-19/06/2023,Adults & Communities,Mailchimp,17/05/2023,48.38,IT Software Licenses/Subscript,Digital Goods - Large Digital Goods Merchant,GPC
18/05/2023-19/06/2023,Adults & Communities,Mailchimp,24/05/2023,48.74,IT Software Licenses/Subscript,Digital Goods - Large Digital Goods Merchant,GPC
18/05/2023-19/06/2023,Adults & Communities,Marks&spencer Plc,30/05/2023,55,Other Expenditure,Grocery Stores and Supermarkets,GPC
18/05/2023-19/06/2023,Adults & Communities,Mason Foods,24/05/2023,131.5,Materials,Other Nondurable Goods,GPC
18/05/2023-19/06/2023,Adults & Communities,Mason Foods,30/05/2023,165.74,Materials,Other Nondurable Goods,GPC
18/05/2023-19/06/2023,Adults & Communities,Mason Foods,06/06/2023,52.39,Materials,Other Nondurable Goods,GPC
18/05/2023-19/06/2023,Adults & Communities,Mason Foods,08/06/2023,57.7,Materials,Other Nondurable Goods,GPC
18/05/2023-19/06/2023,Adults & Communities,Mason Foods,13/06/2023,35.4,Materials,Other Nondurable Goods,GPC
18/05/2023-19/06/2023,Adults & Communities,Mason Foods,14/06/2023,70.18,Materials,Other Nondurable Goods,GPC
18/05/2023-19/06/2023,Adults & Communities,Mason Foods,17/05/2023,-16.6,Other Expenditure,Other Nondurable Goods,GPC
18/05/2023-19/06/2023,Adults & Communities,McLaggan Smith Mugs Lt,06/06/2023,761.7,Materials,"Card, Gift, Novelty, and Souvenir Shops",GPC
18/05/2023-19/06/2023,Adults & Communities,Ms* Houseofgods,08/06/2023,398,Training Expenses ,"Hotels, Motels, Resorts",GPC
18/05/2023-19/06/2023,Adults & Communities,Museums Asctn,12/06/2023,60,Books & Audio Visual,Art Dealers and Galleries,GPC
18/05/2023-19/06/2023,Adults & Communities,Museums Asctn,08/06/2023,40,Consultants & Specialists-Inte,Art Dealers and Galleries,GPC
18/05/2023-19/06/2023,Adults & Communities,Natecla,02/06/2023,49,Training Expenses ,"Organizations, Membership",GPC
18/05/2023-19/06/2023,Adults & Communities,Ncp Ltd Grantham Stati,15/06/2023,9.9,Mileage Casual,Automobile Parking Lots and Garages,GPC
18/05/2023-19/06/2023,Adults & Communities,Nec Parking,16/06/2023,49.9,Client / Volunteers Reimbursem,Automobile Parking Lots and Garages,GPC
18/05/2023-19/06/2023,Adults & Communities,Nec Parking,16/06/2023,99.8,Client / Volunteers Reimbursem,Automobile Parking Lots and Garages,GPC
18/05/2023-19/06/2023,Adults & Communities,Netflix.Com,01/06/2023,13.33,Client Personal Needs,"Cable, Satellite & other Pay TV and Radio Services",GPC
18/05/2023-19/06/2023,Adults & Communities,Netflix.Com,16/06/2023,13.33,Client Personal Needs,"Cable, Satellite & other Pay TV and Radio Services",GPC
18/05/2023-19/06/2023,Adults & Communities,Netflix.Com,04/06/2023,13.32,IT Telecommunications Line Ren,"Cable, Satellite & other Pay TV and Radio Services",GPC
18/05/2023-19/06/2023,Adults & Communities,Nh Maintenance,15/06/2023,41.03,General Equipment - Purchase &,"Health Practitioners, Medical Services",GPC
18/05/2023-19/06/2023,Adults & Communities,Nwldc Parking Fee,23/05/2023,0.65,Other Transport Costs,Automobile Parking Lots and Garages,GPC
18/05/2023-19/06/2023,Adults & Communities,O2 UK Pay & Go,26/05/2023,16.67,IT Telecommunications Line Ren,Telecommunication Services,GPC
18/05/2023-19/06/2023,Adults & Communities,Oadby & Wigston B Council,18/05/2023,2.5,Other Transport Costs,Government Services,GPC
18/05/2023-19/06/2023,Adults & Communities,Onske,25/05/2023,702.92,Furniture,"Equipment, Furniture, and Home Furnishings Stores ",GPC
18/05/2023-19/06/2023,Adults & Communities,Onske,26/05/2023,702.92,Furniture,"Equipment, Furniture, and Home Furnishings Stores ",GPC
18/05/2023-19/06/2023,Adults & Communities,Paybyphone Re Melton Boro,24/05/2023,2.4,Other Transport Costs,Automobile Parking Lots and Garages,GPC
18/05/2023-19/06/2023,Adults & Communities,Paybyphone Re Melton Boro,26/05/2023,1.3,Other Transport Costs,Automobile Parking Lots and Garages,GPC
18/05/2023-19/06/2023,Adults & Communities,Paybyphone Re Melton Boro,14/06/2023,2.4,Other Transport Costs,Automobile Parking Lots and Garages,GPC
18/05/2023-19/06/2023,Adults & Communities,Paybyphone Re Xwr Limited,18/05/2023,3.5,Other Transport Costs,Automobile Parking Lots and Garages,GPC
18/05/2023-19/06/2023,Adults & Communities,Paypal *emr Online,24/05/2023,12.7,Consultants & Specialists-Inte,Passenger Railways,GPC
18/05/2023-19/06/2023,Adults & Communities,Paypal *hotelchocol,06/06/2023,40.62,Consultants & Specialists-Inte,Miscellaneous Food Stores & Convenience Stores,GPC
18/05/2023-19/06/2023,Adults & Communities,Paypal *hotsolder,23/05/2023,10.55,Other Expenditure,"Computer Program, System Design",GPC
18/05/2023-19/06/2023,Adults & Communities,Post Office Counter,06/06/2023,2.4,Consultants & Specialists-Inte,Postal Services - Government Only,GPC
18/05/2023-19/06/2023,Adults & Communities,Post Office Counter,09/06/2023,8.95,Other Expenditure,Postal Services - Government Only,GPC
18/05/2023-19/06/2023,Adults & Communities,Post Office Counter,22/05/2023,18,Postal Services,Postal Services - Government Only,GPC
18/05/2023-19/06/2023,Adults & Communities,Post Office Counter,30/05/2023,80,Postal Services,Postal Services - Government Only,GPC
18/05/2023-19/06/2023,Adults & Communities,Post Office Counter,31/05/2023,1.6,Postal Services,Postal Services - Government Only,GPC
18/05/2023-19/06/2023,Adults & Communities,Post Office Counter,31/05/2023,14.75,Postal Services,Postal Services - Government Only,GPC
18/05/2023-19/06/2023,Adults & Communities,Post Office Counter,05/06/2023,12.95,Postal Services,Postal Services - Government Only,GPC
18/05/2023-19/06/2023,Adults & Communities,Post Office Counter,07/06/2023,3.85,Postal Services,Postal Services - Government Only,GPC
18/05/2023-19/06/2023,Adults & Communities,Post Office Counter,08/06/2023,3.75,Postal Services,Postal Services - Government Only,GPC
18/05/2023-19/06/2023,Adults & Communities,Post Office Counter,18/05/2023,9,Stationery,Postal Services - Government Only,GPC
18/05/2023-19/06/2023,Adults & Communities,Premier Inn,26/05/2023,66.66,Consultants & Specialists,Premier Inn,GPC
18/05/2023-19/06/2023,Adults & Communities,Premier Inn,17/05/2023,84.16,Other Services ,Premier Inn,GPC
18/05/2023-19/06/2023,Adults & Communities,Premier Trophies,26/05/2023,249.9,Consultants & Specialists,Miscellaneous General Merchandise,GPC
18/05/2023-19/06/2023,Adults & Communities,Pro Locksmiths,30/05/2023,20,Other Premises expenses,Mens and Womens Clothing Stores,GPC
18/05/2023-19/06/2023,Adults & Communities,Quadient UK Ltd,17/05/2023,500,Postal Services,"Stationery, Office Supplies and Writing Paper",GPC
18/05/2023-19/06/2023,Adults & Communities,Quadient UK Ltd,23/05/2023,500,Postal Services,"Stationery, Office Supplies and Writing Paper",GPC
18/05/2023-19/06/2023,Adults & Communities,Quadient UK Ltd,01/06/2023,400,Postal Services,"Stationery, Office Supplies and Writing Paper",GPC
18/05/2023-19/06/2023,Adults & Communities,Revolution Events Ltd,09/06/2023,550,Training Expenses ,Other Business Services,GPC
18/05/2023-19/06/2023,Adults & Communities,Royal Mail Group Ltd,05/06/2023,9.4,Other Expenditure,Postal Services - Government Only,GPC
18/05/2023-19/06/2023,Adults & Communities,Royal Mail Group Ltd,05/06/2023,2.25,Other Expenditure,Postal Services - Government Only,GPC
18/05/2023-19/06/2023,Adults & Communities,Royal Mail Group Ltd,22/05/2023,8.85,Postal Services,Postal Services - Government Only,GPC
18/05/2023-19/06/2023,Adults & Communities,Royal Mail Group Ltd,15/06/2023,0.75,Postal Services,Postal Services - Government Only,GPC
18/05/2023-19/06/2023,Adults & Communities,Ryman,09/06/2023,15.83,Consultants & Specialists-Inte,"Office, School Supply, and Stationery Stores",GPC
18/05/2023-19/06/2023,Adults & Communities,Sainsburys Local,31/05/2023,6.6,Provisions Purchases,Grocery Stores and Supermarkets,GPC
18/05/2023-19/06/2023,Adults & Communities,Sainsburys Local,02/06/2023,3.96,Provisions Purchases,Grocery Stores and Supermarkets,GPC
18/05/2023-19/06/2023,Adults & Communities,Sainsburys Local,04/06/2023,2,Provisions Purchases,Grocery Stores and Supermarkets,GPC
18/05/2023-19/06/2023,Adults & Communities,Sainsburys S/mkts,15/06/2023,3.8,Materials,Grocery Stores and Supermarkets,GPC
18/05/2023-19/06/2023,Adults & Communities,Sainsburys S/mkts,07/06/2023,4.17,Provisions Purchases,Grocery Stores and Supermarkets,GPC
18/05/2023-19/06/2023,Adults & Communities,Sainsburys S/mkts,23/05/2023,5.42,Stationery,Grocery Stores and Supermarkets,GPC
18/05/2023-19/06/2023,Adults & Communities,Sainsburys.Co.Uk,19/05/2023,198.07,Provisions Purchases,Grocery Stores and Supermarkets,GPC
18/05/2023-19/06/2023,Adults & Communities,Sainsburys.Co.Uk,26/05/2023,190.13,Provisions Purchases,Grocery Stores and Supermarkets,GPC
18/05/2023-19/06/2023,Adults & Communities,Sainsburys.Co.Uk,02/06/2023,128.84,Provisions Purchases,Grocery Stores and Supermarkets,GPC
18/05/2023-19/06/2023,Adults & Communities,Sainsburys.Co.Uk,09/06/2023,178.73,Provisions Purchases,Grocery Stores and Supermarkets,GPC
18/05/2023-19/06/2023,Adults & Communities,Sainsburys.Co.Uk,16/06/2023,147.28,Provisions Purchases,Grocery Stores and Supermarkets,GPC
18/05/2023-19/06/2023,Adults & Communities,Schoolhire* B951389,19/05/2023,80,Rent & Room Hire,Computer Software Stores,GPC
18/05/2023-19/06/2023,Adults & Communities,Schoolhire* B951389,15/06/2023,120,Rent & Room Hire,Computer Software Stores,GPC
18/05/2023-19/06/2023,Adults & Communities,Shared Lives Plus Limi,30/05/2023,67,Other Services ,"Organizations, Charitable and Social Service",GPC
18/05/2023-19/06/2023,Adults & Communities,Sharkninja Europe,03/06/2023,174.98,General Equipment - Purchase &,Miscellaneous House Furnishing Specialty Shops,GPC
18/05/2023-19/06/2023,Adults & Communities,Sharkninja Europe,06/06/2023,291.66,General Equipment - Purchase &,Miscellaneous House Furnishing Specialty Shops,GPC
18/05/2023-19/06/2023,Adults & Communities,Showcase Coventry,26/05/2023,10.9,Other Expenditure,Motion Picture Theaters,GPC
18/05/2023-19/06/2023,Adults & Communities,Showcase Coventry,26/05/2023,8,Other Expenditure,Motion Picture Theaters,GPC
18/05/2023-19/06/2023,Adults & Communities,Snapfish UK *,16/05/2023,8.5,Other Expenditure,"Photo Developing, Photofinishing Laboratories",GPC
18/05/2023-19/06/2023,Adults & Communities,Solmer Ltd,15/06/2023,42,Materials,Hardware Stores,GPC
18/05/2023-19/06/2023,Adults & Communities,Solti,15/06/2023,21.95,Training Expenses ,"Eating Places, Restaurants",GPC
18/05/2023-19/06/2023,Adults & Communities,Specialist Crafts Ltd,31/05/2023,311.89,Books & Audio Visual,"Artist Supply Stores, Craft Shops",GPC
18/05/2023-19/06/2023,Adults & Communities,Starbucks,15/06/2023,7.95,Training Expenses ,Quick Payment Service-Fast-Food Restaurants,GPC
18/05/2023-19/06/2023,Adults & Communities,Subway 48521 Marlowes 243,01/06/2023,-6.89,Subsistance & Conference,,GPC
18/05/2023-19/06/2023,Adults & Communities,Subway 48521 Marlowes 243,01/06/2023,6.89,Subsistance & Conference,Quick Payment Service-Fast-Food Restaurants,GPC
18/05/2023-19/06/2023,Adults & Communities,Sumup *allied Domesti,25/05/2023,119,General Equipment - Purchase &,"General Contractors, Residential and Commercial",GPC
18/05/2023-19/06/2023,Adults & Communities,Sumup *heshams Taxi,16/06/2023,37.8,Mileage Casual,Taxi Services,GPC
18/05/2023-19/06/2023,Adults & Communities,Talktalk Business,23/05/2023,87.33,IT Telecommunications Line Ren,Computer Network/Information Services,GPC
18/05/2023-19/06/2023,Adults & Communities,Tesco Stores 5182,01/06/2023,70.88,Provisions Purchases,Grocery Stores and Supermarkets,GPC
18/05/2023-19/06/2023,Adults & Communities,Tesco Stores 5182,06/06/2023,74.04,Provisions Purchases,Grocery Stores and Supermarkets,GPC
18/05/2023-19/06/2023,Adults & Communities,Tesco Stores 5182,12/06/2023,19.6,Provisions Purchases,Grocery Stores and Supermarkets,GPC
18/05/2023-19/06/2023,Adults & Communities,The Scottish Cafe & Re,16/06/2023,25.14,Training Expenses ,"Eating Places, Restaurants",GPC
18/05/2023-19/06/2023,Adults & Communities,Timpson Ltd,17/05/2023,13.5,Consultants & Specialists-Inte,Miscellaneous and Specialty Retail Stores,GPC
18/05/2023-19/06/2023,Adults & Communities,Tops Pizza Hatfield,08/06/2023,-12.98,Subsistance & Conference,,GPC
18/05/2023-19/06/2023,Adults & Communities,Tops Pizza Hatfield,08/06/2023,12.98,Subsistance & Conference,Quick Payment Service-Fast-Food Restaurants,GPC
18/05/2023-19/06/2023,Adults & Communities,Tops Pizza Watford,08/06/2023,-24.5,Subsistance & Conference,,GPC
18/05/2023-19/06/2023,Adults & Communities,Tops Pizza Watford,08/06/2023,24.5,Subsistance & Conference,Quick Payment Service-Fast-Food Restaurants,GPC
18/05/2023-19/06/2023,Adults & Communities,Trainline,19/05/2023,196.25,Public Transport - Staff Trave,Passenger Railways,GPC
18/05/2023-19/06/2023,Adults & Communities,Trainline,05/06/2023,196.25,Public Transport - Staff Trave,Passenger Railways,GPC
18/05/2023-19/06/2023,Adults & Communities,Trainline.Com,08/06/2023,79.13,Client / Volunteers Reimbursem,Passenger Railways,GPC
18/05/2023-19/06/2023,Adults & Communities,Trainline.Com,18/05/2023,183.75,Training Expenses ,Passenger Railways,GPC
18/05/2023-19/06/2023,Adults & Communities,Tvlicensing.Co.Uk,26/05/2023,159,Site Licenses,"Consulting, Management, and PR Services",GPC
18/05/2023-19/06/2023,Adults & Communities,Viking Office UK Limit,26/05/2023,80.63,Stationery,"Stationery, Office Supplies and Writing Paper",GPC
18/05/2023-19/06/2023,Adults & Communities,Viking Office UK Limit,02/06/2023,79.53,Stationery,"Stationery, Office Supplies and Writing Paper",GPC
18/05/2023-19/06/2023,Adults & Communities,Viking Office UK Limit,13/06/2023,132.24,Stationery,"Stationery, Office Supplies and Writing Paper",GPC
18/05/2023-19/06/2023,Adults & Communities,W Boyes & Co Ltd Coalv,07/06/2023,26.1,Materials,Discount Stores,GPC
18/05/2023-19/06/2023,Adults & Communities,W Boyes & Co Ltd Coalv,29/05/2023,6.75,Other Expenditure,Discount Stores,GPC
18/05/2023-19/06/2023,Adults & Communities,W Boyes & Co Ltd Coalv,30/05/2023,2.59,Other Expenditure,Discount Stores,GPC
18/05/2023-19/06/2023,Adults & Communities,Washco Limited,25/05/2023,167.5,General Equipment - Purchase &,Dry Cleaners,GPC
18/05/2023-19/06/2023,Adults & Communities,Watkins,05/06/2023,123.33,Provisions Purchases,Freezer and Locker Meat Provisioners,GPC
18/05/2023-19/06/2023,Adults & Communities,Wh Smith Hinckley,22/05/2023,6,Postal Services,News Dealers and Newsstands,GPC
18/05/2023-19/06/2023,Adults & Communities,Wickes Ashby De La Zouch,25/05/2023,115.9,R&M Buildings ,Lumber & Building Materials Stores,GPC
18/05/2023-19/06/2023,Adults & Communities,Wigston Blinds & Awnings,13/06/2023,196.67,General Equipment - Purchase &,"Drapery, Upholstery, and Window Coverings Stores",GPC
18/05/2023-19/06/2023,Adults & Communities,Wilko Retail Limited,17/05/2023,15.3,Materials,Miscellaneous General Merchandise,GPC
18/05/2023-19/06/2023,Adults & Communities,Wilko Retail Limited,24/05/2023,11,Materials,Miscellaneous General Merchandise,GPC
18/05/2023-19/06/2023,Adults & Communities,Wilko Retail Limited,15/06/2023,2.5,Materials,Miscellaneous General Merchandise,GPC
18/05/2023-19/06/2023,Adults & Communities,Wiltshire Farm Foods,17/05/2023,16.17,Provisions Purchases,Miscellaneous Food Stores & Convenience Stores,GPC
18/05/2023-19/06/2023,Adults & Communities,Wiltshire Farm Foods,06/06/2023,40.29,Provisions Purchases,Miscellaneous Food Stores & Convenience Stores,GPC
18/05/2023-19/06/2023,Adults & Communities,Wiltshire Farm Foods,08/06/2023,40.29,Provisions Purchases,Miscellaneous Food Stores & Convenience Stores,GPC
18/05/2023-19/06/2023,Adults & Communities,Wm Morrisons Store,22/05/2023,7.34,General Equipment - Purchase &,Grocery Stores and Supermarkets,GPC
18/05/2023-19/06/2023,Adults & Communities,Wm Morrisons Store,20/05/2023,12.02,Materials,Grocery Stores and Supermarkets,GPC
18/05/2023-19/06/2023,Adults & Communities,Wm Morrisons Store,23/05/2023,18.66,Materials,Grocery Stores and Supermarkets,GPC
18/05/2023-19/06/2023,Adults & Communities,Wm Morrisons Store,27/05/2023,5.18,Materials,Grocery Stores and Supermarkets,GPC
18/05/2023-19/06/2023,Adults & Communities,Wm Morrisons Store,29/05/2023,3.88,Materials,Grocery Stores and Supermarkets,GPC
18/05/2023-19/06/2023,Adults & Communities,Wm Morrisons Store,01/06/2023,22.67,Materials,Grocery Stores and Supermarkets,GPC
18/05/2023-19/06/2023,Adults & Communities,Wm Morrisons Store,03/06/2023,15.49,Materials,Grocery Stores and Supermarkets,GPC
18/05/2023-19/06/2023,Adults & Communities,Wm Morrisons Store,16/06/2023,26.97,Materials,Grocery Stores and Supermarkets,GPC
18/05/2023-19/06/2023,Adults & Communities,Wm Morrisons Store,06/06/2023,54.17,Other Expenditure,Grocery Stores and Supermarkets,GPC
18/05/2023-19/06/2023,Adults & Communities,Wm Morrisons Store,31/05/2023,8.75,Provisions Purchases,Grocery Stores and Supermarkets,GPC
18/05/2023-19/06/2023,Adults & Communities,Wm Morrisons Store,15/06/2023,6.36,Provisions Purchases,Grocery Stores and Supermarkets,GPC
18/05/2023-19/06/2023,Adults & Communities,Wm Morrisons Store,16/06/2023,13.89,Provisions Purchases,Grocery Stores and Supermarkets,GPC
18/05/2023-19/06/2023,Adults & Communities,Wm Morrisons Store Pick,05/06/2023,43.23,Materials,Grocery Stores and Supermarkets,GPC
18/05/2023-19/06/2023,Adults & Communities,Wm Morrisons Store Pick,16/06/2023,27.42,Materials,Grocery Stores and Supermarkets,GPC
18/05/2023-19/06/2023,Adults & Communities,Wm Morrisons Store Pick,18/05/2023,79.98,Provisions Purchases,Grocery Stores and Supermarkets,GPC
18/05/2023-19/06/2023,Adults & Communities,Wm Morrisons Store Pick,21/05/2023,129.64,Provisions Purchases,Grocery Stores and Supermarkets,GPC
18/05/2023-19/06/2023,Adults & Communities,Wm Morrisons Store Pick,25/05/2023,158.9,Provisions Purchases,Grocery Stores and Supermarkets,GPC
18/05/2023-19/06/2023,Adults & Communities,Wm Morrisons Store Pick,28/05/2023,184.1,Provisions Purchases,Grocery Stores and Supermarkets,GPC
18/05/2023-19/06/2023,Adults & Communities,Wm Morrisons Store Pick,30/05/2023,6.67,Provisions Purchases,Grocery Stores and Supermarkets,GPC
18/05/2023-19/06/2023,Adults & Communities,Wm Morrisons Store Pick,01/06/2023,104.61,Provisions Purchases,Grocery Stores and Supermarkets,GPC
18/05/2023-19/06/2023,Adults & Communities,Wm Morrisons Store Pick,04/06/2023,90.14,Provisions Purchases,Grocery Stores and Supermarkets,GPC
18/05/2023-19/06/2023,Adults & Communities,Wm Morrisons Store Pick,08/06/2023,84.44,Provisions Purchases,Grocery Stores and Supermarkets,GPC
18/05/2023-19/06/2023,Adults & Communities,Wm Morrisons Store Pick,11/06/2023,139.39,Provisions Purchases,Grocery Stores and Supermarkets,GPC
18/05/2023-19/06/2023,Adults & Communities,Wm Morrisons Store Pick,15/06/2023,119.92,Provisions Purchases,Grocery Stores and Supermarkets,GPC
18/05/2023-19/06/2023,Adults & Communities,Woodmansterne Publication,31/05/2023,371.76,Materials,Miscellaneous Publishing and Printing,GPC
18/05/2023-19/06/2023,Adults & Communities,Woodside Animal Centre,17/06/2023,3,Consultants & Specialists-Inte,"Organizations, Charitable and Social Service",GPC
18/05/2023-19/06/2023,Adults & Communities,Www.Argos.Co.Uk,07/06/2023,33.75,General Equipment - Purchase &,Department Stores,GPC
18/05/2023-19/06/2023,Adults & Communities,Www.Argos.Co.Uk,17/05/2023,31.5,Materials,Department Stores,GPC
18/05/2023-19/06/2023,Adults & Communities,Www.Argos.Co.Uk,09/06/2023,64.99,Other Expenditure,Department Stores,GPC
18/05/2023-19/06/2023,Adults & Communities,Www.Connevans.Com,23/05/2023,145.11,General Equipment - Purchase &,Miscellaneous and Specialty Retail Stores,GPC
18/05/2023-19/06/2023,Adults & Communities,Www.Connevans.Com,25/05/2023,-137.16,General Equipment - Purchase &,Miscellaneous and Specialty Retail Stores,GPC
18/05/2023-19/06/2023,Adults & Communities,Www.Curveonline.Co.Uk,30/05/2023,80,Other Expenditure,"Theatrical Producers, Tic",GPC
18/05/2023-19/06/2023,Adults & Communities,Www.Mencap.Org.Uk,17/05/2023,4,Consultants & Specialists-Inte,"Organizations, Charitable and Social Service",GPC
18/05/2023-19/06/2023,Adults & Communities,Www.Screwfix.Com,26/05/2023,26.61,General Equipment - Purchase &,Lumber & Building Materials Stores,GPC
18/05/2023-19/06/2023,Adults & Communities,Www.Screwfix.Com,12/06/2023,37.48,Other Expenditure,Lumber & Building Materials Stores,GPC
18/05/2023-19/06/2023,Adults & Communities,Www.Screwfix.Com,14/06/2023,49.98,Other Expenditure,Lumber & Building Materials Stores,GPC
18/05/2023-19/06/2023,Adults & Communities,Www.Tts-Groups.Co.Uk,14/06/2023,43.18,Consultants & Specialists-Inte,"Office, School Supply, and Stationery Stores",GPC
18/05/2023-19/06/2023,Adults & Communities,Ytc (Melton Mowbray),01/06/2023,4.48,Other Expenditure,Miscellaneous and Specialty Retail Stores,GPC
18/05/2023-19/06/2023,Adults & Communities,Zettle_*philip Stewart,16/06/2023,6,Mileage Casual,Taxi Services,GPC
18/05/2023-19/06/2023,Adults & Communities,Zoom.Us 888-799-9666,02/06/2023,12.99,IT Software Licenses/Subscript,Telecommunication Services,GPC
18/05/2023-19/06/2023,Adults & Communities,Zoom.Us 888-799-9666,15/06/2023,15.59,IT Software Licenses/Subscript,Telecommunication Services,GPC
18/05/2023-19/06/2023,Chief Executive's,Amznbusiness*rk5zj8vr5,15/06/2023,261.79,Stationery,Miscellaneous and Specialty Retail Stores,GPC
18/05/2023-19/06/2023,Chief Executive's,Amznmktplace,18/05/2023,104.94,General Equipment - Purchase &,Miscellaneous and Specialty Retail Stores,GPC
18/05/2023-19/06/2023,Chief Executive's,Amznmktplace,24/05/2023,35.16,Materials,Miscellaneous and Specialty Retail Stores,GPC
18/05/2023-19/06/2023,Chief Executive's,Amznmktplace,24/05/2023,20.24,Other Expenditure,Miscellaneous and Specialty Retail Stores,GPC
18/05/2023-19/06/2023,Chief Executive's,Amznmktplace,24/05/2023,18.07,Stationery,Miscellaneous and Specialty Retail Stores,GPC
18/05/2023-19/06/2023,Chief Executive's,Amznmktplace,25/05/2023,7.73,Stationery,Miscellaneous and Specialty Retail Stores,GPC
18/05/2023-19/06/2023,Chief Executive's,Amznmktplace,25/05/2023,59.14,Stationery,Miscellaneous and Specialty Retail Stores,GPC
18/05/2023-19/06/2023,Chief Executive's,Amznmktplace,25/05/2023,18.37,Stationery,Miscellaneous and Specialty Retail Stores,GPC
18/05/2023-19/06/2023,Chief Executive's,Amznmktplace,25/05/2023,112.91,Stationery,Miscellaneous and Specialty Retail Stores,GPC
18/05/2023-19/06/2023,Chief Executive's,Amznmktplace,01/06/2023,17.34,Stationery,Miscellaneous and Specialty Retail Stores,GPC
18/05/2023-19/06/2023,Chief Executive's,Apple.Com/Bill,31/05/2023,0.66,Other Expenditure,Digital Goods - Large Digital Goods Merchant,GPC
18/05/2023-19/06/2023,Chief Executive's,Arco Limited,17/05/2023,32.98,General Equipment - Purchase &,Other Industrial Supplies,GPC
18/05/2023-19/06/2023,Chief Executive's,Arco Limited,22/05/2023,60.42,General Equipment - Purchase &,Other Industrial Supplies,GPC
18/05/2023-19/06/2023,Chief Executive's,Booker Ltd - 38603284,16/06/2023,133.24,Materials,Grocery Stores and Supermarkets,GPC
18/05/2023-19/06/2023,Chief Executive's,Cartridge Save,18/05/2023,83.22,Other Expenditure,"Stationery, Office Supplies and Writing Paper",GPC
18/05/2023-19/06/2023,Chief Executive's,Cartridge Save,06/06/2023,75.73,Other Expenditure,"Stationery, Office Supplies and Writing Paper",GPC
18/05/2023-19/06/2023,Chief Executive's,Cartridge Save,12/06/2023,99.83,Other Expenditure,"Stationery, Office Supplies and Writing Paper",GPC
18/05/2023-19/06/2023,Chief Executive's,Firstaid4less,26/05/2023,67.72,General Equipment - Purchase &,Other Commercial Equipment,GPC
18/05/2023-19/06/2023,Chief Executive's,Flying Colours Flag,24/05/2023,562.5,Other Expenditure,"Fabric, Needlework, Piece Goods, and Sewing Stores",GPC
18/05/2023-19/06/2023,Chief Executive's,Halfords E.Comm,17/05/2023,27.47,General Equipment - Purchase &,"Automotive Parts, Accessories Stores",GPC
18/05/2023-19/06/2023,Chief Executive's,Insafe International L,17/05/2023,505.78,Other Expenditure,Hardware Stores,GPC
18/05/2023-19/06/2023,Chief Executive's,Moments,22/05/2023,277.5,Hospitality,"Card, Gift, Novelty, and Souvenir Shops",GPC
18/05/2023-19/06/2023,Chief Executive's,Premier Farnell,13/06/2023,76.9,Materials,Electrical Parts and Equipment,GPC
18/05/2023-19/06/2023,Chief Executive's,Psa Parts,17/05/2023,46.98,Materials,Electronic Sales,GPC
18/05/2023-19/06/2023,Chief Executive's,Royal Mail Online Shop,15/06/2023,275,Postal Services,Postal Services - Government Only,GPC
18/05/2023-19/06/2023,Chief Executive's,Scientificlabs.Co.,17/05/2023,60.5,Materials,Dental/Laboratory/Medical Equipment & Supplies,GPC
18/05/2023-19/06/2023,Chief Executive's,Times Newspapers Ltd,28/05/2023,26,Public Transport - Staff Trave,"Books, Periodicals and Newspapers",GPC
18/05/2023-19/06/2023,Chief Executive's,Timpson Ltd,05/06/2023,13.08,Protective Clothing & Uniforms,Miscellaneous and Specialty Retail Stores,GPC
18/05/2023-19/06/2023,Chief Executive's,Trainline,16/05/2023,181.83,Public Transport - Staff Trave,Passenger Railways,GPC
18/05/2023-19/06/2023,Chief Executive's,Trainline,16/05/2023,95.17,Public Transport - Staff Trave,Passenger Railways,GPC
18/05/2023-19/06/2023,Chief Executive's,Trainline,12/06/2023,81.75,Public Transport - Staff Trave,Passenger Railways,GPC
18/05/2023-19/06/2023,Chief Executive's,Travelodge Gb0000,26/05/2023,533.66,Training Expenses ,Travelodge,GPC
18/05/2023-19/06/2023,Chief Executive's,Viking Office UK Limit,17/05/2023,49.9,Materials,"Stationery, Office Supplies and Writing Paper",GPC
18/05/2023-19/06/2023,Chief Executive's,Warning Zone Limited,15/06/2023,15,Other Services ,"Organizations, Charitable and Social Service",GPC
18/05/2023-19/06/2023,Chief Executive's,Wilko Retail Limited,23/05/2023,5,Printing,Miscellaneous General Merchandise,GPC
18/05/2023-19/06/2023,Children & Family Services,2maa037594896 Td E-Pmt,26/05/2023,75,Other Expenditure,Government Services,GPC
18/05/2023-19/06/2023,Children & Family Services,Adobe Acropro Subs,20/05/2023,19.97,Other Expenditure,Computer Software Stores,GPC
18/05/2023-19/06/2023,Children & Family Services,Age Uk,17/05/2023,11.5,Payments to Carers-Foster Care,"Organizations, Charitable and Social Service",GPC
18/05/2023-19/06/2023,Children & Family Services,Aldi,01/06/2023,25.51,Payments to Carers-Foster Care,Grocery Stores and Supermarkets,GPC
18/05/2023-19/06/2023,Children & Family Services,Aldi,31/05/2023,16.74,Payments to Carers-Shared Live,Grocery Stores and Supermarkets,GPC
18/05/2023-19/06/2023,Children & Family Services,Aldi 33 772,03/06/2023,31.42,Materials,Grocery Stores and Supermarkets,GPC
18/05/2023-19/06/2023,Children & Family Services,Aldi 56 772,18/05/2023,29.44,Payments to Carers-Foster Care,Grocery Stores and Supermarkets,GPC
18/05/2023-19/06/2023,Children & Family Services,Aldi 782-054,12/06/2023,17.79,Materials,Grocery Stores and Supermarkets,GPC
18/05/2023-19/06/2023,Children & Family Services,Aldi Stores Uk,22/05/2023,24.37,Materials,Grocery Stores and Supermarkets,GPC
18/05/2023-19/06/2023,Children & Family Services,Aldi Stores Uk,31/05/2023,14.49,Materials,Grocery Stores and Supermarkets,GPC
18/05/2023-19/06/2023,Children & Family Services,Aldi Stores Uk,05/06/2023,23.71,Materials,Grocery Stores and Supermarkets,GPC
18/05/2023-19/06/2023,Children & Family Services,Aldi Stores Uk,04/06/2023,1.5,Payments to Carers-Foster Care,Grocery Stores and Supermarkets,GPC
18/05/2023-19/06/2023,Children & Family Services,Aldi Stores Uk,25/05/2023,2.29,Payments to Carers-Shared Live,Grocery Stores and Supermarkets,GPC
18/05/2023-19/06/2023,Children & Family Services,Aldi Stores Uk,01/06/2023,28.11,Payments to Carers-Shared Live,Grocery Stores and Supermarkets,GPC
18/05/2023-19/06/2023,Children & Family Services,Aldi Stores Uk,04/06/2023,45.35,Payments to Carers-Shared Live,Grocery Stores and Supermarkets,GPC
18/05/2023-19/06/2023,Children & Family Services,Allpay *emh Homes,01/06/2023,435.37,Payments to Carers-Shared Live,"Organizations, Charitable and Social Service",GPC
18/05/2023-19/06/2023,Children & Family Services,Allpay *emh Homes,16/06/2023,474.63,Payments to Carers-Shared Live,"Organizations, Charitable and Social Service",GPC
18/05/2023-19/06/2023,Children & Family Services,Allpay *longhurst Group,01/06/2023,657.87,Payments to Carers-Shared Live,"Organizations, Charitable and Social Service",GPC
18/05/2023-19/06/2023,Children & Family Services,Allpay *platform Housing,24/05/2023,850,Payments to Carers-Child Mindi,"Organizations, Charitable and Social Service",GPC
18/05/2023-19/06/2023,Children & Family Services,Allpay *platform Housing,19/05/2023,449.99,Payments to Carers-Shared Live,"Organizations, Charitable and Social Service",GPC
18/05/2023-19/06/2023,Children & Family Services,Allpay *platform Housing,23/05/2023,402.69,Payments to Carers-Shared Live,"Organizations, Charitable and Social Service",GPC
18/05/2023-19/06/2023,Children & Family Services,Allpay *platform Housing,14/06/2023,447.15,Payments to Carers-Shared Live,"Organizations, Charitable and Social Service",GPC
18/05/2023-19/06/2023,Children & Family Services,Allpay *stonewater Limite,09/06/2023,213.64,Payments to Carers-Foster Care,"Organizations, Charitable and Social Service",GPC
18/05/2023-19/06/2023,Children & Family Services,Amazon Music*ph0ah8u55,27/05/2023,8.99,Other Expenditure,Record Shops,GPC
18/05/2023-19/06/2023,Children & Family Services,Amazon Prime*5d9m87nv5,16/06/2023,8.99,Other Expenditure,Direct Marketing Continuity Subscription Merchants,GPC
18/05/2023-19/06/2023,Children & Family Services,Amazon Prime*cl5ia5yq5,05/06/2023,8.99,Other Expenditure,Direct Marketing Continuity Subscription Merchants,GPC
18/05/2023-19/06/2023,Children & Family Services,Amazon.Co.Uk,21/05/2023,5.99,Other Expenditure,Miscellaneous and Specialty Retail Stores,GPC
18/05/2023-19/06/2023,Children & Family Services,Amazon.Co.Uk*5v1o70yg5,30/05/2023,96.71,Other Expenditure,Other Direct Marketing-Other Direct Marketers,GPC
18/05/2023-19/06/2023,Children & Family Services,Amazon.Co.Uk*cj4l32x05,02/06/2023,24,Provisions Purchases,Other Direct Marketing-Other Direct Marketers,GPC
18/05/2023-19/06/2023,Children & Family Services,Amazon.Co.Uk*eg9y23wy5,06/06/2023,52.67,Other Expenditure,Other Direct Marketing-Other Direct Marketers,GPC
18/05/2023-19/06/2023,Children & Family Services,Amazon.Co.Uk*f96nc23c5,22/05/2023,10.76,Other Expenditure,Other Direct Marketing-Other Direct Marketers,GPC
18/05/2023-19/06/2023,Children & Family Services,Amazon.Co.Uk*tn8823215,30/05/2023,116.05,Other Expenditure,Other Direct Marketing-Other Direct Marketers,GPC
18/05/2023-19/06/2023,Children & Family Services,Amazon.Co.Uk*vi46h6kr5,07/06/2023,33.33,Other Expenditure,Other Direct Marketing-Other Direct Marketers,GPC
18/05/2023-19/06/2023,Children & Family Services,Amazon.Co.Uk*ze6507ga5,26/05/2023,14.21,Other Expenditure,Other Direct Marketing-Other Direct Marketers,GPC
18/05/2023-19/06/2023,Children & Family Services,Amz*amazon.Co.Uk,23/05/2023,-9.91,Materials,Miscellaneous and Specialty Retail Stores,GPC
18/05/2023-19/06/2023,Children & Family Services,Amz*amazon.Co.Uk,23/05/2023,-19.51,Materials,Miscellaneous and Specialty Retail Stores,GPC
18/05/2023-19/06/2023,Children & Family Services,Amz*amazon.Co.Uk,23/05/2023,-9.62,Other Expenditure,Miscellaneous and Specialty Retail Stores,GPC
18/05/2023-19/06/2023,Children & Family Services,Amz*amazon.Co.Uk,07/06/2023,-10.99,Provisions Purchases,Miscellaneous and Specialty Retail Stores,GPC
18/05/2023-19/06/2023,Children & Family Services,Amz*ming Seller,16/06/2023,-79.33,Provisions Purchases,Miscellaneous and Specialty Retail Stores,GPC
18/05/2023-19/06/2023,Children & Family Services,Amznbusiness*3m7nf6x25 Am,15/06/2023,9.16,General Equipment - Purchase &,Miscellaneous and Specialty Retail Stores,GPC
18/05/2023-19/06/2023,Children & Family Services,Amznbusiness*7j8ea1x55,26/05/2023,32.24,Other Expenditure,Miscellaneous and Specialty Retail Stores,GPC
18/05/2023-19/06/2023,Children & Family Services,Amznbusiness*7z8xe6ke5,19/05/2023,6.4,Other Expenditure,Miscellaneous and Specialty Retail Stores,GPC
18/05/2023-19/06/2023,Children & Family Services,Amznbusiness*8l6i50ad5,06/06/2023,74.99,Other Expenditure,Miscellaneous and Specialty Retail Stores,GPC
18/05/2023-19/06/2023,Children & Family Services,Amznbusiness*cm47u5zx5,31/05/2023,7,Payments to Carers-Foster Care,Miscellaneous and Specialty Retail Stores,GPC
18/05/2023-19/06/2023,Children & Family Services,Amznbusiness*dk7og2r85,13/06/2023,7.99,General Equipment - Purchase &,Miscellaneous and Specialty Retail Stores,GPC
18/05/2023-19/06/2023,Children & Family Services,Amznbusiness*e446q8nl5,01/06/2023,10.99,Payments to Carers-Foster Care,Miscellaneous and Specialty Retail Stores,GPC
18/05/2023-19/06/2023,Children & Family Services,Amznbusiness*ep71j6sj5,17/05/2023,24.99,Provisions Purchases,Miscellaneous and Specialty Retail Stores,GPC
18/05/2023-19/06/2023,Children & Family Services,Amznbusiness*hr9zq7fq5,26/05/2023,48.32,Other Expenditure,Miscellaneous and Specialty Retail Stores,GPC
18/05/2023-19/06/2023,Children & Family Services,Amznbusiness*ib62d7665,11/06/2023,45.42,General Equipment - Purchase &,Miscellaneous and Specialty Retail Stores,GPC
18/05/2023-19/06/2023,Children & Family Services,Amznbusiness*ib9vz6525,04/06/2023,83.33,General Equipment - Purchase &,Miscellaneous and Specialty Retail Stores,GPC
18/05/2023-19/06/2023,Children & Family Services,Amznbusiness*jb8pu4vs5,18/05/2023,165.61,Books & Audio Visual,Miscellaneous and Specialty Retail Stores,GPC
18/05/2023-19/06/2023,Children & Family Services,Amznbusiness*jy0tl4335,13/06/2023,7.63,Provisions Purchases,Miscellaneous and Specialty Retail Stores,GPC
18/05/2023-19/06/2023,Children & Family Services,Amznbusiness*l81yi8pg5,14/06/2023,52,Other Expenditure,Miscellaneous and Specialty Retail Stores,GPC
18/05/2023-19/06/2023,Children & Family Services,Amznbusiness*ne2bb4u25,01/06/2023,54.99,Payments to Carers-Foster Care,Miscellaneous and Specialty Retail Stores,GPC
18/05/2023-19/06/2023,Children & Family Services,Amznbusiness*pg7a242g5,01/06/2023,37.88,Materials,Miscellaneous and Specialty Retail Stores,GPC
18/05/2023-19/06/2023,Children & Family Services,Amznbusiness*u36oh56f5 Am,14/06/2023,28.79,Other Expenditure,Miscellaneous and Specialty Retail Stores,GPC
18/05/2023-19/06/2023,Children & Family Services,Amznbusiness*yx0n36e15 Am,21/05/2023,5.83,General Equipment - Purchase &,Miscellaneous and Specialty Retail Stores,GPC
18/05/2023-19/06/2023,Children & Family Services,Amznbusiness*z53jv9o35,01/06/2023,37.88,Materials,Miscellaneous and Specialty Retail Stores,GPC
18/05/2023-19/06/2023,Children & Family Services,Amznbusiness*z93zm7wx5 Am,07/06/2023,23.16,Materials,Miscellaneous and Specialty Retail Stores,GPC
18/05/2023-19/06/2023,Children & Family Services,Amznmktplace,17/05/2023,13.41,General Equipment - Purchase &,Miscellaneous and Specialty Retail Stores,GPC
18/05/2023-19/06/2023,Children & Family Services,Amznmktplace,18/05/2023,19.16,General Equipment - Purchase &,Miscellaneous and Specialty Retail Stores,GPC
18/05/2023-19/06/2023,Children & Family Services,Amznmktplace,18/05/2023,27.46,General Equipment - Purchase &,Miscellaneous and Specialty Retail Stores,GPC
18/05/2023-19/06/2023,Children & Family Services,Amznmktplace,18/05/2023,20.83,General Equipment - Purchase &,Miscellaneous and Specialty Retail Stores,GPC
18/05/2023-19/06/2023,Children & Family Services,Amznmktplace,18/05/2023,37.49,General Equipment - Purchase &,Miscellaneous and Specialty Retail Stores,GPC
18/05/2023-19/06/2023,Children & Family Services,Amznmktplace,18/05/2023,5.83,General Equipment - Purchase &,Miscellaneous and Specialty Retail Stores,GPC
18/05/2023-19/06/2023,Children & Family Services,Amznmktplace,18/05/2023,7.49,General Equipment - Purchase &,Miscellaneous and Specialty Retail Stores,GPC
18/05/2023-19/06/2023,Children & Family Services,Amznmktplace,18/05/2023,7.07,General Equipment - Purchase &,Miscellaneous and Specialty Retail Stores,GPC
18/05/2023-19/06/2023,Children & Family Services,Amznmktplace,18/05/2023,4.99,General Equipment - Purchase &,Miscellaneous and Specialty Retail Stores,GPC
18/05/2023-19/06/2023,Children & Family Services,Amznmktplace,18/05/2023,6.66,General Equipment - Purchase &,Miscellaneous and Specialty Retail Stores,GPC
18/05/2023-19/06/2023,Children & Family Services,Amznmktplace,18/05/2023,15.14,General Equipment - Purchase &,Miscellaneous and Specialty Retail Stores,GPC
18/05/2023-19/06/2023,Children & Family Services,Amznmktplace,18/05/2023,16.58,General Equipment - Purchase &,Miscellaneous and Specialty Retail Stores,GPC
18/05/2023-19/06/2023,Children & Family Services,Amznmktplace,18/05/2023,52.37,General Equipment - Purchase &,Miscellaneous and Specialty Retail Stores,GPC
18/05/2023-19/06/2023,Children & Family Services,Amznmktplace,18/05/2023,6.66,General Equipment - Purchase &,Miscellaneous and Specialty Retail Stores,GPC
18/05/2023-19/06/2023,Children & Family Services,Amznmktplace,19/05/2023,15.83,General Equipment - Purchase &,Miscellaneous and Specialty Retail Stores,GPC
18/05/2023-19/06/2023,Children & Family Services,Amznmktplace,19/05/2023,12.07,General Equipment - Purchase &,Miscellaneous and Specialty Retail Stores,GPC
18/05/2023-19/06/2023,Children & Family Services,Amznmktplace,21/05/2023,4.78,General Equipment - Purchase &,Miscellaneous and Specialty Retail Stores,GPC
18/05/2023-19/06/2023,Children & Family Services,Amznmktplace,22/05/2023,138.28,General Equipment - Purchase &,Miscellaneous and Specialty Retail Stores,GPC
18/05/2023-19/06/2023,Children & Family Services,Amznmktplace,22/05/2023,19.99,General Equipment - Purchase &,Miscellaneous and Specialty Retail Stores,GPC
18/05/2023-19/06/2023,Children & Family Services,Amznmktplace,22/05/2023,7.46,General Equipment - Purchase &,Miscellaneous and Specialty Retail Stores,GPC
18/05/2023-19/06/2023,Children & Family Services,Amznmktplace,22/05/2023,61.67,General Equipment - Purchase &,Miscellaneous and Specialty Retail Stores,GPC
18/05/2023-19/06/2023,Children & Family Services,Amznmktplace,23/05/2023,17.49,General Equipment - Purchase &,Miscellaneous and Specialty Retail Stores,GPC
18/05/2023-19/06/2023,Children & Family Services,Amznmktplace,25/05/2023,422.48,General Equipment - Purchase &,Miscellaneous and Specialty Retail Stores,GPC
18/05/2023-19/06/2023,Children & Family Services,Amznmktplace,29/05/2023,14.99,General Equipment - Purchase &,Miscellaneous and Specialty Retail Stores,GPC
18/05/2023-19/06/2023,Children & Family Services,Amznmktplace,30/05/2023,10.23,General Equipment - Purchase &,Miscellaneous and Specialty Retail Stores,GPC
18/05/2023-19/06/2023,Children & Family Services,Amznmktplace,30/05/2023,6.65,General Equipment - Purchase &,Miscellaneous and Specialty Retail Stores,GPC
18/05/2023-19/06/2023,Children & Family Services,Amznmktplace,30/05/2023,4.99,General Equipment - Purchase &,Miscellaneous and Specialty Retail Stores,GPC
18/05/2023-19/06/2023,Children & Family Services,Amznmktplace,01/06/2023,34.08,General Equipment - Purchase &,Miscellaneous and Specialty Retail Stores,GPC
18/05/2023-19/06/2023,Children & Family Services,Amznmktplace,01/06/2023,9.83,General Equipment - Purchase &,Miscellaneous and Specialty Retail Stores,GPC
18/05/2023-19/06/2023,Children & Family Services,Amznmktplace,01/06/2023,8.29,General Equipment - Purchase &,Miscellaneous and Specialty Retail Stores,GPC
18/05/2023-19/06/2023,Children & Family Services,Amznmktplace,05/06/2023,28.32,General Equipment - Purchase &,Miscellaneous and Specialty Retail Stores,GPC
18/05/2023-19/06/2023,Children & Family Services,Amznmktplace,05/06/2023,21.66,General Equipment - Purchase &,Miscellaneous and Specialty Retail Stores,GPC
18/05/2023-19/06/2023,Children & Family Services,Amznmktplace,07/06/2023,4.16,General Equipment - Purchase &,Miscellaneous and Specialty Retail Stores,GPC
18/05/2023-19/06/2023,Children & Family Services,Amznmktplace,07/06/2023,12.92,General Equipment - Purchase &,Miscellaneous and Specialty Retail Stores,GPC
18/05/2023-19/06/2023,Children & Family Services,Amznmktplace,08/06/2023,54.55,General Equipment - Purchase &,Miscellaneous and Specialty Retail Stores,GPC
18/05/2023-19/06/2023,Children & Family Services,Amznmktplace,09/06/2023,166.63,General Equipment - Purchase &,Miscellaneous and Specialty Retail Stores,GPC
18/05/2023-19/06/2023,Children & Family Services,Amznmktplace,09/06/2023,106.66,General Equipment - Purchase &,Miscellaneous and Specialty Retail Stores,GPC
18/05/2023-19/06/2023,Children & Family Services,Amznmktplace,10/06/2023,21.66,General Equipment - Purchase &,Miscellaneous and Specialty Retail Stores,GPC
18/05/2023-19/06/2023,Children & Family Services,Amznmktplace,11/06/2023,5.69,General Equipment - Purchase &,Miscellaneous and Specialty Retail Stores,GPC
18/05/2023-19/06/2023,Children & Family Services,Amznmktplace,11/06/2023,11.33,General Equipment - Purchase &,Miscellaneous and Specialty Retail Stores,GPC
18/05/2023-19/06/2023,Children & Family Services,Amznmktplace,11/06/2023,3.74,General Equipment - Purchase &,Miscellaneous and Specialty Retail Stores,GPC
18/05/2023-19/06/2023,Children & Family Services,Amznmktplace,11/06/2023,11.15,General Equipment - Purchase &,Miscellaneous and Specialty Retail Stores,GPC
18/05/2023-19/06/2023,Children & Family Services,Amznmktplace,11/06/2023,7.48,General Equipment - Purchase &,Miscellaneous and Specialty Retail Stores,GPC
18/05/2023-19/06/2023,Children & Family Services,Amznmktplace,11/06/2023,3.07,General Equipment - Purchase &,Miscellaneous and Specialty Retail Stores,GPC
18/05/2023-19/06/2023,Children & Family Services,Amznmktplace,11/06/2023,6.65,General Equipment - Purchase &,Miscellaneous and Specialty Retail Stores,GPC
18/05/2023-19/06/2023,Children & Family Services,Amznmktplace,11/06/2023,2.8,General Equipment - Purchase &,Miscellaneous and Specialty Retail Stores,GPC
18/05/2023-19/06/2023,Children & Family Services,Amznmktplace,12/06/2023,14.16,General Equipment - Purchase &,Miscellaneous and Specialty Retail Stores,GPC
18/05/2023-19/06/2023,Children & Family Services,Amznmktplace,12/06/2023,29.96,General Equipment - Purchase &,Miscellaneous and Specialty Retail Stores,GPC
18/05/2023-19/06/2023,Children & Family Services,Amznmktplace,12/06/2023,21.65,General Equipment - Purchase &,Miscellaneous and Specialty Retail Stores,GPC
18/05/2023-19/06/2023,Children & Family Services,Amznmktplace,12/06/2023,8.33,General Equipment - Purchase &,Miscellaneous and Specialty Retail Stores,GPC
18/05/2023-19/06/2023,Children & Family Services,Amznmktplace,12/06/2023,18.19,General Equipment - Purchase &,Miscellaneous and Specialty Retail Stores,GPC
18/05/2023-19/06/2023,Children & Family Services,Amznmktplace,12/06/2023,3.2,General Equipment - Purchase &,Miscellaneous and Specialty Retail Stores,GPC
18/05/2023-19/06/2023,Children & Family Services,Amznmktplace,13/06/2023,8.33,General Equipment - Purchase &,Miscellaneous and Specialty Retail Stores,GPC
18/05/2023-19/06/2023,Children & Family Services,Amznmktplace,13/06/2023,8.98,General Equipment - Purchase &,Miscellaneous and Specialty Retail Stores,GPC
18/05/2023-19/06/2023,Children & Family Services,Amznmktplace,14/06/2023,21.65,General Equipment - Purchase &,Miscellaneous and Specialty Retail Stores,GPC
18/05/2023-19/06/2023,Children & Family Services,Amznmktplace,15/06/2023,10.99,General Equipment - Purchase &,Miscellaneous and Specialty Retail Stores,GPC
18/05/2023-19/06/2023,Children & Family Services,Amznmktplace,15/06/2023,9.16,General Equipment - Purchase &,Miscellaneous and Specialty Retail Stores,GPC
18/05/2023-19/06/2023,Children & Family Services,Amznmktplace,15/06/2023,126.64,General Equipment - Purchase &,Miscellaneous and Specialty Retail Stores,GPC
18/05/2023-19/06/2023,Children & Family Services,Amznmktplace,15/06/2023,24.99,General Equipment - Purchase &,Miscellaneous and Specialty Retail Stores,GPC
18/05/2023-19/06/2023,Children & Family Services,Amznmktplace,15/06/2023,10.79,General Equipment - Purchase &,Miscellaneous and Specialty Retail Stores,GPC
18/05/2023-19/06/2023,Children & Family Services,Amznmktplace,15/06/2023,19.98,General Equipment - Purchase &,Miscellaneous and Specialty Retail Stores,GPC
18/05/2023-19/06/2023,Children & Family Services,Amznmktplace,16/06/2023,34.16,General Equipment - Purchase &,Miscellaneous and Specialty Retail Stores,GPC
18/05/2023-19/06/2023,Children & Family Services,Amznmktplace,16/06/2023,66.67,General Equipment - Purchase &,Miscellaneous and Specialty Retail Stores,GPC
18/05/2023-19/06/2023,Children & Family Services,Amznmktplace,16/06/2023,12.49,General Equipment - Purchase &,Miscellaneous and Specialty Retail Stores,GPC
18/05/2023-19/06/2023,Children & Family Services,Amznmktplace,16/06/2023,37.08,General Equipment - Purchase &,Miscellaneous and Specialty Retail Stores,GPC
18/05/2023-19/06/2023,Children & Family Services,Amznmktplace,16/06/2023,13.33,General Equipment - Purchase &,Miscellaneous and Specialty Retail Stores,GPC
18/05/2023-19/06/2023,Children & Family Services,Amznmktplace,16/06/2023,22.15,General Equipment - Purchase &,Miscellaneous and Specialty Retail Stores,GPC
18/05/2023-19/06/2023,Children & Family Services,Amznmktplace,17/06/2023,17.47,General Equipment - Purchase &,Miscellaneous and Specialty Retail Stores,GPC
18/05/2023-19/06/2023,Children & Family Services,Amznmktplace,18/06/2023,3.66,General Equipment - Purchase &,Miscellaneous and Specialty Retail Stores,GPC
18/05/2023-19/06/2023,Children & Family Services,Amznmktplace,18/06/2023,9.99,General Equipment - Purchase &,Miscellaneous and Specialty Retail Stores,GPC
18/05/2023-19/06/2023,Children & Family Services,Amznmktplace,24/05/2023,266.17,Grants,Miscellaneous and Specialty Retail Stores,GPC
18/05/2023-19/06/2023,Children & Family Services,Amznmktplace,25/05/2023,228.05,Grants,Miscellaneous and Specialty Retail Stores,GPC
18/05/2023-19/06/2023,Children & Family Services,Amznmktplace,25/05/2023,58.95,Grants,Miscellaneous and Specialty Retail Stores,GPC
18/05/2023-19/06/2023,Children & Family Services,Amznmktplace,25/05/2023,111.23,Grants,Miscellaneous and Specialty Retail Stores,GPC
18/05/2023-19/06/2023,Children & Family Services,Amznmktplace,25/05/2023,74.01,Grants,Miscellaneous and Specialty Retail Stores,GPC
18/05/2023-19/06/2023,Children & Family Services,Amznmktplace,25/05/2023,40.42,Grants,Miscellaneous and Specialty Retail Stores,GPC
18/05/2023-19/06/2023,Children & Family Services,Amznmktplace,26/05/2023,53.05,Grants,Miscellaneous and Specialty Retail Stores,GPC
18/05/2023-19/06/2023,Children & Family Services,Amznmktplace,26/05/2023,375.64,Grants,Miscellaneous and Specialty Retail Stores,GPC
18/05/2023-19/06/2023,Children & Family Services,Amznmktplace,08/06/2023,136.65,IT Equipment Hardware,Miscellaneous and Specialty Retail Stores,GPC
18/05/2023-19/06/2023,Children & Family Services,Amznmktplace,19/06/2023,157.05,IT Equipment Hardware,Miscellaneous and Specialty Retail Stores,GPC
18/05/2023-19/06/2023,Children & Family Services,Amznmktplace,18/05/2023,15.83,Materials,Miscellaneous and Specialty Retail Stores,GPC
18/05/2023-19/06/2023,Children & Family Services,Amznmktplace,18/05/2023,9.15,Materials,Miscellaneous and Specialty Retail Stores,GPC
18/05/2023-19/06/2023,Children & Family Services,Amznmktplace,22/05/2023,19.15,Materials,Miscellaneous and Specialty Retail Stores,GPC
18/05/2023-19/06/2023,Children & Family Services,Amznmktplace,23/05/2023,13.32,Materials,Miscellaneous and Specialty Retail Stores,GPC
18/05/2023-19/06/2023,Children & Family Services,Amznmktplace,24/05/2023,55.35,Materials,Miscellaneous and Specialty Retail Stores,GPC
18/05/2023-19/06/2023,Children & Family Services,Amznmktplace,24/05/2023,116.66,Materials,Miscellaneous and Specialty Retail Stores,GPC
18/05/2023-19/06/2023,Children & Family Services,Amznmktplace,24/05/2023,13.32,Materials,Miscellaneous and Specialty Retail Stores,GPC
18/05/2023-19/06/2023,Children & Family Services,Amznmktplace,25/05/2023,5.83,Materials,Miscellaneous and Specialty Retail Stores,GPC
18/05/2023-19/06/2023,Children & Family Services,Amznmktplace,25/05/2023,4.99,Materials,Miscellaneous and Specialty Retail Stores,GPC
18/05/2023-19/06/2023,Children & Family Services,Amznmktplace,25/05/2023,7.49,Materials,Miscellaneous and Specialty Retail Stores,GPC
18/05/2023-19/06/2023,Children & Family Services,Amznmktplace,25/05/2023,7.49,Materials,Miscellaneous and Specialty Retail Stores,GPC
18/05/2023-19/06/2023,Children & Family Services,Amznmktplace,25/05/2023,6.32,Materials,Miscellaneous and Specialty Retail Stores,GPC
18/05/2023-19/06/2023,Children & Family Services,Amznmktplace,25/05/2023,14.12,Materials,Miscellaneous and Specialty Retail Stores,GPC
18/05/2023-19/06/2023,Children & Family Services,Amznmktplace,25/05/2023,17.67,Materials,Miscellaneous and Specialty Retail Stores,GPC
18/05/2023-19/06/2023,Children & Family Services,Amznmktplace,25/05/2023,9.87,Materials,Miscellaneous and Specialty Retail Stores,GPC
18/05/2023-19/06/2023,Children & Family Services,Amznmktplace,26/05/2023,10.95,Materials,Miscellaneous and Specialty Retail Stores,GPC
18/05/2023-19/06/2023,Children & Family Services,Amznmktplace,26/05/2023,5.99,Materials,Miscellaneous and Specialty Retail Stores,GPC
18/05/2023-19/06/2023,Children & Family Services,Amznmktplace,26/05/2023,5.83,Materials,Miscellaneous and Specialty Retail Stores,GPC
18/05/2023-19/06/2023,Children & Family Services,Amznmktplace,28/05/2023,6.98,Materials,Miscellaneous and Specialty Retail Stores,GPC
18/05/2023-19/06/2023,Children & Family Services,Amznmktplace,30/05/2023,8.33,Materials,Miscellaneous and Specialty Retail Stores,GPC
18/05/2023-19/06/2023,Children & Family Services,Amznmktplace,06/06/2023,6.66,Materials,Miscellaneous and Specialty Retail Stores,GPC
18/05/2023-19/06/2023,Children & Family Services,Amznmktplace,07/06/2023,129.05,Materials,Miscellaneous and Specialty Retail Stores,GPC
18/05/2023-19/06/2023,Children & Family Services,Amznmktplace,13/06/2023,230.43,Materials,Miscellaneous and Specialty Retail Stores,GPC
18/05/2023-19/06/2023,Children & Family Services,Amznmktplace,14/06/2023,10.74,Materials,Miscellaneous and Specialty Retail Stores,GPC
18/05/2023-19/06/2023,Children & Family Services,Amznmktplace,14/06/2023,11.47,Materials,Miscellaneous and Specialty Retail Stores,GPC
18/05/2023-19/06/2023,Children & Family Services,Amznmktplace,14/06/2023,14.13,Materials,Miscellaneous and Specialty Retail Stores,GPC
18/05/2023-19/06/2023,Children & Family Services,Amznmktplace,14/06/2023,13.48,Materials,Miscellaneous and Specialty Retail Stores,GPC
18/05/2023-19/06/2023,Children & Family Services,Amznmktplace,14/06/2023,66.66,Materials,Miscellaneous and Specialty Retail Stores,GPC
18/05/2023-19/06/2023,Children & Family Services,Amznmktplace,15/06/2023,5.98,Materials,Miscellaneous and Specialty Retail Stores,GPC
18/05/2023-19/06/2023,Children & Family Services,Amznmktplace,15/06/2023,5.74,Materials,Miscellaneous and Specialty Retail Stores,GPC
18/05/2023-19/06/2023,Children & Family Services,Amznmktplace,16/06/2023,8.73,Materials,Miscellaneous and Specialty Retail Stores,GPC
18/05/2023-19/06/2023,Children & Family Services,Amznmktplace,18/05/2023,134.73,Other Expenditure,Miscellaneous and Specialty Retail Stores,GPC
18/05/2023-19/06/2023,Children & Family Services,Amznmktplace,25/05/2023,24.43,Other Expenditure,Miscellaneous and Specialty Retail Stores,GPC
18/05/2023-19/06/2023,Children & Family Services,Amznmktplace,26/05/2023,46.32,Other Expenditure,Miscellaneous and Specialty Retail Stores,GPC
18/05/2023-19/06/2023,Children & Family Services,Amznmktplace,26/05/2023,9.93,Other Expenditure,Miscellaneous and Specialty Retail Stores,GPC
18/05/2023-19/06/2023,Children & Family Services,Amznmktplace,30/05/2023,22.33,Other Expenditure,Miscellaneous and Specialty Retail Stores,GPC
18/05/2023-19/06/2023,Children & Family Services,Amznmktplace,30/05/2023,12.46,Other Expenditure,Miscellaneous and Specialty Retail Stores,GPC
18/05/2023-19/06/2023,Children & Family Services,Amznmktplace,30/05/2023,6.9,Other Expenditure,Miscellaneous and Specialty Retail Stores,GPC
18/05/2023-19/06/2023,Children & Family Services,Amznmktplace,30/05/2023,11.12,Other Expenditure,Miscellaneous and Specialty Retail Stores,GPC
18/05/2023-19/06/2023,Children & Family Services,Amznmktplace,30/05/2023,8.99,Other Expenditure,Miscellaneous and Specialty Retail Stores,GPC
18/05/2023-19/06/2023,Children & Family Services,Amznmktplace,02/06/2023,35.23,Other Expenditure,Miscellaneous and Specialty Retail Stores,GPC
18/05/2023-19/06/2023,Children & Family Services,Amznmktplace,05/06/2023,20.79,Other Expenditure,Miscellaneous and Specialty Retail Stores,GPC
18/05/2023-19/06/2023,Children & Family Services,Amznmktplace,07/06/2023,37.46,Other Expenditure,Miscellaneous and Specialty Retail Stores,GPC
18/05/2023-19/06/2023,Children & Family Services,Amznmktplace,07/06/2023,13.32,Other Expenditure,Miscellaneous and Specialty Retail Stores,GPC
18/05/2023-19/06/2023,Children & Family Services,Amznmktplace,13/06/2023,5.83,Other Expenditure,Miscellaneous and Specialty Retail Stores,GPC
18/05/2023-19/06/2023,Children & Family Services,Amznmktplace,16/06/2023,16.99,Other Expenditure,Miscellaneous and Specialty Retail Stores,GPC
18/05/2023-19/06/2023,Children & Family Services,Amznmktplace,16/06/2023,83.6,Other Expenditure,Miscellaneous and Specialty Retail Stores,GPC
18/05/2023-19/06/2023,Children & Family Services,Amznmktplace,02/06/2023,29.13,Other Services ,Miscellaneous and Specialty Retail Stores,GPC
18/05/2023-19/06/2023,Children & Family Services,Amznmktplace,19/05/2023,46.59,Payments to Carers-Child Mindi,Miscellaneous and Specialty Retail Stores,GPC
18/05/2023-19/06/2023,Children & Family Services,Amznmktplace,05/06/2023,28.63,Payments to Carers-Child Mindi,Miscellaneous and Specialty Retail Stores,GPC
18/05/2023-19/06/2023,Children & Family Services,Amznmktplace,04/06/2023,309.99,Payments to Carers-Foster Care,Miscellaneous and Specialty Retail Stores,GPC
18/05/2023-19/06/2023,Children & Family Services,Amznmktplace,13/06/2023,53.75,Payments to Carers-Retainers,Miscellaneous and Specialty Retail Stores,GPC
18/05/2023-19/06/2023,Children & Family Services,Amznmktplace,13/06/2023,31.94,Payments to Carers-Retainers,Miscellaneous and Specialty Retail Stores,GPC
18/05/2023-19/06/2023,Children & Family Services,Amznmktplace,13/06/2023,59.16,Payments to Carers-Retainers,Miscellaneous and Specialty Retail Stores,GPC
18/05/2023-19/06/2023,Children & Family Services,Amznmktplace,13/06/2023,16.31,Payments to Carers-Retainers,Miscellaneous and Specialty Retail Stores,GPC
18/05/2023-19/06/2023,Children & Family Services,Amznmktplace,13/06/2023,5.79,Payments to Carers-Retainers,Miscellaneous and Specialty Retail Stores,GPC
18/05/2023-19/06/2023,Children & Family Services,Amznmktplace,13/06/2023,8.32,Payments to Carers-Retainers,Miscellaneous and Specialty Retail Stores,GPC
18/05/2023-19/06/2023,Children & Family Services,Amznmktplace,16/06/2023,32.84,Payments to Carers-Shared Live,Miscellaneous and Specialty Retail Stores,GPC
18/05/2023-19/06/2023,Children & Family Services,Amznmktplace,17/05/2023,13.14,Provisions Purchases,Miscellaneous and Specialty Retail Stores,GPC
18/05/2023-19/06/2023,Children & Family Services,Amznmktplace,17/05/2023,7.5,Provisions Purchases,Miscellaneous and Specialty Retail Stores,GPC
18/05/2023-19/06/2023,Children & Family Services,Amznmktplace,17/05/2023,4.23,Provisions Purchases,Miscellaneous and Specialty Retail Stores,GPC
18/05/2023-19/06/2023,Children & Family Services,Amznmktplace,17/05/2023,2.99,Provisions Purchases,Miscellaneous and Specialty Retail Stores,GPC
18/05/2023-19/06/2023,Children & Family Services,Amznmktplace,18/05/2023,13.33,Provisions Purchases,Miscellaneous and Specialty Retail Stores,GPC
18/05/2023-19/06/2023,Children & Family Services,Amznmktplace,18/05/2023,9.98,Provisions Purchases,Miscellaneous and Specialty Retail Stores,GPC
18/05/2023-19/06/2023,Children & Family Services,Amznmktplace,18/05/2023,14.24,Provisions Purchases,Miscellaneous and Specialty Retail Stores,GPC
18/05/2023-19/06/2023,Children & Family Services,Amznmktplace,20/05/2023,10.01,Provisions Purchases,Miscellaneous and Specialty Retail Stores,GPC
18/05/2023-19/06/2023,Children & Family Services,Amznmktplace,22/05/2023,7.49,Provisions Purchases,Miscellaneous and Specialty Retail Stores,GPC
18/05/2023-19/06/2023,Children & Family Services,Amznmktplace,22/05/2023,74.98,Provisions Purchases,Miscellaneous and Specialty Retail Stores,GPC
18/05/2023-19/06/2023,Children & Family Services,Amznmktplace,23/05/2023,87.48,Provisions Purchases,Miscellaneous and Specialty Retail Stores,GPC
18/05/2023-19/06/2023,Children & Family Services,Amznmktplace,25/05/2023,40.97,Provisions Purchases,Miscellaneous and Specialty Retail Stores,GPC
18/05/2023-19/06/2023,Children & Family Services,Amznmktplace,25/05/2023,16.66,Provisions Purchases,Miscellaneous and Specialty Retail Stores,GPC
18/05/2023-19/06/2023,Children & Family Services,Amznmktplace,25/05/2023,33.3,Provisions Purchases,Miscellaneous and Specialty Retail Stores,GPC
18/05/2023-19/06/2023,Children & Family Services,Amznmktplace,01/06/2023,14.95,Provisions Purchases,Miscellaneous and Specialty Retail Stores,GPC
18/05/2023-19/06/2023,Children & Family Services,Amznmktplace,06/06/2023,7.48,Provisions Purchases,Miscellaneous and Specialty Retail Stores,GPC
18/05/2023-19/06/2023,Children & Family Services,Amznmktplace,06/06/2023,4.16,Provisions Purchases,Miscellaneous and Specialty Retail Stores,GPC
18/05/2023-19/06/2023,Children & Family Services,Amznmktplace,08/06/2023,24.85,Provisions Purchases,Miscellaneous and Specialty Retail Stores,GPC
18/05/2023-19/06/2023,Children & Family Services,Amznmktplace,14/06/2023,66.63,Provisions Purchases,Miscellaneous and Specialty Retail Stores,GPC
18/05/2023-19/06/2023,Children & Family Services,Amznmktplace,14/06/2023,9.99,Provisions Purchases,Miscellaneous and Specialty Retail Stores,GPC
18/05/2023-19/06/2023,Children & Family Services,Amznmktplace,15/06/2023,24.99,Provisions Purchases,Miscellaneous and Specialty Retail Stores,GPC
18/05/2023-19/06/2023,Children & Family Services,Amznmktplace,15/06/2023,18.32,Provisions Purchases,Miscellaneous and Specialty Retail Stores,GPC
18/05/2023-19/06/2023,Children & Family Services,Amznmktplace,15/06/2023,13.32,Provisions Purchases,Miscellaneous and Specialty Retail Stores,GPC
18/05/2023-19/06/2023,Children & Family Services,Amznmktplace,15/06/2023,105.76,Provisions Purchases,Miscellaneous and Specialty Retail Stores,GPC
18/05/2023-19/06/2023,Children & Family Services,Amznmktplace,15/06/2023,12.58,Provisions Purchases,Miscellaneous and Specialty Retail Stores,GPC
18/05/2023-19/06/2023,Children & Family Services,Amznmktplace,16/06/2023,149.04,Provisions Purchases,Miscellaneous and Specialty Retail Stores,GPC
18/05/2023-19/06/2023,Children & Family Services,Amznmktplace,16/06/2023,4.99,Provisions Purchases,Miscellaneous and Specialty Retail Stores,GPC
18/05/2023-19/06/2023,Children & Family Services,Ao Retail Limited,17/05/2023,-344,Materials,Household Appliance Stores,GPC
18/05/2023-19/06/2023,Children & Family Services,Ao Retail Limited,17/05/2023,-60,Materials,Household Appliance Stores,GPC
18/05/2023-19/06/2023,Children & Family Services,Ao Retail Limited,18/05/2023,832,Materials,Household Appliance Stores,GPC
18/05/2023-19/06/2023,Children & Family Services,Ao Retail Limited,19/05/2023,229,Materials,Household Appliance Stores,GPC
18/05/2023-19/06/2023,Children & Family Services,Apcoa,22/05/2023,7,Other Expenditure,Automobile Parking Lots and Garages,GPC
18/05/2023-19/06/2023,Children & Family Services,Argos Enderby,31/05/2023,-83.33,General Equipment - Purchase &,Discount Stores,GPC
18/05/2023-19/06/2023,Children & Family Services,Argos Hinckley Ins,26/05/2023,695.9,Payments to Carers-Foster Care,Discount Stores,GPC
18/05/2023-19/06/2023,Children & Family Services,Argos Hinckley Ins,26/05/2023,12,Payments to Carers-Foster Care,Discount Stores,GPC
18/05/2023-19/06/2023,Children & Family Services,Argos Leic North (Inside,22/05/2023,89.99,Payments to Carers-Foster Care,Discount Stores,GPC
18/05/2023-19/06/2023,Children & Family Services,Argos Loughborough,19/05/2023,89.99,Payments to Carers-Foster Care,Discount Stores,GPC
18/05/2023-19/06/2023,Children & Family Services,Arriva Midlands Limited,22/05/2023,2,Client / Volunteers Reimbursem,Bus Lines,GPC
18/05/2023-19/06/2023,Children & Family Services,Arriva UK Bus,08/06/2023,73,Other Transport Costs,Bus Lines,GPC
18/05/2023-19/06/2023,Children & Family Services,Arriva UK Bus,23/05/2023,73,Payments to Carers-Retainers,Bus Lines,GPC
18/05/2023-19/06/2023,Children & Family Services,Arriva UK Bus,24/05/2023,89.5,Payments to Carers-Retainers,Bus Lines,GPC
18/05/2023-19/06/2023,Children & Family Services,Arriva UK Bus,18/05/2023,66,Payments to Carers-Shared Live,Bus Lines,GPC
18/05/2023-19/06/2023,Children & Family Services,Arriva UK Bus,30/05/2023,19,Payments to Carers-Shared Live,Bus Lines,GPC
18/05/2023-19/06/2023,Children & Family Services,Arriva UK Bus,31/05/2023,14.3,Payments to Carers-Shared Live,Bus Lines,GPC
18/05/2023-19/06/2023,Children & Family Services,Asda George Com Leeds,26/05/2023,158.5,Payments to Carers-Foster Care,Grocery Stores and Supermarkets,GPC
18/05/2023-19/06/2023,Children & Family Services,Asda Stores,31/05/2023,31.67,Other Expenditure,Grocery Stores and Supermarkets,GPC
18/05/2023-19/06/2023,Children & Family Services,Asda Stores 4533,17/05/2023,12.29,Catering,Grocery Stores and Supermarkets,GPC
18/05/2023-19/06/2023,Children & Family Services,Asda Stores 4533,12/06/2023,3.1,Catering,Grocery Stores and Supermarkets,GPC
18/05/2023-19/06/2023,Children & Family Services,Asda Stores 4533,16/06/2023,11.15,Catering,Grocery Stores and Supermarkets,GPC
18/05/2023-19/06/2023,Children & Family Services,Asda Stores 4533,24/05/2023,19,General Equipment - Purchase &,Grocery Stores and Supermarkets,GPC
18/05/2023-19/06/2023,Children & Family Services,Asda Stores 4533,08/06/2023,12.82,General Equipment - Purchase &,Grocery Stores and Supermarkets,GPC
18/05/2023-19/06/2023,Children & Family Services,Asda Stores 4533,23/05/2023,6.75,Materials,Grocery Stores and Supermarkets,GPC
18/05/2023-19/06/2023,Children & Family Services,Asda Stores 4533,09/06/2023,6.85,Materials,Grocery Stores and Supermarkets,GPC
18/05/2023-19/06/2023,Children & Family Services,Asda Stores 4533,13/06/2023,4.42,Other Expenditure,Grocery Stores and Supermarkets,GPC
18/05/2023-19/06/2023,Children & Family Services,Asda Stores 4533,19/05/2023,38.95,Payments to Carers-Shared Live,Grocery Stores and Supermarkets,GPC
18/05/2023-19/06/2023,Children & Family Services,Asda Stores 4533,26/05/2023,12.45,Payments to Carers-Shared Live,Grocery Stores and Supermarkets,GPC
18/05/2023-19/06/2023,Children & Family Services,Asda Stores 4533,26/05/2023,24.15,Payments to Carers-Shared Live,Grocery Stores and Supermarkets,GPC
18/05/2023-19/06/2023,Children & Family Services,Asda Stores 4798,04/06/2023,48.58,Materials,Grocery Stores and Supermarkets,GPC
18/05/2023-19/06/2023,Children & Family Services,Asda Stores 4798,17/05/2023,32.78,Payments to Carers-Foster Care,Grocery Stores and Supermarkets,GPC
18/05/2023-19/06/2023,Children & Family Services,Asda Stores 4798,29/05/2023,164.18,Payments to Carers-Foster Care,Grocery Stores and Supermarkets,GPC
18/05/2023-19/06/2023,Children & Family Services,Asda Stores 4798,23/05/2023,100.07,Payments to Carers-Shared Live,Grocery Stores and Supermarkets,GPC
18/05/2023-19/06/2023,Children & Family Services,Asda Superstore,07/06/2023,113,Materials,Grocery Stores and Supermarkets,GPC
18/05/2023-19/06/2023,Children & Family Services,Asda Superstore,17/05/2023,32.18,Payments to Carers-Foster Care,Grocery Stores and Supermarkets,GPC
18/05/2023-19/06/2023,Children & Family Services,Asda Superstore,20/05/2023,14.95,Payments to Carers-Shared Live,Grocery Stores and Supermarkets,GPC
18/05/2023-19/06/2023,Children & Family Services,Asda Superstore,02/06/2023,20.75,Payments to Carers-Shared Live,Grocery Stores and Supermarkets,GPC
18/05/2023-19/06/2023,Children & Family Services,B & Q 1052,05/06/2023,63.33,General Equipment - Purchase &,Home Supply Warehouse Stores,GPC
18/05/2023-19/06/2023,Children & Family Services,B & Q 1052,31/05/2023,95.71,Other Expenditure,Home Supply Warehouse Stores,GPC
18/05/2023-19/06/2023,Children & Family Services,B & Q 1052,16/06/2023,28,Other Expenditure,Home Supply Warehouse Stores,GPC
18/05/2023-19/06/2023,Children & Family Services,B & Q 1052,08/06/2023,47.4,Payments to Carers-Shared Live,Home Supply Warehouse Stores,GPC
18/05/2023-19/06/2023,Children & Family Services,B & Q 1052,08/06/2023,113.07,Payments to Carers-Shared Live,Home Supply Warehouse Stores,GPC
18/05/2023-19/06/2023,Children & Family Services,B Faulkner And Sons,02/06/2023,300,Materials,Grocery Stores and Supermarkets,GPC
18/05/2023-19/06/2023,Children & Family Services,B&m 404 - Coalville,05/06/2023,11.49,Provisions Purchases,Miscellaneous General Merchandise,GPC
18/05/2023-19/06/2023,Children & Family Services,B&m 471 - Hs Leicester,04/06/2023,13.75,Payments to Carers-Foster Care,Miscellaneous General Merchandise,GPC
18/05/2023-19/06/2023,Children & Family Services,B&m 597 - Rockingham,02/06/2023,7.2,Other Expenditure,Miscellaneous General Merchandise,GPC
18/05/2023-19/06/2023,Children & Family Services,B&m 597 - Rockingham,07/06/2023,36.75,Payments to Carers-Foster Care,Miscellaneous General Merchandise,GPC
18/05/2023-19/06/2023,Children & Family Services,Baker Ross,12/06/2023,106.54,General Equipment - Purchase &,"Artist Supply Stores, Craft Shops",GPC
18/05/2023-19/06/2023,Children & Family Services,Bbs Bakers And Barista,18/05/2023,8.45,Payments to Carers-Shared Live,"Eating Places, Restaurants",GPC
18/05/2023-19/06/2023,Children & Family Services,Bcc Clean Air Zone,27/05/2023,16,Other Expenditure,Government Services,GPC
18/05/2023-19/06/2023,Children & Family Services,Bcc Clean Air Zone,09/06/2023,8,Other Expenditure,Government Services,GPC
18/05/2023-19/06/2023,Children & Family Services,Bcc Clean Air Zone,16/06/2023,16,Other Expenditure,Government Services,GPC
18/05/2023-19/06/2023,Children & Family Services,Birmingham Register,03/06/2023,-4,Payments to Carers-Retainers,Government Services,GPC
18/05/2023-19/06/2023,Children & Family Services,Bkg*hotel At Booking.C,01/06/2023,245,Other Expenditure,Travel Agencies and Tour Operators,GPC
18/05/2023-19/06/2023,Children & Family Services,Bkg*hotel At Booking.C,07/06/2023,1306.6,Other Expenditure,Travel Agencies and Tour Operators,GPC
18/05/2023-19/06/2023,Children & Family Services,Bkg*hotel At Booking.C,26/05/2023,286.8,Payments to Carers-Retainers,Travel Agencies and Tour Operators,GPC
18/05/2023-19/06/2023,Children & Family Services,Bkg*hotel At Booking.C,18/05/2023,245,Payments to Carers-Shared Live,Travel Agencies and Tour Operators,GPC
18/05/2023-19/06/2023,Children & Family Services,Bkg*hotel At Booking.C,24/05/2023,360.64,Payments to Carers-Shared Live,Travel Agencies and Tour Operators,GPC
18/05/2023-19/06/2023,Children & Family Services,Bkg*hotel At Booking.C,25/05/2023,70,Payments to Carers-Shared Live,Travel Agencies and Tour Operators,GPC
18/05/2023-19/06/2023,Children & Family Services,Bkg*hotel At Booking.C,06/06/2023,412.34,Payments to Carers-Shared Live,Travel Agencies and Tour Operators,GPC
18/05/2023-19/06/2023,Children & Family Services,Bkg*hotel At Booking.C,16/06/2023,191,Training Expenses ,Travel Agencies and Tour Operators,GPC
18/05/2023-19/06/2023,Children & Family Services,Blaby District Council Pa,23/05/2023,6,Public Transport - Staff Trave,Automobile Parking Lots and Garages,GPC
18/05/2023-19/06/2023,Children & Family Services,British Gas Online,20/05/2023,10,Payments to Carers-Foster Care,"Utilities - Electric, Gas, Sanitary & Water",GPC
18/05/2023-19/06/2023,Children & Family Services,British Gas Online,20/05/2023,30,Payments to Carers-Foster Care,"Utilities - Electric, Gas, Sanitary & Water",GPC
18/05/2023-19/06/2023,Children & Family Services,Brumacc,19/05/2023,366.92,Other Expenditure,Government Services,GPC
18/05/2023-19/06/2023,Children & Family Services,Bt Business Bill,19/05/2023,49.37,IT Telecommunications Line Ren,Telecommunication Services,GPC
18/05/2023-19/06/2023,Children & Family Services,Bt Business Bill,24/05/2023,104.78,IT Telecommunications Line Ren,Telecommunication Services,GPC
18/05/2023-19/06/2023,Children & Family Services,Bt Business Bill,25/05/2023,131.35,IT Telecommunications Line Ren,Telecommunication Services,GPC
18/05/2023-19/06/2023,Children & Family Services,Bt Business Bill,14/06/2023,45.69,IT Telecommunications Line Ren,Telecommunication Services,GPC
18/05/2023-19/06/2023,Children & Family Services,Burger King,06/06/2023,5.57,Payments to Carers-Retainers,Quick Payment Service-Fast-Food Restaurants,GPC
18/05/2023-19/06/2023,Children & Family Services,Buyatab - Aldi,07/06/2023,50,Payments to Carers-Child Mindi,"Card, Gift, Novelty, and Souvenir Shops",GPC
18/05/2023-19/06/2023,Children & Family Services,Buyatab - Aldi,17/05/2023,25,Payments to Carers-Shared Live,"Card, Gift, Novelty, and Souvenir Shops",GPC
18/05/2023-19/06/2023,Children & Family Services,C2e839800317e Ukvi,28/12/2022,-5000,Recruitment ,Government Services,GPC
18/05/2023-19/06/2023,Children & Family Services,Card Factory - Hinckley M,02/06/2023,1.49,Payments to Carers-Shared Live,"Card, Gift, Novelty, and Souvenir Shops",GPC
18/05/2023-19/06/2023,Children & Family Services,Central Eng Coop,23/05/2023,9.7,Catering,Grocery Stores and Supermarkets,GPC
18/05/2023-19/06/2023,Children & Family Services,Central Eng Coop,02/06/2023,42.3,Materials,Grocery Stores and Supermarkets,GPC
18/05/2023-19/06/2023,Children & Family Services,Central Eng Coop,07/06/2023,5.65,Materials,Grocery Stores and Supermarkets,GPC
18/05/2023-19/06/2023,Children & Family Services,Charnwood Bc Int,02/06/2023,341.2,Other Expenditure,Government Services,GPC
18/05/2023-19/06/2023,Children & Family Services,Charnwood Bc Moto,17/05/2023,341.2,Other Expenditure,Government Services,GPC
18/05/2023-19/06/2023,Children & Family Services,Charnwood Bc Moto,08/06/2023,55,Other Expenditure,Government Services,GPC
18/05/2023-19/06/2023,Children & Family Services,Charnwood Borough Council,08/06/2023,1.6,Payments to Carers-Shared Live,Automobile Parking Lots and Garages,GPC
18/05/2023-19/06/2023,Children & Family Services,Chopstix Birmingham Bull,31/05/2023,19.7,Other Expenditure,Quick Payment Service-Fast-Food Restaurants,GPC
18/05/2023-19/06/2023,Children & Family Services,Clinical Partners,17/05/2023,185,Payments to Carers-Retainers,Professional Services,GPC
18/05/2023-19/06/2023,Children & Family Services,Clinical Partners,12/06/2023,125,Payments to Carers-Retainers,Professional Services,GPC
18/05/2023-19/06/2023,Children & Family Services,Clubscomplete Ltd,24/05/2023,264,Payments to Carers-Retainers,Child Care Services ,GPC
18/05/2023-19/06/2023,Children & Family Services,Company Shop Ltd,12/06/2023,11.05,Materials,Grocery Stores and Supermarkets,GPC
18/05/2023-19/06/2023,Children & Family Services,Contactless.Travel,22/05/2023,2,Client / Volunteers Reimbursem,Local and Suburban Commuter Transportation,GPC
18/05/2023-19/06/2023,Children & Family Services,Co-Op Group Food,26/05/2023,10,Other Expenditure,Grocery Stores and Supermarkets,GPC
18/05/2023-19/06/2023,Children & Family Services,Corambaaf,19/05/2023,106.3,Books & Audio Visual,"Digital Goods - Media, Books, Movies, Music",GPC
18/05/2023-19/06/2023,Children & Family Services,Costa Coffee 43010798,02/06/2023,6.65,Payments to Carers-Shared Live,Quick Payment Service-Fast-Food Restaurants,GPC
18/05/2023-19/06/2023,Children & Family Services,Costco Wholesale #123,02/06/2023,209.34,Other Expenditure,"Shopping Clubs, Services",GPC
18/05/2023-19/06/2023,Children & Family Services,Costco Wholesale #123,02/06/2023,296.37,Other Expenditure,"Shopping Clubs, Services",GPC
18/05/2023-19/06/2023,Children & Family Services,Costco Wholesale #123,02/06/2023,294.78,Other Expenditure,"Shopping Clubs, Services",GPC
18/05/2023-19/06/2023,Children & Family Services,Coventry City Council,07/06/2023,1,Payments to Carers-Shared Live,Automobile Parking Lots and Garages,GPC
18/05/2023-19/06/2023,Children & Family Services,Crusty S Cafe,17/05/2023,22,Payments to Carers-Foster Care,"Eating Places, Restaurants",GPC
18/05/2023-19/06/2023,Children & Family Services,Currys Leicester,25/05/2023,617,Payments to Carers-Foster Care,Electronic Sales,GPC
18/05/2023-19/06/2023,Children & Family Services,Currys Leicester,07/06/2023,79.99,Payments to Carers-Foster Care,Electronic Sales,GPC
18/05/2023-19/06/2023,Children & Family Services,Currys Leicester,07/06/2023,1031.1,Payments to Carers-Foster Care,Electronic Sales,GPC
18/05/2023-19/06/2023,Children & Family Services,Currys Online,24/05/2023,-540.83,General Equipment - Purchase &,Electronic Sales,GPC
18/05/2023-19/06/2023,Children & Family Services,Currys Online,24/05/2023,540.83,General Equipment - Purchase &,Electronic Sales,GPC
18/05/2023-19/06/2023,Children & Family Services,Currys Online,25/05/2023,536.67,General Equipment - Purchase &,Electronic Sales,GPC
18/05/2023-19/06/2023,Children & Family Services,Currys Online,26/05/2023,290.83,Payments to Carers-Foster Care,Electronic Sales,GPC
18/05/2023-19/06/2023,Children & Family Services,David Hagyard Limited T A,25/05/2023,0.79,Provisions Purchases,Miscellaneous Food Stores & Convenience Stores,GPC
18/05/2023-19/06/2023,Children & Family Services,Derby C Cncl/Bold Lane,18/05/2023,5,Payments to Carers-Shared Live,Automobile Parking Lots and Garages,GPC
18/05/2023-19/06/2023,Children & Family Services,Derby.Gov.Uk,13/06/2023,11,Other Expenditure,Government Services,GPC
18/05/2023-19/06/2023,Children & Family Services,Dilips Multi Store,26/05/2023,3.24,Provisions Purchases,Grocery Stores and Supermarkets,GPC
18/05/2023-19/06/2023,Children & Family Services,Dilips Multi Store,02/06/2023,3.24,Provisions Purchases,Grocery Stores and Supermarkets,GPC
18/05/2023-19/06/2023,Children & Family Services,Dilips Multi Store,06/06/2023,3.34,Provisions Purchases,Grocery Stores and Supermarkets,GPC
18/05/2023-19/06/2023,Children & Family Services,Ding   *124405478,27/01/2023,-2.98,Subsistance & Conference,Quick Payment Service-Fast-Food Restaurants,GPC
18/05/2023-19/06/2023,Children & Family Services,Dobbies,08/06/2023,11.45,Other Expenditure,"Nurseries, Lawn and Garden Supply Stores",GPC
18/05/2023-19/06/2023,Children & Family Services,Dominos,30/05/2023,80.79,General Equipment - Purchase &,"Eating Places, Restaurants",GPC
18/05/2023-19/06/2023,Children & Family Services,Driving Licence Web,09/06/2023,34,Other Expenditure,Government Services,GPC
18/05/2023-19/06/2023,Children & Family Services,Dunelm (Soft Furnishin,26/05/2023,116.6,Payments to Carers-Foster Care,"Drapery, Upholstery, and Window Coverings Stores",GPC
18/05/2023-19/06/2023,Children & Family Services,Dunelm (Soft Furnishin,08/06/2023,50,Payments to Carers-Foster Care,"Drapery, Upholstery, and Window Coverings Stores",GPC
18/05/2023-19/06/2023,Children & Family Services,Dunelm Softfurnishings,25/05/2023,580.83,General Equipment - Purchase &,"Equipment, Furniture, and Home Furnishings Stores ",GPC
18/05/2023-19/06/2023,Children & Family Services,Dunelm Softfurnishings,14/06/2023,-20,General Equipment - Purchase &,"Equipment, Furniture, and Home Furnishings Stores ",GPC
18/05/2023-19/06/2023,Children & Family Services,Dunelm Softfurnishings,14/06/2023,81.33,General Equipment - Purchase &,"Equipment, Furniture, and Home Furnishings Stores ",GPC
18/05/2023-19/06/2023,Children & Family Services,Dvla Driver Online,06/06/2023,34,Other Expenditure,Government Services,GPC
18/05/2023-19/06/2023,Children & Family Services,Dvla Driver Online,14/06/2023,20,Other Expenditure,Government Services,GPC
18/05/2023-19/06/2023,Children & Family Services,Dvsa,17/05/2023,23,Other Expenditure,Government Services,GPC
18/05/2023-19/06/2023,Children & Family Services,East Midlands Rail,09/06/2023,13.7,Other Expenditure,Passenger Railways,GPC
18/05/2023-19/06/2023,Children & Family Services,East Mids Railway,07/06/2023,24.3,Client / Volunteers Reimbursem,Passenger Railways,GPC
18/05/2023-19/06/2023,Children & Family Services,East Mids Railway,05/06/2023,147.8,Payments to Carers-Shared Live,Passenger Railways,GPC
18/05/2023-19/06/2023,Children & Family Services,Eastmidlandscom,22/05/2023,16.7,Payments to Carers-Shared Live,Passenger Railways,GPC
18/05/2023-19/06/2023,Children & Family Services,Eastmidlandscom,12/06/2023,61,Public Transport - Staff Trave,Passenger Railways,GPC
18/05/2023-19/06/2023,Children & Family Services,Eb *level 3 Foundation,19/05/2023,13.96,Other Expenditure,Other Business Services,GPC
18/05/2023-19/06/2023,Children & Family Services,Eb *payin For Event,01/06/2023,8.44,Recoverable Charges ,Other Business Services,GPC
18/05/2023-19/06/2023,Children & Family Services,Eb *refund To Buyer,01/06/2023,8.45,General Equipment - Purchase &,Other Business Services,GPC
18/05/2023-19/06/2023,Children & Family Services,Eb *refund To Buyer,25/05/2023,19.14,Recoverable Charges ,Other Business Services,GPC
18/05/2023-19/06/2023,Children & Family Services,Eb *refund To Buyer,25/05/2023,19.14,Recoverable Charges ,Other Business Services,GPC
18/05/2023-19/06/2023,Children & Family Services,Eb *refund To Buyer,25/05/2023,19.14,Recoverable Charges ,Other Business Services,GPC
18/05/2023-19/06/2023,Children & Family Services,Eb *refund To Buyer,25/05/2023,19.14,Recoverable Charges ,Other Business Services,GPC
18/05/2023-19/06/2023,Children & Family Services,Eb *refund To Buyer,25/05/2023,19.14,Recoverable Charges ,Other Business Services,GPC
18/05/2023-19/06/2023,Children & Family Services,Eb *refund To Buyer,01/06/2023,8.45,Recoverable Charges ,Other Business Services,GPC
18/05/2023-19/06/2023,Children & Family Services,Eb *refund To Buyer,01/06/2023,8.45,Recoverable Charges ,Other Business Services,GPC
18/05/2023-19/06/2023,Children & Family Services,Eb *refund To Buyer,07/06/2023,83,Recoverable Charges ,Other Business Services,GPC
18/05/2023-19/06/2023,Children & Family Services,Ebay O*15-10146-27779,07/06/2023,129.98,Materials,Department Stores,GPC
18/05/2023-19/06/2023,Children & Family Services,Ebay O*19-10087-18454,23/05/2023,22.26,Materials,Department Stores,GPC
18/05/2023-19/06/2023,Children & Family Services,Ebay O*19-10087-18455,23/05/2023,35.04,Materials,Department Stores,GPC
18/05/2023-19/06/2023,Children & Family Services,Ebay O*24-10156-37172,07/06/2023,83,Materials,Department Stores,GPC
18/05/2023-19/06/2023,Children & Family Services,Esquires Coffee House,16/06/2023,17,Payments to Carers-Shared Live,Quick Payment Service-Fast-Food Restaurants,GPC
18/05/2023-19/06/2023,Children & Family Services,Euroflorist UK Ltd,24/05/2023,25.82,Other Expenditure,Florists,GPC
18/05/2023-19/06/2023,Children & Family Services,Euroflorist UK Ltd,05/06/2023,27.48,Other Services ,Florists,GPC
18/05/2023-19/06/2023,Children & Family Services,Everest Taxis,23/05/2023,56.5,Payments to Carers-Shared Live,Taxi Services,GPC
18/05/2023-19/06/2023,Children & Family Services,Farmfoods 586,24/05/2023,11.98,Materials,Grocery Stores and Supermarkets,GPC
18/05/2023-19/06/2023,Children & Family Services,Fd Beds,01/06/2023,775,Payments to Carers-Foster Care,"Equipment, Furniture, and Home Furnishings Stores ",GPC
18/05/2023-19/06/2023,Children & Family Services,Findel Education,22/05/2023,75.98,General Equipment - Purchase &,Other Direct Marketing-Other Direct Marketers,GPC
18/05/2023-19/06/2023,Children & Family Services,Food Panda,05/01/2023,-2.43,Subsistance & Conference,Quick Payment Service-Fast-Food Restaurants,GPC
18/05/2023-19/06/2023,Children & Family Services,Food Panda,05/01/2023,-1.06,Subsistance & Conference,Quick Payment Service-Fast-Food Restaurants,GPC
18/05/2023-19/06/2023,Children & Family Services,Food Panda,05/01/2023,-2.13,Subsistance & Conference,Quick Payment Service-Fast-Food Restaurants,GPC
18/05/2023-19/06/2023,Children & Family Services,Food Panda,05/01/2023,-7.02,Subsistance & Conference,Quick Payment Service-Fast-Food Restaurants,GPC
18/05/2023-19/06/2023,Children & Family Services,Food Panda,06/01/2023,-2.17,Subsistance & Conference,Quick Payment Service-Fast-Food Restaurants,GPC
18/05/2023-19/06/2023,Children & Family Services,Food Panda,06/01/2023,-8.43,Subsistance & Conference,Quick Payment Service-Fast-Food Restaurants,GPC
18/05/2023-19/06/2023,Children & Family Services,Food Panda,08/01/2023,-6,Subsistance & Conference,Quick Payment Service-Fast-Food Restaurants,GPC
18/05/2023-19/06/2023,Children & Family Services,Food Panda,08/01/2023,-6.94,Subsistance & Conference,Quick Payment Service-Fast-Food Restaurants,GPC
18/05/2023-19/06/2023,Children & Family Services,Food Panda,08/01/2023,-2.89,Subsistance & Conference,Quick Payment Service-Fast-Food Restaurants,GPC
18/05/2023-19/06/2023,Children & Family Services,Food Panda,08/01/2023,-4.05,Subsistance & Conference,Quick Payment Service-Fast-Food Restaurants,GPC
18/05/2023-19/06/2023,Children & Family Services,Food Panda,08/01/2023,-5.63,Subsistance & Conference,Quick Payment Service-Fast-Food Restaurants,GPC
18/05/2023-19/06/2023,Children & Family Services,Food Panda,09/01/2023,-8.05,Subsistance & Conference,Quick Payment Service-Fast-Food Restaurants,GPC
18/05/2023-19/06/2023,Children & Family Services,Food Panda,09/01/2023,-4.91,Subsistance & Conference,Quick Payment Service-Fast-Food Restaurants,GPC
18/05/2023-19/06/2023,Children & Family Services,Food Panda,09/01/2023,-6.05,Subsistance & Conference,Quick Payment Service-Fast-Food Restaurants,GPC
18/05/2023-19/06/2023,Children & Family Services,Food Panda,13/01/2023,-3.7,Subsistance & Conference,Quick Payment Service-Fast-Food Restaurants,GPC
18/05/2023-19/06/2023,Children & Family Services,Food Panda,14/01/2023,-2.4,Subsistance & Conference,Quick Payment Service-Fast-Food Restaurants,GPC
18/05/2023-19/06/2023,Children & Family Services,Food Panda,14/01/2023,-7.41,Subsistance & Conference,Quick Payment Service-Fast-Food Restaurants,GPC
18/05/2023-19/06/2023,Children & Family Services,Food Panda,14/01/2023,-2.16,Subsistance & Conference,Quick Payment Service-Fast-Food Restaurants,GPC
18/05/2023-19/06/2023,Children & Family Services,Food Panda,16/01/2023,-6.24,Subsistance & Conference,Quick Payment Service-Fast-Food Restaurants,GPC
18/05/2023-19/06/2023,Children & Family Services,Food Panda,16/01/2023,-3.86,Subsistance & Conference,Quick Payment Service-Fast-Food Restaurants,GPC
18/05/2023-19/06/2023,Children & Family Services,Food Panda,24/01/2023,-1.25,Subsistance & Conference,Quick Payment Service-Fast-Food Restaurants,GPC
18/05/2023-19/06/2023,Children & Family Services,Food Panda,25/01/2023,-8.25,Subsistance & Conference,Quick Payment Service-Fast-Food Restaurants,GPC
18/05/2023-19/06/2023,Children & Family Services,Food Panda,25/01/2023,-4.87,Subsistance & Conference,Quick Payment Service-Fast-Food Restaurants,GPC
18/05/2023-19/06/2023,Children & Family Services,Food Panda,25/01/2023,-3.78,Subsistance & Conference,Quick Payment Service-Fast-Food Restaurants,GPC
18/05/2023-19/06/2023,Children & Family Services,Food Panda,25/01/2023,-1.5,Subsistance & Conference,Quick Payment Service-Fast-Food Restaurants,GPC
18/05/2023-19/06/2023,Children & Family Services,Food Panda,26/01/2023,-5.52,Subsistance & Conference,Quick Payment Service-Fast-Food Restaurants,GPC
18/05/2023-19/06/2023,Children & Family Services,Food Panda,27/01/2023,-7.24,Subsistance & Conference,Quick Payment Service-Fast-Food Restaurants,GPC
18/05/2023-19/06/2023,Children & Family Services,Food Panda,28/01/2023,-1.75,Subsistance & Conference,Quick Payment Service-Fast-Food Restaurants,GPC
18/05/2023-19/06/2023,Children & Family Services,Food Panda,28/01/2023,-4.47,Subsistance & Conference,Quick Payment Service-Fast-Food Restaurants,GPC
18/05/2023-19/06/2023,Children & Family Services,Food Panda,28/01/2023,-2.05,Subsistance & Conference,Quick Payment Service-Fast-Food Restaurants,GPC
18/05/2023-19/06/2023,Children & Family Services,Food Panda,28/01/2023,-1.65,Subsistance & Conference,Quick Payment Service-Fast-Food Restaurants,GPC
18/05/2023-19/06/2023,Children & Family Services,Food Panda,29/01/2023,-8.82,Subsistance & Conference,Quick Payment Service-Fast-Food Restaurants,GPC
18/05/2023-19/06/2023,Children & Family Services,Food Panda,29/01/2023,-2.99,Subsistance & Conference,Quick Payment Service-Fast-Food Restaurants,GPC
18/05/2023-19/06/2023,Children & Family Services,Food Panda,29/01/2023,-1.82,Subsistance & Conference,Quick Payment Service-Fast-Food Restaurants,GPC
18/05/2023-19/06/2023,Children & Family Services,Food Panda,30/01/2023,-2.89,Subsistance & Conference,Quick Payment Service-Fast-Food Restaurants,GPC
18/05/2023-19/06/2023,Children & Family Services,Food Panda,31/01/2023,-3.27,Subsistance & Conference,Quick Payment Service-Fast-Food Restaurants,GPC
18/05/2023-19/06/2023,Children & Family Services,Food Panda,31/01/2023,-4.2,Subsistance & Conference,Quick Payment Service-Fast-Food Restaurants,GPC
18/05/2023-19/06/2023,Children & Family Services,Food Panda,01/02/2023,-5,Subsistance & Conference,Quick Payment Service-Fast-Food Restaurants,GPC
18/05/2023-19/06/2023,Children & Family Services,Food Panda,01/02/2023,-6.57,Subsistance & Conference,Quick Payment Service-Fast-Food Restaurants,GPC
18/05/2023-19/06/2023,Children & Family Services,Food Panda,02/02/2023,-1.28,Subsistance & Conference,Quick Payment Service-Fast-Food Restaurants,GPC
18/05/2023-19/06/2023,Children & Family Services,Food Panda,02/02/2023,-3.84,Subsistance & Conference,Quick Payment Service-Fast-Food Restaurants,GPC
18/05/2023-19/06/2023,Children & Family Services,Food Panda,02/02/2023,-3.84,Subsistance & Conference,Quick Payment Service-Fast-Food Restaurants,GPC
18/05/2023-19/06/2023,Children & Family Services,Food Panda,02/02/2023,-2.4,Subsistance & Conference,Quick Payment Service-Fast-Food Restaurants,GPC
18/05/2023-19/06/2023,Children & Family Services,Food Panda,04/02/2023,-3.03,Subsistance & Conference,Quick Payment Service-Fast-Food Restaurants,GPC
18/05/2023-19/06/2023,Children & Family Services,Food Panda,04/02/2023,-6.95,Subsistance & Conference,Quick Payment Service-Fast-Food Restaurants,GPC
18/05/2023-19/06/2023,Children & Family Services,Food Panda,04/02/2023,-2.73,Subsistance & Conference,Quick Payment Service-Fast-Food Restaurants,GPC
18/05/2023-19/06/2023,Children & Family Services,Food Panda,04/02/2023,-6.39,Subsistance & Conference,Quick Payment Service-Fast-Food Restaurants,GPC
18/05/2023-19/06/2023,Children & Family Services,Food Panda,07/02/2023,-5.51,Subsistance & Conference,Quick Payment Service-Fast-Food Restaurants,GPC
18/05/2023-19/06/2023,Children & Family Services,Food Panda,10/02/2023,-4.32,Subsistance & Conference,Quick Payment Service-Fast-Food Restaurants,GPC
18/05/2023-19/06/2023,Children & Family Services,Food Panda,10/02/2023,-9.41,Subsistance & Conference,Quick Payment Service-Fast-Food Restaurants,GPC
18/05/2023-19/06/2023,Children & Family Services,Food Panda,11/02/2023,-8.43,Subsistance & Conference,Quick Payment Service-Fast-Food Restaurants,GPC
18/05/2023-19/06/2023,Children & Family Services,Food Panda,11/02/2023,-10.16,Subsistance & Conference,Quick Payment Service-Fast-Food Restaurants,GPC
18/05/2023-19/06/2023,Children & Family Services,Food Panda,12/02/2023,-2.01,Subsistance & Conference,Quick Payment Service-Fast-Food Restaurants,GPC
18/05/2023-19/06/2023,Children & Family Services,Food Panda,12/02/2023,-8.23,Subsistance & Conference,Quick Payment Service-Fast-Food Restaurants,GPC
18/05/2023-19/06/2023,Children & Family Services,Food Panda,12/02/2023,-3.34,Subsistance & Conference,Quick Payment Service-Fast-Food Restaurants,GPC
18/05/2023-19/06/2023,Children & Family Services,Food Panda,16/02/2023,-6.74,Subsistance & Conference,Quick Payment Service-Fast-Food Restaurants,GPC
18/05/2023-19/06/2023,Children & Family Services,Food Panda,17/02/2023,-4.06,Subsistance & Conference,Quick Payment Service-Fast-Food Restaurants,GPC
18/05/2023-19/06/2023,Children & Family Services,Food Panda,18/02/2023,-1.83,Subsistance & Conference,Quick Payment Service-Fast-Food Restaurants,GPC
18/05/2023-19/06/2023,Children & Family Services,Food Panda,19/02/2023,-2.81,Subsistance & Conference,Quick Payment Service-Fast-Food Restaurants,GPC
18/05/2023-19/06/2023,Children & Family Services,Food Panda,19/02/2023,-1.67,Subsistance & Conference,Quick Payment Service-Fast-Food Restaurants,GPC
18/05/2023-19/06/2023,Children & Family Services,Food Panda,19/02/2023,-4.22,Subsistance & Conference,Quick Payment Service-Fast-Food Restaurants,GPC
18/05/2023-19/06/2023,Children & Family Services,Food Panda,19/02/2023,-2.72,Subsistance & Conference,Quick Payment Service-Fast-Food Restaurants,GPC
18/05/2023-19/06/2023,Children & Family Services,Food Panda,20/02/2023,-10.02,Subsistance & Conference,Quick Payment Service-Fast-Food Restaurants,GPC
18/05/2023-19/06/2023,Children & Family Services,Foreign Exchange Fee,06/01/2023,-0.03,Subsistance & Conference,Quick Payment Service-Fast-Food Restaurants,GPC
18/05/2023-19/06/2023,Children & Family Services,Foreign Exchange Fee,06/01/2023,-0.19,Subsistance & Conference,Quick Payment Service-Fast-Food Restaurants,GPC
18/05/2023-19/06/2023,Children & Family Services,Foreign Exchange Fee,06/01/2023,-0.06,Subsistance & Conference,Quick Payment Service-Fast-Food Restaurants,GPC
18/05/2023-19/06/2023,Children & Family Services,Foreign Exchange Fee,06/01/2023,-0.07,Subsistance & Conference,Quick Payment Service-Fast-Food Restaurants,GPC
18/05/2023-19/06/2023,Children & Family Services,Foreign Exchange Fee,09/01/2023,-0.23,Subsistance & Conference,Quick Payment Service-Fast-Food Restaurants,GPC
18/05/2023-19/06/2023,Children & Family Services,Foreign Exchange Fee,09/01/2023,-0.06,Subsistance & Conference,Quick Payment Service-Fast-Food Restaurants,GPC
18/05/2023-19/06/2023,Children & Family Services,Foreign Exchange Fee,10/01/2023,-0.17,Subsistance & Conference,Quick Payment Service-Fast-Food Restaurants,GPC
18/05/2023-19/06/2023,Children & Family Services,Foreign Exchange Fee,10/01/2023,-0.08,Subsistance & Conference,Quick Payment Service-Fast-Food Restaurants,GPC
18/05/2023-19/06/2023,Children & Family Services,Foreign Exchange Fee,10/01/2023,-0.19,Subsistance & Conference,Quick Payment Service-Fast-Food Restaurants,GPC
18/05/2023-19/06/2023,Children & Family Services,Foreign Exchange Fee,10/01/2023,-0.15,Subsistance & Conference,Quick Payment Service-Fast-Food Restaurants,GPC
18/05/2023-19/06/2023,Children & Family Services,Foreign Exchange Fee,10/01/2023,-0.11,Subsistance & Conference,Quick Payment Service-Fast-Food Restaurants,GPC
18/05/2023-19/06/2023,Children & Family Services,Foreign Exchange Fee,11/01/2023,-0.22,Subsistance & Conference,Quick Payment Service-Fast-Food Restaurants,GPC
18/05/2023-19/06/2023,Children & Family Services,Foreign Exchange Fee,11/01/2023,-0.17,Subsistance & Conference,Quick Payment Service-Fast-Food Restaurants,GPC
18/05/2023-19/06/2023,Children & Family Services,Foreign Exchange Fee,11/01/2023,-0.14,Subsistance & Conference,Quick Payment Service-Fast-Food Restaurants,GPC
18/05/2023-19/06/2023,Children & Family Services,Foreign Exchange Fee,16/01/2023,-0.1,Subsistance & Conference,Quick Payment Service-Fast-Food Restaurants,GPC
18/05/2023-19/06/2023,Children & Family Services,Foreign Exchange Fee,16/01/2023,-0.2,Subsistance & Conference,Quick Payment Service-Fast-Food Restaurants,GPC
18/05/2023-19/06/2023,Children & Family Services,Foreign Exchange Fee,16/01/2023,-0.06,Subsistance & Conference,Quick Payment Service-Fast-Food Restaurants,GPC
18/05/2023-19/06/2023,Children & Family Services,Foreign Exchange Fee,16/01/2023,-0.07,Subsistance & Conference,Quick Payment Service-Fast-Food Restaurants,GPC
18/05/2023-19/06/2023,Children & Family Services,Foreign Exchange Fee,18/01/2023,-0.17,Subsistance & Conference,Quick Payment Service-Fast-Food Restaurants,GPC
18/05/2023-19/06/2023,Children & Family Services,Foreign Exchange Fee,18/01/2023,-0.11,Subsistance & Conference,Quick Payment Service-Fast-Food Restaurants,GPC
18/05/2023-19/06/2023,Children & Family Services,Foreign Exchange Fee,25/01/2023,-0.03,Subsistance & Conference,Quick Payment Service-Fast-Food Restaurants,GPC
18/05/2023-19/06/2023,Children & Family Services,Foreign Exchange Fee,26/01/2023,-0.04,Subsistance & Conference,Quick Payment Service-Fast-Food Restaurants,GPC
18/05/2023-19/06/2023,Children & Family Services,Foreign Exchange Fee,26/01/2023,-0.13,Subsistance & Conference,Quick Payment Service-Fast-Food Restaurants,GPC
18/05/2023-19/06/2023,Children & Family Services,Foreign Exchange Fee,26/01/2023,-0.23,Subsistance & Conference,Quick Payment Service-Fast-Food Restaurants,GPC
18/05/2023-19/06/2023,Children & Family Services,Foreign Exchange Fee,26/01/2023,-0.1,Subsistance & Conference,Quick Payment Service-Fast-Food Restaurants,GPC
18/05/2023-19/06/2023,Children & Family Services,Foreign Exchange Fee,27/01/2023,-0.15,Subsistance & Conference,Quick Payment Service-Fast-Food Restaurants,GPC
18/05/2023-19/06/2023,Children & Family Services,Foreign Exchange Fee,30/01/2023,-0.12,Subsistance & Conference,Quick Payment Service-Fast-Food Restaurants,GPC
18/05/2023-19/06/2023,Children & Family Services,Foreign Exchange Fee,30/01/2023,-0.05,Subsistance & Conference,Quick Payment Service-Fast-Food Restaurants,GPC
18/05/2023-19/06/2023,Children & Family Services,Foreign Exchange Fee,30/01/2023,-0.05,Subsistance & Conference,Quick Payment Service-Fast-Food Restaurants,GPC
18/05/2023-19/06/2023,Children & Family Services,Foreign Exchange Fee,30/01/2023,-0.06,Subsistance & Conference,Quick Payment Service-Fast-Food Restaurants,GPC
18/05/2023-19/06/2023,Children & Family Services,Foreign Exchange Fee,30/01/2023,-0.08,Subsistance & Conference,Quick Payment Service-Fast-Food Restaurants,GPC
18/05/2023-19/06/2023,Children & Family Services,Foreign Exchange Fee,30/01/2023,-0.2,Subsistance & Conference,Quick Payment Service-Fast-Food Restaurants,GPC
18/05/2023-19/06/2023,Children & Family Services,Foreign Exchange Fee,31/01/2023,-0.27,Subsistance & Conference,Quick Payment Service-Fast-Food Restaurants,GPC
18/05/2023-19/06/2023,Children & Family Services,Foreign Exchange Fee,31/01/2023,-0.08,Subsistance & Conference,Quick Payment Service-Fast-Food Restaurants,GPC
18/05/2023-19/06/2023,Children & Family Services,Foreign Exchange Fee,31/01/2023,-0.05,Subsistance & Conference,Quick Payment Service-Fast-Food Restaurants,GPC
18/05/2023-19/06/2023,Children & Family Services,Foreign Exchange Fee,31/01/2023,-0.24,Subsistance & Conference,Quick Payment Service-Fast-Food Restaurants,GPC
18/05/2023-19/06/2023,Children & Family Services,Foreign Exchange Fee,01/02/2023,-0.08,Subsistance & Conference,Quick Payment Service-Fast-Food Restaurants,GPC
18/05/2023-19/06/2023,Children & Family Services,Foreign Exchange Fee,01/02/2023,-0.09,Subsistance & Conference,Quick Payment Service-Fast-Food Restaurants,GPC
18/05/2023-19/06/2023,Children & Family Services,Foreign Exchange Fee,01/02/2023,-0.12,Subsistance & Conference,Quick Payment Service-Fast-Food Restaurants,GPC
18/05/2023-19/06/2023,Children & Family Services,Foreign Exchange Fee,02/02/2023,-0.18,Subsistance & Conference,Quick Payment Service-Fast-Food Restaurants,GPC
18/05/2023-19/06/2023,Children & Family Services,Foreign Exchange Fee,02/02/2023,-0.14,Subsistance & Conference,Quick Payment Service-Fast-Food Restaurants,GPC
18/05/2023-19/06/2023,Children & Family Services,Foreign Exchange Fee,03/02/2023,-0.11,Subsistance & Conference,Quick Payment Service-Fast-Food Restaurants,GPC
18/05/2023-19/06/2023,Children & Family Services,Foreign Exchange Fee,03/02/2023,-0.11,Subsistance & Conference,Quick Payment Service-Fast-Food Restaurants,GPC
18/05/2023-19/06/2023,Children & Family Services,Foreign Exchange Fee,03/02/2023,-0.04,Subsistance & Conference,Quick Payment Service-Fast-Food Restaurants,GPC
18/05/2023-19/06/2023,Children & Family Services,Foreign Exchange Fee,03/02/2023,-0.07,Subsistance & Conference,Quick Payment Service-Fast-Food Restaurants,GPC
18/05/2023-19/06/2023,Children & Family Services,Foreign Exchange Fee,06/02/2023,-0.36,Subsistance & Conference,Quick Payment Service-Fast-Food Restaurants,GPC
18/05/2023-19/06/2023,Children & Family Services,Foreign Exchange Fee,06/02/2023,-0.19,Subsistance & Conference,Quick Payment Service-Fast-Food Restaurants,GPC
18/05/2023-19/06/2023,Children & Family Services,Foreign Exchange Fee,06/02/2023,-0.23,Subsistance & Conference,Quick Payment Service-Fast-Food Restaurants,GPC
18/05/2023-19/06/2023,Children & Family Services,Foreign Exchange Fee,06/02/2023,-0.18,Subsistance & Conference,Quick Payment Service-Fast-Food Restaurants,GPC
18/05/2023-19/06/2023,Children & Family Services,Foreign Exchange Fee,06/02/2023,-0.08,Subsistance & Conference,Quick Payment Service-Fast-Food Restaurants,GPC
18/05/2023-19/06/2023,Children & Family Services,Foreign Exchange Fee,06/02/2023,-0.08,Subsistance & Conference,Quick Payment Service-Fast-Food Restaurants,GPC
18/05/2023-19/06/2023,Children & Family Services,Foreign Exchange Fee,08/02/2023,-0.15,Subsistance & Conference,Quick Payment Service-Fast-Food Restaurants,GPC
18/05/2023-19/06/2023,Children & Family Services,Foreign Exchange Fee,10/02/2023,-1.07,Subsistance & Conference,Quick Payment Service-Fast-Food Restaurants,GPC
18/05/2023-19/06/2023,Children & Family Services,Foreign Exchange Fee,13/02/2023,-0.26,Subsistance & Conference,Quick Payment Service-Fast-Food Restaurants,GPC
18/05/2023-19/06/2023,Children & Family Services,Foreign Exchange Fee,13/02/2023,-0.28,Subsistance & Conference,Quick Payment Service-Fast-Food Restaurants,GPC
18/05/2023-19/06/2023,Children & Family Services,Foreign Exchange Fee,13/02/2023,-0.23,Subsistance & Conference,Quick Payment Service-Fast-Food Restaurants,GPC
18/05/2023-19/06/2023,Children & Family Services,Foreign Exchange Fee,13/02/2023,-0.12,Subsistance & Conference,Quick Payment Service-Fast-Food Restaurants,GPC
18/05/2023-19/06/2023,Children & Family Services,Foreign Exchange Fee,14/02/2023,-0.09,Subsistance & Conference,Quick Payment Service-Fast-Food Restaurants,GPC
18/05/2023-19/06/2023,Children & Family Services,Foreign Exchange Fee,14/02/2023,-0.06,Subsistance & Conference,Quick Payment Service-Fast-Food Restaurants,GPC
18/05/2023-19/06/2023,Children & Family Services,Foreign Exchange Fee,14/02/2023,-0.23,Subsistance & Conference,Quick Payment Service-Fast-Food Restaurants,GPC
18/05/2023-19/06/2023,Children & Family Services,Foreign Exchange Fee,17/02/2023,-0.19,Subsistance & Conference,Quick Payment Service-Fast-Food Restaurants,GPC
18/05/2023-19/06/2023,Children & Family Services,Foreign Exchange Fee,20/02/2023,-0.05,Subsistance & Conference,Quick Payment Service-Fast-Food Restaurants,GPC
18/05/2023-19/06/2023,Children & Family Services,Foreign Exchange Fee,20/02/2023,-0.11,Subsistance & Conference,Quick Payment Service-Fast-Food Restaurants,GPC
18/05/2023-19/06/2023,Children & Family Services,Foreign Exchange Fee,21/02/2023,-0.08,Subsistance & Conference,Quick Payment Service-Fast-Food Restaurants,GPC
18/05/2023-19/06/2023,Children & Family Services,Foreign Exchange Fee,21/02/2023,-0.07,Subsistance & Conference,Quick Payment Service-Fast-Food Restaurants,GPC
18/05/2023-19/06/2023,Children & Family Services,Foreign Exchange Fee,21/02/2023,-0.12,Subsistance & Conference,Quick Payment Service-Fast-Food Restaurants,GPC
18/05/2023-19/06/2023,Children & Family Services,Foreign Exchange Fee,21/02/2023,-0.05,Subsistance & Conference,Quick Payment Service-Fast-Food Restaurants,GPC
18/05/2023-19/06/2023,Children & Family Services,Foreign Exchange Fee,22/02/2023,-0.28,Subsistance & Conference,Quick Payment Service-Fast-Food Restaurants,GPC
18/05/2023-19/06/2023,Children & Family Services,Gates Garden Centre,31/05/2023,4.98,Payments to Carers-Shared Live,Florist Supplies and Nursery Stock,GPC
18/05/2023-19/06/2023,Children & Family Services,Gates Restaurant,31/05/2023,7.49,Payments to Carers-Shared Live,Florist Supplies and Nursery Stock,GPC
18/05/2023-19/06/2023,Children & Family Services,Gen Register Office,06/06/2023,38,Other Expenditure,Government Services,GPC
18/05/2023-19/06/2023,Children & Family Services,Generation Flooring,08/06/2023,334.64,Payments to Carers-Foster Care,Floor Covering Stores,GPC
18/05/2023-19/06/2023,Children & Family Services,Giftoo.Com.Pk,03/02/2023,-13.12,Subsistance & Conference,Quick Payment Service-Fast-Food Restaurants,GPC
18/05/2023-19/06/2023,Children & Family Services,Giftoo.Com.Pk,03/02/2023,-8.3,Subsistance & Conference,Quick Payment Service-Fast-Food Restaurants,GPC
18/05/2023-19/06/2023,Children & Family Services,Go Print,18/05/2023,242,Materials,Mens and Womens Clothing Stores,GPC
18/05/2023-19/06/2023,Children & Family Services,Google *google Storage,17/05/2023,20.83,IT Software Licenses/Subscript,Computer Software Stores,GPC
18/05/2023-19/06/2023,Children & Family Services,Greggs Plc,18/05/2023,3.35,Payments to Carers-Shared Live,"Eating Places, Restaurants",GPC
18/05/2023-19/06/2023,Children & Family Services,Greggs Plc,25/05/2023,2.4,Provisions Purchases,"Eating Places, Restaurants",GPC
18/05/2023-19/06/2023,Children & Family Services,High Street Vouchers,22/05/2023,150,Client / Volunteers Reimbursem,Department Stores,GPC
18/05/2023-19/06/2023,Children & Family Services,High Street Vouchers,30/05/2023,249.25,General Equipment - Purchase &,Department Stores,GPC
18/05/2023-19/06/2023,Children & Family Services,High Street Vouchers,30/05/2023,214.25,General Equipment - Purchase &,Department Stores,GPC
18/05/2023-19/06/2023,Children & Family Services,High Street Vouchers,30/05/2023,249.25,General Equipment - Purchase &,Department Stores,GPC
18/05/2023-19/06/2023,Children & Family Services,Highcross Shopping Centre,17/05/2023,3.5,Other Expenditure,Automobile Parking Lots and Garages,GPC
18/05/2023-19/06/2023,Children & Family Services,Hightown Taxi,17/05/2023,150,Other Expenditure,Taxi Services,GPC
18/05/2023-19/06/2023,Children & Family Services,Hinckley & Bosworth Bc,23/05/2023,0.6,Other Expenditure,Government Services,GPC
18/05/2023-19/06/2023,Children & Family Services,Hinckley & Bosworth Bc,24/05/2023,1.2,Other Expenditure,Government Services,GPC
18/05/2023-19/06/2023,Children & Family Services,Hinckley Convenience S,18/05/2023,40,Payments to Carers-Foster Care,Grocery Stores and Supermarkets,GPC
18/05/2023-19/06/2023,Children & Family Services,Hinckley Leisure Centre,08/06/2023,5.3,Payments to Carers-Retainers,Other Recreation Services,GPC
18/05/2023-19/06/2023,Children & Family Services,Hinckley Leisure Centre,08/06/2023,6,Payments to Carers-Retainers,Other Recreation Services,GPC
18/05/2023-19/06/2023,Children & Family Services,Hm Passport Office,18/05/2023,58.5,Other Expenditure,Government Services,GPC
18/05/2023-19/06/2023,Children & Family Services,Hm Passport Office,23/05/2023,87.5,Other Expenditure,Government Services,GPC
18/05/2023-19/06/2023,Children & Family Services,Hm Passport Office,25/05/2023,87.5,Other Expenditure,Government Services,GPC
18/05/2023-19/06/2023,Children & Family Services,Hm Passport Office,02/06/2023,87.5,Other Expenditure,Government Services,GPC
18/05/2023-19/06/2023,Children & Family Services,Hm Passport Office,06/06/2023,82.5,Other Expenditure,Government Services,GPC
18/05/2023-19/06/2023,Children & Family Services,Hm Passport Office,22/05/2023,53.5,Payments to Carers-Child Mindi,Government Services,GPC
18/05/2023-19/06/2023,Children & Family Services,Hm Passport Office,06/06/2023,87.5,Payments to Carers-Child Mindi,Government Services,GPC
18/05/2023-19/06/2023,Children & Family Services,Hm Passport Office,16/06/2023,53.5,Payments to Carers-Child Mindi,Government Services,GPC
18/05/2023-19/06/2023,Children & Family Services,Hm Passport Office,17/05/2023,138,Payments to Carers-Retainers,Government Services,GPC
18/05/2023-19/06/2023,Children & Family Services,Hm Passport Office,22/05/2023,53.5,Payments to Carers-Retainers,Government Services,GPC
18/05/2023-19/06/2023,Children & Family Services,Hm Passport Office,22/05/2023,53.5,Payments to Carers-Retainers,Government Services,GPC
18/05/2023-19/06/2023,Children & Family Services,Hm Passport Office,07/06/2023,58.5,Payments to Carers-Retainers,Government Services,GPC
18/05/2023-19/06/2023,Children & Family Services,Hm Passport Office,07/06/2023,58.5,Payments to Carers-Retainers,Government Services,GPC
18/05/2023-19/06/2023,Children & Family Services,Hm Passport Office,18/05/2023,53.5,Payments to Carers-Shared Live,Government Services,GPC
18/05/2023-19/06/2023,Children & Family Services,Hm Passport Office,18/05/2023,82.5,Payments to Carers-Shared Live,Government Services,GPC
18/05/2023-19/06/2023,Children & Family Services,Hm Passport Office,24/05/2023,53.5,Payments to Carers-Shared Live,Government Services,GPC
18/05/2023-19/06/2023,Children & Family Services,Hm Passport Office,12/06/2023,53.5,Payments to Carers-Shared Live,Government Services,GPC
18/05/2023-19/06/2023,Children & Family Services,Hobbycraft,30/05/2023,45.5,Materials,"Artist Supply Stores, Craft Shops",GPC
18/05/2023-19/06/2023,Children & Family Services,Home Bargains,30/05/2023,11.23,General Equipment - Purchase &,Hardware Stores,GPC
18/05/2023-19/06/2023,Children & Family Services,Home Bargains,31/05/2023,4.13,Materials,Hardware Stores,GPC
18/05/2023-19/06/2023,Children & Family Services,Home Bargains,02/06/2023,2.78,Other Expenditure,Hardware Stores,GPC
18/05/2023-19/06/2023,Children & Family Services,Iceland,22/05/2023,14.89,Payments to Carers-Foster Care,Grocery Stores and Supermarkets,GPC
18/05/2023-19/06/2023,Children & Family Services,Iceland,23/05/2023,47.54,Payments to Carers-Shared Live,Grocery Stores and Supermarkets,GPC
18/05/2023-19/06/2023,Children & Family Services,Ikea Ltd Shop Online,30/05/2023,78.33,Payments to Carers-Foster Care,"Equipment, Furniture, and Home Furnishings Stores ",GPC
18/05/2023-19/06/2023,Children & Family Services,Ikea Ltd Shop Online,09/06/2023,129,Payments to Carers-Retainers,"Equipment, Furniture, and Home Furnishings Stores ",GPC
18/05/2023-19/06/2023,Children & Family Services,Insure Golf Ltd,30/05/2023,3.33,Materials,"Sports Apparel, Riding Apparel Stores",GPC
18/05/2023-19/06/2023,Children & Family Services,Insure Golf Ltd,30/05/2023,4.96,Materials,"Sports Apparel, Riding Apparel Stores",GPC
18/05/2023-19/06/2023,Children & Family Services,Interior Goods Direct,12/06/2023,15.16,Provisions Purchases,Miscellaneous House Furnishing Specialty Shops,GPC
18/05/2023-19/06/2023,Children & Family Services,Iq Two Letting Propert,14/06/2023,125,Other Expenditure,Real Estate Managers - Rentals,GPC
18/05/2023-19/06/2023,Children & Family Services,Jbj Midlands Ltd,24/05/2023,142.8,Payments to Carers-Foster Care,Floor Covering Stores,GPC
18/05/2023-19/06/2023,Children & Family Services,Jbj Midlands Ltd,24/05/2023,574,Payments to Carers-Foster Care,Floor Covering Stores,GPC
18/05/2023-19/06/2023,Children & Family Services,Jbj Midlands Ltd,14/06/2023,555,Payments to Carers-Foster Care,Floor Covering Stores,GPC
18/05/2023-19/06/2023,Children & Family Services,Just Eat,23/05/2023,25,Payments to Carers-Shared Live,Quick Payment Service-Fast-Food Restaurants,GPC
18/05/2023-19/06/2023,Children & Family Services,Just Eat,23/05/2023,18.95,Payments to Carers-Shared Live,Quick Payment Service-Fast-Food Restaurants,GPC
18/05/2023-19/06/2023,Children & Family Services,Kfc Nuneaton North Dt,02/06/2023,12.37,Subsistance & Conference,Quick Payment Service-Fast-Food Restaurants,GPC
18/05/2023-19/06/2023,Children & Family Services,Kfc Selly Oak,15/06/2023,20.47,Other Expenditure,Quick Payment Service-Fast-Food Restaurants,GPC
18/05/2023-19/06/2023,Children & Family Services,Kfc-Leicester Braunsto,09/06/2023,13.73,Payments to Carers-Shared Live,Quick Payment Service-Fast-Food Restaurants,GPC
18/05/2023-19/06/2023,Children & Family Services,Kings Highway,12/06/2023,952.8,Other Expenditure,"Hotels, Motels, Resorts",GPC
18/05/2023-19/06/2023,Children & Family Services,Krispy Kreme Doughnuts Kk,17/05/2023,2.45,Payments to Carers-Shared Live,Bakeries,GPC
18/05/2023-19/06/2023,Children & Family Services,Leic City Council,16/05/2023,25.5,Other Expenditure,Government Services,GPC
18/05/2023-19/06/2023,Children & Family Services,Leic City Council,16/05/2023,25.5,Other Expenditure,Government Services,GPC
18/05/2023-19/06/2023,Children & Family Services,Leic City Council,18/05/2023,14.5,Other Expenditure,Government Services,GPC
18/05/2023-19/06/2023,Children & Family Services,Leic City Council,18/05/2023,14.5,Other Expenditure,Government Services,GPC
18/05/2023-19/06/2023,Children & Family Services,Leic City Council,23/05/2023,14.5,Other Expenditure,Government Services,GPC
18/05/2023-19/06/2023,Children & Family Services,Leic City Council,23/05/2023,12.5,Other Expenditure,Government Services,GPC
18/05/2023-19/06/2023,Children & Family Services,Leic City Council,05/06/2023,38.5,Other Expenditure,Government Services,GPC
18/05/2023-19/06/2023,Children & Family Services,Leic City Council,13/06/2023,12.5,Other Expenditure,Government Services,GPC
18/05/2023-19/06/2023,Children & Family Services,Leic City Council,13/06/2023,12.5,Other Expenditure,Government Services,GPC
18/05/2023-19/06/2023,Children & Family Services,Leic City Council,25/05/2023,12.5,Payments to Carers-Child Mindi,Government Services,GPC
18/05/2023-19/06/2023,Children & Family Services,Leic City Council,17/05/2023,12.5,Payments to Carers-Retainers,Government Services,GPC
18/05/2023-19/06/2023,Children & Family Services,Leic City Council,17/05/2023,12.5,Payments to Carers-Retainers,Government Services,GPC
18/05/2023-19/06/2023,Children & Family Services,Leic City Council,22/05/2023,25.5,Payments to Carers-Retainers,Government Services,GPC
18/05/2023-19/06/2023,Children & Family Services,Leic City Council,08/06/2023,12.5,Payments to Carers-Retainers,Government Services,GPC
18/05/2023-19/06/2023,Children & Family Services,Leic City Council,18/05/2023,246.55,Payments to Carers-Shared Live,Government Services,GPC
18/05/2023-19/06/2023,Children & Family Services,Leicester City Council,23/05/2023,2,Other Transport Costs,Automobile Parking Lots and Garages,GPC
18/05/2023-19/06/2023,Children & Family Services,Leicester City Council,26/05/2023,9,Other Transport Costs,Automobile Parking Lots and Garages,GPC
18/05/2023-19/06/2023,Children & Family Services,Leicester City Council,19/05/2023,3,Payments to Carers-Shared Live,Automobile Parking Lots and Garages,GPC
18/05/2023-19/06/2023,Children & Family Services,Leicester City Council,30/05/2023,2,Payments to Carers-Shared Live,Automobile Parking Lots and Garages,GPC
18/05/2023-19/06/2023,Children & Family Services,Leicester College,08/06/2023,20,Other Expenditure,"Colleges, Universities, Professional Schools",GPC
18/05/2023-19/06/2023,Children & Family Services,Leicester College,08/06/2023,20,Other Expenditure,"Colleges, Universities, Professional Schools",GPC
18/05/2023-19/06/2023,Children & Family Services,Leicestershire County Cou,07/06/2023,22,Payments to Carers-Retainers,Government Services,GPC
18/05/2023-19/06/2023,Children & Family Services,Licence Service Support,28/05/2023,89,Payments to Carers-Shared Live,"Attorneys, Legal Services",GPC
18/05/2023-19/06/2023,Children & Family Services,Lidl Gb Leicester,23/05/2023,51.18,Materials,Grocery Stores and Supermarkets,GPC
18/05/2023-19/06/2023,Children & Family Services,Loughborough Le,05/06/2023,28.6,General Equipment - Purchase &,"Clubs Country Clubs, Membership",GPC
18/05/2023-19/06/2023,Children & Family Services,Lovecrafts.Com,30/05/2023,111.5,Materials,Miscellaneous Accessory and Apparel Stores,GPC
18/05/2023-19/06/2023,Children & Family Services,Manomano,08/06/2023,106.43,Payments to Carers-Foster Care,Household Appliance Stores,GPC
18/05/2023-19/06/2023,Children & Family Services,Marks&spencer Plc,25/05/2023,30,General Equipment - Purchase &,Grocery Stores and Supermarkets,GPC
18/05/2023-19/06/2023,Children & Family Services,Marston Group Limited,30/05/2023,500,Other Expenditure,Fines,GPC
18/05/2023-19/06/2023,Children & Family Services,Max Electrical,23/05/2023,239.99,Other Expenditure,Household Appliance Stores,GPC
18/05/2023-19/06/2023,Children & Family Services,Max Spielmann Ltd,19/05/2023,25.98,Payments to Carers-Retainers,Miscellaneous and Specialty Retail Stores,GPC
18/05/2023-19/06/2023,Children & Family Services,Max Spielmann Ltd,19/05/2023,10,Payments to Carers-Shared Live,Miscellaneous and Specialty Retail Stores,GPC
18/05/2023-19/06/2023,Children & Family Services,McDonalds,08/06/2023,12.08,Other Expenditure,Quick Payment Service-Fast-Food Restaurants,GPC
18/05/2023-19/06/2023,Children & Family Services,McDonalds,08/06/2023,4.49,Payments to Carers-Foster Care,Quick Payment Service-Fast-Food Restaurants,GPC
18/05/2023-19/06/2023,Children & Family Services,McDonalds,31/05/2023,3.74,Payments to Carers-Retainers,Quick Payment Service-Fast-Food Restaurants,GPC
18/05/2023-19/06/2023,Children & Family Services,McDonalds,05/06/2023,20.13,Payments to Carers-Retainers,Quick Payment Service-Fast-Food Restaurants,GPC
18/05/2023-19/06/2023,Children & Family Services,McDonalds,22/05/2023,12.51,Payments to Carers-Shared Live,Quick Payment Service-Fast-Food Restaurants,GPC
18/05/2023-19/06/2023,Children & Family Services,McDonalds,30/05/2023,6.41,Payments to Carers-Shared Live,Quick Payment Service-Fast-Food Restaurants,GPC
18/05/2023-19/06/2023,Children & Family Services,McDonalds,22/05/2023,2.9,Provisions Purchases,"Eating Places, Restaurants",GPC
18/05/2023-19/06/2023,Children & Family Services,McDonalds,06/06/2023,11.2,Subsistance & Conference,Quick Payment Service-Fast-Food Restaurants,GPC
18/05/2023-19/06/2023,Children & Family Services,McDonalds,12/06/2023,5.59,Subsistance & Conference,"Eating Places, Restaurants",GPC
18/05/2023-19/06/2023,Children & Family Services,McDonalds,15/06/2023,17.12,Subsistance & Conference,Quick Payment Service-Fast-Food Restaurants,GPC
18/05/2023-19/06/2023,Children & Family Services,McDonalds 1646,06/06/2023,13.43,Payments to Carers-Foster Care,Quick Payment Service-Fast-Food Restaurants,GPC
18/05/2023-19/06/2023,Children & Family Services,McDonalds 1646,30/05/2023,11.82,Payments to Carers-Shared Live,Quick Payment Service-Fast-Food Restaurants,GPC
18/05/2023-19/06/2023,Children & Family Services,McDonalds 1658,18/05/2023,9.88,Other Expenditure,Quick Payment Service-Fast-Food Restaurants,GPC
18/05/2023-19/06/2023,Children & Family Services,McDonalds 416,08/06/2023,12.5,Subsistance & Conference,Quick Payment Service-Fast-Food Restaurants,GPC
18/05/2023-19/06/2023,Children & Family Services,Menphys,07/06/2023,30,Payments to Carers-Shared Live,"Organizations, Charitable and Social Service",GPC
18/05/2023-19/06/2023,Children & Family Services,Midland Health Ltd,08/06/2023,25,Consultants & Specialists,"Health Practitioners, Medical Services",GPC
18/05/2023-19/06/2023,Children & Family Services,Milk And More (Recur,18/05/2023,17.85,Provisions Purchases,Dairy Products Stores,GPC
18/05/2023-19/06/2023,Children & Family Services,Milk And More (Recur,25/05/2023,17.85,Provisions Purchases,Dairy Products Stores,GPC
18/05/2023-19/06/2023,Children & Family Services,Milk And More (Recur,02/06/2023,17.85,Provisions Purchases,Dairy Products Stores,GPC
18/05/2023-19/06/2023,Children & Family Services,Milk And More (Recur,08/06/2023,17.85,Provisions Purchases,Dairy Products Stores,GPC
18/05/2023-19/06/2023,Children & Family Services,Milk And More (Recur,15/06/2023,17.85,Provisions Purchases,Dairy Products Stores,GPC
18/05/2023-19/06/2023,Children & Family Services,Mip*tesco Mobile Topup,09/06/2023,30,IT Equipment Hardware,Telecommunication Services,GPC
18/05/2023-19/06/2023,Children & Family Services,Mnk*barwell Food&wine,25/05/2023,40,Payments to Carers-Shared Live,Miscellaneous Food Stores & Convenience Stores,GPC
18/05/2023-19/06/2023,Children & Family Services,Muffin Break,08/06/2023,4.9,Payments to Carers-Shared Live,"Eating Places, Restaurants",GPC
18/05/2023-19/06/2023,Children & Family Services,National Carpets Floori,07/06/2023,520,Payments to Carers-Foster Care,Floor Covering Stores,GPC
18/05/2023-19/06/2023,Children & Family Services,Ncp Limited,17/05/2023,8.95,Other Expenditure,Automobile Parking Lots and Garages,GPC
18/05/2023-19/06/2023,Children & Family Services,Ncp Limited,31/05/2023,4.35,Other Expenditure,Automobile Parking Lots and Garages,GPC
18/05/2023-19/06/2023,Children & Family Services,Ncp Limited,18/05/2023,4.35,Payments to Carers-Shared Live,Automobile Parking Lots and Garages,GPC
18/05/2023-19/06/2023,Children & Family Services,Ncp Limited,14/06/2023,2.95,Payments to Carers-Shared Live,Automobile Parking Lots and Garages,GPC
18/05/2023-19/06/2023,Children & Family Services,Newtown Linford Parking,05/06/2023,3.3,Payments to Carers-Shared Live,Automobile Parking Lots and Garages,GPC
18/05/2023-19/06/2023,Children & Family Services,Nisa Earl Shilton,30/05/2023,53.73,Payments to Carers-Shared Live,Grocery Stores and Supermarkets,GPC
18/05/2023-19/06/2023,Children & Family Services,Nottingham_cc_parking,07/06/2023,2.4,Payments to Carers-Shared Live,Automobile Parking Lots and Garages,GPC
18/05/2023-19/06/2023,Children & Family Services,Nw Leicester,12/06/2023,123.9,Other Expenditure,Other Recreation Services,GPC
18/05/2023-19/06/2023,Children & Family Services,Nw Leicester,25/05/2023,88.5,Payments to Carers-Retainers,Other Recreation Services,GPC
18/05/2023-19/06/2023,Children & Family Services,Nwldc Card Payment,19/05/2023,405.96,Other Expenditure,Government Services,GPC
18/05/2023-19/06/2023,Children & Family Services,O2,26/05/2023,63.96,Payments to Carers-Shared Live,Telecommunication Services,GPC
18/05/2023-19/06/2023,Children & Family Services,O2,26/05/2023,18.49,Payments to Carers-Shared Live,Telecommunication Services,GPC
18/05/2023-19/06/2023,Children & Family Services,Oadby & Wigston Borough C,30/05/2023,150,Other Expenditure,Government Services,GPC
18/05/2023-19/06/2023,Children & Family Services,Oadby & Wigston Borough C,30/05/2023,148,Other Expenditure,Government Services,GPC
18/05/2023-19/06/2023,Children & Family Services,Oadby & Wigston Borough C,07/06/2023,236,Other Expenditure,Government Services,GPC
18/05/2023-19/06/2023,Children & Family Services,Palmers Garden Centre,16/06/2023,26.65,Payments to Carers-Shared Live,"Nurseries, Lawn and Garden Supply Stores",GPC
18/05/2023-19/06/2023,Children & Family Services,Parking 1vr,16/06/2023,60,Other Expenditure,Automobile Parking Lots and Garages,GPC
18/05/2023-19/06/2023,Children & Family Services,Paybyphone Re Peterboroug,17/05/2023,1.5,Other Expenditure,Automobile Parking Lots and Garages,GPC
18/05/2023-19/06/2023,Children & Family Services,Paypal *argosdirect,26/05/2023,160,Payments to Carers-Foster Care,Variety Stores,GPC
18/05/2023-19/06/2023,Children & Family Services,Paypal *argosdirect,26/05/2023,932.95,Payments to Carers-Foster Care,Variety Stores,GPC
18/05/2023-19/06/2023,Children & Family Services,Paypal *argosdirect,26/05/2023,63,Payments to Carers-Foster Care,Variety Stores,GPC
18/05/2023-19/06/2023,Children & Family Services,Paypal *argosdirect,26/05/2023,308.95,Payments to Carers-Foster Care,Variety Stores,GPC
18/05/2023-19/06/2023,Children & Family Services,Paypal *slickremova Sl,20/05/2023,200,Payments to Carers-Shared Live,Other Transportation Services,GPC
18/05/2023-19/06/2023,Children & Family Services,Pcn,31/05/2023,60,Other Expenditure,Government Services,GPC
18/05/2023-19/06/2023,Children & Family Services,Peri Peri Delight,18/05/2023,29.96,Subsistance & Conference,"Eating Places, Restaurants",GPC
18/05/2023-19/06/2023,Children & Family Services,Phone For Me,06/06/2023,35,Other Expenditure,Telecommunication Equipment & Sales,GPC
18/05/2023-19/06/2023,Children & Family Services,Pinfold Medical Practi,18/05/2023,25,Other Expenditure,Other Doctors Services,GPC
18/05/2023-19/06/2023,Children & Family Services,Post Office Counter,30/05/2023,13.7,Other Expenditure,Postal Services - Government Only,GPC
18/05/2023-19/06/2023,Children & Family Services,Post Office Counter,17/05/2023,2.6,Payments to Carers-Shared Live,Postal Services - Government Only,GPC
18/05/2023-19/06/2023,Children & Family Services,Post Office Counter,23/05/2023,109,Payments to Carers-Shared Live,Postal Services - Government Only,GPC
18/05/2023-19/06/2023,Children & Family Services,Post Office Counter,30/05/2023,6.85,Payments to Carers-Shared Live,Postal Services - Government Only,GPC
18/05/2023-19/06/2023,Children & Family Services,Post Office Counter,18/05/2023,37.5,Postal Services,Postal Services - Government Only,GPC
18/05/2023-19/06/2023,Children & Family Services,Post Office Counter,24/05/2023,60,Postal Services,Postal Services - Government Only,GPC
18/05/2023-19/06/2023,Children & Family Services,Post Office Counter,24/05/2023,12,Postal Services,Postal Services - Government Only,GPC
18/05/2023-19/06/2023,Children & Family Services,Post Office Counter,09/06/2023,37.5,Postal Services,Postal Services - Government Only,GPC
18/05/2023-19/06/2023,Children & Family Services,Post Office Counter,15/06/2023,4.3,Postal Services,Postal Services - Government Only,GPC
18/05/2023-19/06/2023,Children & Family Services,Poundland Ltd - 1849,15/06/2023,6.75,Other Expenditure,Discount Stores,GPC
18/05/2023-19/06/2023,Children & Family Services,Ppoint_*aum Supermarket,25/05/2023,30.5,Other Expenditure,Grocery Stores and Supermarkets,GPC
18/05/2023-19/06/2023,Children & Family Services,Prezzee/Gb8b2fdbce,16/06/2023,20,Payments to Carers-Shared Live,Miscellaneous General Merchandise,GPC
18/05/2023-19/06/2023,Children & Family Services,Prezzee/Gb95fab8fb,16/06/2023,20,Payments to Carers-Shared Live,Miscellaneous General Merchandise,GPC
18/05/2023-19/06/2023,Children & Family Services,Primark 477,20/05/2023,22,Payments to Carers-Foster Care,Clothing Stores,GPC
18/05/2023-19/06/2023,Children & Family Services,Primark 477,08/06/2023,28,Payments to Carers-Shared Live,Clothing Stores,GPC
18/05/2023-19/06/2023,Children & Family Services,Pyn*beds Co Uk,07/06/2023,269,Payments to Carers-Foster Care,"Equipment, Furniture, and Home Furnishings Stores ",GPC
18/05/2023-19/06/2023,Children & Family Services,"Restaurant Hub, Hinckley",26/05/2023,6.92,Payments to Carers-Shared Live,"Eating Places, Restaurants",GPC
18/05/2023-19/06/2023,Children & Family Services,Rideto Mot* Rt #146655,19/05/2023,220.98,Payments to Carers-Shared Live,Other Schools and Educational Services,GPC
18/05/2023-19/06/2023,Children & Family Services,Rocket Languages Ltd,09/02/2023,-38.99,Subsistance & Conference,Quick Payment Service-Fast-Food Restaurants,GPC
18/05/2023-19/06/2023,Children & Family Services,Royal Mail Online Shop,02/06/2023,44.35,Postal Services,Postal Services - Government Only,GPC
18/05/2023-19/06/2023,Children & Family Services,Rugdoctor Cnmjksq,08/06/2023,29.98,Payments to Carers-Shared Live,Miscellaneous General Merchandise,GPC
18/05/2023-19/06/2023,Children & Family Services,Rvs Hosp Shop Cafe,26/05/2023,2.85,Other Expenditure,"Eating Places, Restaurants",GPC
18/05/2023-19/06/2023,Children & Family Services,Sainsburys S/mkt,19/05/2023,21.5,Payments to Carers-Shared Live,Grocery Stores and Supermarkets,GPC
18/05/2023-19/06/2023,Children & Family Services,Sainsburys S/mkts,25/05/2023,7.2,Cleaning Materials,Grocery Stores and Supermarkets,GPC
18/05/2023-19/06/2023,Children & Family Services,Sainsburys S/mkts,23/05/2023,22.2,General Equipment - Purchase &,Grocery Stores and Supermarkets,GPC
18/05/2023-19/06/2023,Children & Family Services,Sainsburys S/mkts,06/06/2023,20.51,General Equipment - Purchase &,Grocery Stores and Supermarkets,GPC
18/05/2023-19/06/2023,Children & Family Services,Sainsburys S/mkts,14/06/2023,10,General Equipment - Purchase &,Grocery Stores and Supermarkets,GPC
18/05/2023-19/06/2023,Children & Family Services,Sainsburys S/mkts,23/05/2023,1.25,Materials,Grocery Stores and Supermarkets,GPC
18/05/2023-19/06/2023,Children & Family Services,Sainsburys S/mkts,01/06/2023,11.14,Other Expenditure,Grocery Stores and Supermarkets,GPC
18/05/2023-19/06/2023,Children & Family Services,Sainsburys S/mkts,30/05/2023,35.6,Other Services ,Grocery Stores and Supermarkets,GPC
18/05/2023-19/06/2023,Children & Family Services,Sainsburys S/mkts,30/05/2023,35,Other Services ,Grocery Stores and Supermarkets,GPC
18/05/2023-19/06/2023,Children & Family Services,Sainsburys S/mkts,02/06/2023,35.6,Other Services ,Grocery Stores and Supermarkets,GPC
18/05/2023-19/06/2023,Children & Family Services,Sainsburys S/mkts,22/05/2023,29.65,Payments to Carers-Foster Care,Grocery Stores and Supermarkets,GPC
18/05/2023-19/06/2023,Children & Family Services,Sainsburys S/mkts,26/05/2023,40.05,Payments to Carers-Foster Care,Grocery Stores and Supermarkets,GPC
18/05/2023-19/06/2023,Children & Family Services,Sainsburys S/mkts,01/06/2023,60.84,Payments to Carers-Foster Care,Grocery Stores and Supermarkets,GPC
18/05/2023-19/06/2023,Children & Family Services,Sainsburys S/mkts,16/06/2023,58.25,Payments to Carers-Foster Care,Grocery Stores and Supermarkets,GPC
18/05/2023-19/06/2023,Children & Family Services,Sapcote Garden Centre Lt,07/06/2023,22.49,Provisions Purchases,"Nurseries, Lawn and Garden Supply Stores",GPC
18/05/2023-19/06/2023,Children & Family Services,Savapartments.Com,17/05/2023,92.85,Consultants & Specialists,Real Estate Managers - Rentals,GPC
18/05/2023-19/06/2023,Children & Family Services,Selecta U.K. Limited,14/06/2023,2.2,Other Expenditure,Miscellaneous Food Stores & Convenience Stores,GPC
18/05/2023-19/06/2023,Children & Family Services,Selecta U.K. Limited,14/06/2023,2,Payments to Carers-Shared Live,Miscellaneous Food Stores & Convenience Stores,GPC
18/05/2023-19/06/2023,Children & Family Services,Smyths Toys,15/06/2023,358.28,Materials,"Game, Toy, and Hobby Shops",GPC
18/05/2023-19/06/2023,Children & Family Services,Smyths Toys,24/05/2023,89.99,Payments to Carers-Foster Care,"Game, Toy, and Hobby Shops",GPC
18/05/2023-19/06/2023,Children & Family Services,Smyths Toys,27/05/2023,89.99,Payments to Carers-Foster Care,"Game, Toy, and Hobby Shops",GPC
18/05/2023-19/06/2023,Children & Family Services,Snackmore Vending Limited,08/06/2023,1.3,Provisions Purchases,Miscellaneous Food Stores & Convenience Stores,GPC
18/05/2023-19/06/2023,Children & Family Services,Snackmore Vending Limited,08/06/2023,1.3,Provisions Purchases,Miscellaneous Food Stores & Convenience Stores,GPC
18/05/2023-19/06/2023,Children & Family Services,Snappy Snaps,24/05/2023,12.99,Payments to Carers-Shared Live,Miscellaneous and Specialty Retail Stores,GPC
18/05/2023-19/06/2023,Children & Family Services,Sovranos - Hinckley,02/06/2023,12.6,Payments to Carers-Shared Live,"Eating Places, Restaurants",GPC
18/05/2023-19/06/2023,Children & Family Services,Sp Black Friday Stor,08/06/2023,39.98,Payments to Carers-Shared Live,"Equipment, Furniture, and Home Furnishings Stores ",GPC
18/05/2023-19/06/2023,Children & Family Services,Spar,08/06/2023,1.85,Provisions Purchases,Grocery Stores and Supermarkets,GPC
18/05/2023-19/06/2023,Children & Family Services,Spar,14/06/2023,1.54,Provisions Purchases,Grocery Stores and Supermarkets,GPC
18/05/2023-19/06/2023,Children & Family Services,Sportsdirect,08/06/2023,22.99,Payments to Carers-Foster Care,"Sports Apparel, Riding Apparel Stores",GPC
18/05/2023-19/06/2023,Children & Family Services,Sportsdirect 65,17/05/2023,18.48,General Equipment - Purchase &,Sporting Goods Stores,GPC
18/05/2023-19/06/2023,Children & Family Services,Sq *everest Taxis Ltd,17/05/2023,60,Payments to Carers-Shared Live,Taxi Services,GPC
18/05/2023-19/06/2023,Children & Family Services,Sq *everest Taxis Ltd,17/05/2023,50,Payments to Carers-Shared Live,Taxi Services,GPC
18/05/2023-19/06/2023,Children & Family Services,Staffordshire County C,05/06/2023,11,Payments to Carers-Child Mindi,Government Services,GPC
18/05/2023-19/06/2023,Children & Family Services,Staffordshire County C,12/06/2023,-11,Payments to Carers-Child Mindi,Government Services,GPC
18/05/2023-19/06/2023,Children & Family Services,Staffordshire County C,22/05/2023,22,Payments to Carers-Retainers,Government Services,GPC
18/05/2023-19/06/2023,Children & Family Services,Stagecoach Services,07/06/2023,2,Client / Volunteers Reimbursem,Bus Lines,GPC
18/05/2023-19/06/2023,Children & Family Services,Stagecoach Services,07/06/2023,2,Client / Volunteers Reimbursem,Bus Lines,GPC
18/05/2023-19/06/2023,Children & Family Services,Stagecoach Services,24/05/2023,34.5,Payments to Carers-Shared Live,Bus Lines,GPC
18/05/2023-19/06/2023,Children & Family Services,Subway,31/05/2023,1.08,Provisions Purchases,Grocery Stores and Supermarkets,GPC
18/05/2023-19/06/2023,Children & Family Services,Subway 64586 Tungstun,18/05/2023,15.64,Payments to Carers-Shared Live,Quick Payment Service-Fast-Food Restaurants,GPC
18/05/2023-19/06/2023,Children & Family Services,Subway Royal Oak,19/05/2023,18.36,Other Expenditure,Quick Payment Service-Fast-Food Restaurants,GPC
18/05/2023-19/06/2023,Children & Family Services,Sumup *loughborough R,17/05/2023,5.67,Other Expenditure,"Eating Places, Restaurants",GPC
18/05/2023-19/06/2023,Children & Family Services,Sumup *queen S Park C,12/06/2023,3.6,Payments to Carers-Retainers,"Eating Places, Restaurants",GPC
18/05/2023-19/06/2023,Children & Family Services,Tamasha Restaurant,02/06/2023,51.92,Payments to Carers-Shared Live,"Eating Places, Restaurants",GPC
18/05/2023-19/06/2023,Children & Family Services,Tesco Online,23/05/2023,52.99,IT Equipment Hardware,Miscellaneous and Specialty Retail Stores,GPC
18/05/2023-19/06/2023,Children & Family Services,Tesco Stores,19/05/2023,6.65,Catering,Grocery Stores and Supermarkets,GPC
18/05/2023-19/06/2023,Children & Family Services,Tesco Stores,22/05/2023,2,Materials,Grocery Stores and Supermarkets,GPC
18/05/2023-19/06/2023,Children & Family Services,Tesco Stores,24/05/2023,4.1,Other Expenditure,Grocery Stores and Supermarkets,GPC
18/05/2023-19/06/2023,Children & Family Services,Tesco Stores,18/05/2023,1.58,Provisions Purchases,Grocery Stores and Supermarkets,GPC
18/05/2023-19/06/2023,Children & Family Services,Tesco Stores,24/05/2023,1.25,Provisions Purchases,Grocery Stores and Supermarkets,GPC
18/05/2023-19/06/2023,Children & Family Services,Tesco Stores,01/06/2023,3.67,Provisions Purchases,Grocery Stores and Supermarkets,GPC
18/05/2023-19/06/2023,Children & Family Services,Tesco Stores,08/06/2023,1.71,Provisions Purchases,Grocery Stores and Supermarkets,GPC
18/05/2023-19/06/2023,Children & Family Services,Tesco Stores 2044,12/06/2023,6.34,General Equipment - Purchase &,Grocery Stores and Supermarkets,GPC
18/05/2023-19/06/2023,Children & Family Services,Tesco Stores 2849,15/06/2023,26.99,General Equipment - Purchase &,Grocery Stores and Supermarkets,GPC
18/05/2023-19/06/2023,Children & Family Services,Tesco Stores 2849,15/06/2023,3.3,Materials,Grocery Stores and Supermarkets,GPC
18/05/2023-19/06/2023,Children & Family Services,Tesco Stores 2849,01/06/2023,94.93,Other Expenditure,Grocery Stores and Supermarkets,GPC
18/05/2023-19/06/2023,Children & Family Services,Tesco Stores 2849,30/05/2023,3.3,Provisions Purchases,Grocery Stores and Supermarkets,GPC
18/05/2023-19/06/2023,Children & Family Services,Tesco Stores 2886,06/06/2023,10,Provisions Purchases,Grocery Stores and Supermarkets,GPC
18/05/2023-19/06/2023,Children & Family Services,Tesco Stores 5182,31/05/2023,15.6,Materials,Grocery Stores and Supermarkets,GPC
18/05/2023-19/06/2023,Children & Family Services,Tesco Stores 5182,30/05/2023,2.05,Payments to Carers-Shared Live,Grocery Stores and Supermarkets,GPC
18/05/2023-19/06/2023,Children & Family Services,Tesco Stores 5921,20/05/2023,12.5,Other Expenditure,Grocery Stores and Supermarkets,GPC
18/05/2023-19/06/2023,Children & Family Services,Tesco Stores 5921,18/06/2023,36.25,Payments to Carers-Foster Care,Grocery Stores and Supermarkets,GPC
18/05/2023-19/06/2023,Children & Family Services,Tesco Stores 6135,17/05/2023,23.31,Payments to Carers-Shared Live,Grocery Stores and Supermarkets,GPC
18/05/2023-19/06/2023,Children & Family Services,Tesco Stores 6135,23/05/2023,69,Payments to Carers-Shared Live,Grocery Stores and Supermarkets,GPC
18/05/2023-19/06/2023,Children & Family Services,Tesco Stores 6135,06/06/2023,26.3,Payments to Carers-Shared Live,Grocery Stores and Supermarkets,GPC
18/05/2023-19/06/2023,Children & Family Services,The Air Ambulance Service,17/05/2023,165.4,Payments to Carers-Foster Care,"Organizations, Charitable and Social Service",GPC
18/05/2023-19/06/2023,Children & Family Services,The Air Ambulance Service,17/05/2023,10,Payments to Carers-Shared Live,"Organizations, Charitable and Social Service",GPC
18/05/2023-19/06/2023,Children & Family Services,The Bradgate Park And Swi,05/06/2023,10,Other Expenditure,Quick Payment Service-Fast-Food Restaurants,GPC
18/05/2023-19/06/2023,Children & Family Services,The Country Crust,13/06/2023,10.2,Subsistance & Conference,"Eating Places, Restaurants",GPC
18/05/2023-19/06/2023,Children & Family Services,The Manor House At Quo,02/06/2023,60,Training Expenses ,"Eating Places, Restaurants",GPC
18/05/2023-19/06/2023,Children & Family Services,The Mick George Group,06/06/2023,208.33,Payments to Carers-Child Mindi,Other Business Services,GPC
18/05/2023-19/06/2023,Children & Family Services,The Range,24/05/2023,500.76,Payments to Carers-Foster Care,Miscellaneous House Furnishing Specialty Shops,GPC
18/05/2023-19/06/2023,Children & Family Services,Thelo Services Ltd,17/05/2023,1000,Other Expenditure,"Associations-Civic, Social, and Fraternal",GPC
18/05/2023-19/06/2023,Children & Family Services,Thelo Services Ltd,17/05/2023,672,Payments to Carers-Foster Care,"Associations-Civic, Social, and Fraternal",GPC
18/05/2023-19/06/2023,Children & Family Services,Thelo Services Ltd,17/05/2023,1000,Payments to Carers-Foster Care,"Associations-Civic, Social, and Fraternal",GPC
18/05/2023-19/06/2023,Children & Family Services,Tk Maxx,15/06/2023,64.26,Payments to Carers-Shared Live,Variety Stores,GPC
18/05/2023-19/06/2023,Children & Family Services,Trainline,18/05/2023,153.12,Other Expenditure,Passenger Railways,GPC
18/05/2023-19/06/2023,Children & Family Services,Trainline,05/06/2023,16.6,Other Expenditure,Passenger Railways,GPC
18/05/2023-19/06/2023,Children & Family Services,Trainline,30/05/2023,32.58,Payments to Carers-Retainers,Passenger Railways,GPC
18/05/2023-19/06/2023,Children & Family Services,Trainline,12/06/2023,24.03,Payments to Carers-Retainers,Passenger Railways,GPC
18/05/2023-19/06/2023,Children & Family Services,Trainline.Com,22/05/2023,24.03,Payments to Carers-Retainers,Passenger Railways,GPC
18/05/2023-19/06/2023,Children & Family Services,Trainline.Com,01/06/2023,67.82,Payments to Carers-Retainers,Passenger Railways,GPC
18/05/2023-19/06/2023,Children & Family Services,Trainline.Com,01/06/2023,153.78,Payments to Carers-Retainers,Passenger Railways,GPC
18/05/2023-19/06/2023,Children & Family Services,Trainline.Com,05/06/2023,24.03,Payments to Carers-Retainers,Passenger Railways,GPC
18/05/2023-19/06/2023,Children & Family Services,Trainline.Com,06/06/2023,11.09,Payments to Carers-Retainers,Passenger Railways,GPC
18/05/2023-19/06/2023,Children & Family Services,Trainline.Com,06/06/2023,11.09,Payments to Carers-Retainers,Passenger Railways,GPC
18/05/2023-19/06/2023,Children & Family Services,Trainline.Com,22/05/2023,87.38,Payments to Carers-Shared Live,Passenger Railways,GPC
18/05/2023-19/06/2023,Children & Family Services,Trainline.Com,01/06/2023,17,Payments to Carers-Shared Live,Passenger Railways,GPC
18/05/2023-19/06/2023,Children & Family Services,Trainline.Com,02/06/2023,9.36,Payments to Carers-Shared Live,Passenger Railways,GPC
18/05/2023-19/06/2023,Children & Family Services,Trainline.Com,08/06/2023,142.99,Public Transport - Staff Trave,Passenger Railways,GPC
18/05/2023-19/06/2023,Children & Family Services,Travelodge Gb0000,18/05/2023,73.08,Payments to Carers-Child Mindi,Travelodge,GPC
18/05/2023-19/06/2023,Children & Family Services,Travelodge Gb0000,22/05/2023,798.51,Payments to Carers-Shared Live,Travelodge,GPC
18/05/2023-19/06/2023,Children & Family Services,Travelodge Gb0000,06/06/2023,724.12,Payments to Carers-Shared Live,Travelodge,GPC
18/05/2023-19/06/2023,Children & Family Services,Tu At Sainsburys,09/06/2023,38.5,General Equipment - Purchase &,Grocery Stores and Supermarkets,GPC
18/05/2023-19/06/2023,Children & Family Services,Tu At Sainsburys,14/06/2023,17,General Equipment - Purchase &,Grocery Stores and Supermarkets,GPC
18/05/2023-19/06/2023,Children & Family Services,Tvlicensing.Co.Uk,06/06/2023,159,Payments to Carers-Shared Live,"Consulting, Management, and PR Services",GPC
18/05/2023-19/06/2023,Children & Family Services,Twycross Zoo,05/06/2023,14.1,Payments to Carers-Retainers,Quick Payment Service-Fast-Food Restaurants,GPC
18/05/2023-19/06/2023,Children & Family Services,Tz Online Ticket Web,01/06/2023,50.5,Payments to Carers-Retainers,"Aquariums, Dolphinariums, and Seaquariums",GPC
18/05/2023-19/06/2023,Children & Family Services,U Super,14/06/2023,11.6,Payments to Carers-Shared Live,Grocery Stores and Supermarkets,GPC
18/05/2023-19/06/2023,Children & Family Services,Uber *trip,16/05/2023,17.55,Payments to Carers-Shared Live,Taxi Services,GPC
18/05/2023-19/06/2023,Children & Family Services,Uber* Trip,17/05/2023,24.48,Payments to Carers-Foster Care,Taxi Services,GPC
18/05/2023-19/06/2023,Children & Family Services,Uber* Trip,17/05/2023,24.48,Payments to Carers-Foster Care,Taxi Services,GPC
18/05/2023-19/06/2023,Children & Family Services,Ucas,23/05/2023,27,Payments to Carers-Foster Care,"Colleges, Universities, Professional Schools",GPC
18/05/2023-19/06/2023,Children & Family Services,Udemy: Online Courses,30/01/2023,-9.71,Subsistance & Conference,Quick Payment Service-Fast-Food Restaurants,GPC
18/05/2023-19/06/2023,Children & Family Services,Virgin Media Pymts,26/05/2023,90.5,Payments to Carers-Shared Live,Telecommunication Services,GPC
18/05/2023-19/06/2023,Children & Family Services,Wf *uk3844143524,19/05/2023,-347.26,Materials,"Equipment, Furniture, and Home Furnishings Stores ",GPC
18/05/2023-19/06/2023,Children & Family Services,Wilko Retail Limited,05/06/2023,12,General Equipment - Purchase &,Miscellaneous General Merchandise,GPC
18/05/2023-19/06/2023,Children & Family Services,Wilko Retail Limited,17/05/2023,8.79,Payments to Carers-Foster Care,Miscellaneous General Merchandise,GPC
18/05/2023-19/06/2023,Children & Family Services,Wilko Retail Limited,08/06/2023,91.46,Payments to Carers-Shared Live,Miscellaneous General Merchandise,GPC
18/05/2023-19/06/2023,Children & Family Services,Wilko Retail Limited,12/06/2023,1.25,Provisions Purchases,Miscellaneous General Merchandise,GPC
18/05/2023-19/06/2023,Children & Family Services,Window Blind Spares,02/06/2023,10.1,General Equipment - Purchase &,"Drapery, Upholstery, and Window Coverings Stores",GPC
18/05/2023-19/06/2023,Children & Family Services,Winfield Supermarket,26/05/2023,1.79,Payments to Carers-Shared Live,News Dealers and Newsstands,GPC
18/05/2023-19/06/2023,Children & Family Services,Wm Morrisons Store,30/05/2023,26.24,General Equipment - Purchase &,Grocery Stores and Supermarkets,GPC
18/05/2023-19/06/2023,Children & Family Services,Wm Morrisons Store,30/05/2023,4.89,General Equipment - Purchase &,Grocery Stores and Supermarkets,GPC
18/05/2023-19/06/2023,Children & Family Services,Wm Morrisons Store,05/06/2023,6.03,General Equipment - Purchase &,Grocery Stores and Supermarkets,GPC
18/05/2023-19/06/2023,Children & Family Services,Wm Morrisons Store,12/06/2023,1.45,General Equipment - Purchase &,Grocery Stores and Supermarkets,GPC
18/05/2023-19/06/2023,Children & Family Services,Wm Morrisons Store,16/06/2023,6.98,General Equipment - Purchase &,Grocery Stores and Supermarkets,GPC
18/05/2023-19/06/2023,Children & Family Services,Wm Morrisons Store,03/06/2023,57.49,Materials,Grocery Stores and Supermarkets,GPC
18/05/2023-19/06/2023,Children & Family Services,Wm Morrisons Store,18/05/2023,17.48,Other Expenditure,Grocery Stores and Supermarkets,GPC
18/05/2023-19/06/2023,Children & Family Services,Wm Morrisons Store,26/05/2023,19.57,Other Expenditure,Grocery Stores and Supermarkets,GPC
18/05/2023-19/06/2023,Children & Family Services,Wm Morrisons Store,01/06/2023,17.47,Other Services ,Grocery Stores and Supermarkets,GPC
18/05/2023-19/06/2023,Children & Family Services,Wm Morrisons Store,24/05/2023,77.67,Payments to Carers-Foster Care,Grocery Stores and Supermarkets,GPC
18/05/2023-19/06/2023,Children & Family Services,Wm Morrisons Store,06/06/2023,20,Payments to Carers-Foster Care,Grocery Stores and Supermarkets,GPC
18/05/2023-19/06/2023,Children & Family Services,Wm Morrisons Store,24/05/2023,10,Payments to Carers-Shared Live,Grocery Stores and Supermarkets,GPC
18/05/2023-19/06/2023,Children & Family Services,Wm Morrisons Store,08/06/2023,13.99,Payments to Carers-Shared Live,Grocery Stores and Supermarkets,GPC
18/05/2023-19/06/2023,Children & Family Services,Wm Morrisons Store,16/06/2023,47.44,Payments to Carers-Shared Live,Grocery Stores and Supermarkets,GPC
18/05/2023-19/06/2023,Children & Family Services,Www.Abakusdirect.Co.Uk,05/06/2023,329.17,Payments to Carers-Foster Care,"Equipment, Furniture, and Home Furnishings Stores ",GPC
18/05/2023-19/06/2023,Children & Family Services,Www.Argos.Co.Uk,22/05/2023,28.29,General Equipment - Purchase &,Department Stores,GPC
18/05/2023-19/06/2023,Children & Family Services,Www.Argos.Co.Uk,22/05/2023,90,General Equipment - Purchase &,Department Stores,GPC
18/05/2023-19/06/2023,Children & Family Services,Www.Argos.Co.Uk,24/05/2023,62.5,General Equipment - Purchase &,Department Stores,GPC
18/05/2023-19/06/2023,Children & Family Services,Www.Argos.Co.Uk,25/05/2023,83.33,General Equipment - Purchase &,Department Stores,GPC
18/05/2023-19/06/2023,Children & Family Services,Www.Argos.Co.Uk,05/06/2023,46.67,General Equipment - Purchase &,Department Stores,GPC
18/05/2023-19/06/2023,Children & Family Services,Www.Argos.Co.Uk,19/05/2023,65.95,Materials,Department Stores,GPC
18/05/2023-19/06/2023,Children & Family Services,Www.Argos.Co.Uk,14/06/2023,776.95,Materials,Department Stores,GPC
18/05/2023-19/06/2023,Children & Family Services,Www.Argos.Co.Uk,01/06/2023,43.29,Payments to Carers-Child Mindi,Department Stores,GPC
18/05/2023-19/06/2023,Children & Family Services,Www.Argos.Co.Uk,02/06/2023,54.17,Payments to Carers-Child Mindi,Department Stores,GPC
18/05/2023-19/06/2023,Children & Family Services,Www.Argos.Co.Uk,13/06/2023,98.95,Payments to Carers-Child Mindi,Department Stores,GPC
18/05/2023-19/06/2023,Children & Family Services,Www.Argos.Co.Uk,13/06/2023,13.29,Payments to Carers-Child Mindi,Department Stores,GPC
18/05/2023-19/06/2023,Children & Family Services,Www.Argos.Co.Uk,16/06/2023,16.95,Payments to Carers-Child Mindi,Department Stores,GPC
18/05/2023-19/06/2023,Children & Family Services,Www.Argos.Co.Uk,16/06/2023,57.95,Payments to Carers-Child Mindi,Department Stores,GPC
18/05/2023-19/06/2023,Children & Family Services,Www.Argos.Co.Uk,17/05/2023,284.95,Payments to Carers-Foster Care,Department Stores,GPC
18/05/2023-19/06/2023,Children & Family Services,Www.Argos.Co.Uk,19/05/2023,249,Payments to Carers-Foster Care,Department Stores,GPC
18/05/2023-19/06/2023,Children & Family Services,Www.Argos.Co.Uk,22/05/2023,399,Payments to Carers-Foster Care,Department Stores,GPC
18/05/2023-19/06/2023,Children & Family Services,Www.Argos.Co.Uk,22/05/2023,525,Payments to Carers-Foster Care,Department Stores,GPC
18/05/2023-19/06/2023,Children & Family Services,Www.Argos.Co.Uk,22/05/2023,13.5,Payments to Carers-Foster Care,Department Stores,GPC
18/05/2023-19/06/2023,Children & Family Services,Www.Argos.Co.Uk,22/05/2023,50,Payments to Carers-Foster Care,Department Stores,GPC
18/05/2023-19/06/2023,Children & Family Services,Www.Argos.Co.Uk,01/06/2023,58.95,Payments to Carers-Foster Care,Department Stores,GPC
18/05/2023-19/06/2023,Children & Family Services,Www.Argos.Co.Uk,01/06/2023,180,Payments to Carers-Foster Care,Department Stores,GPC
18/05/2023-19/06/2023,Children & Family Services,Www.Argos.Co.Uk,09/06/2023,-618.95,Payments to Carers-Foster Care,Department Stores,GPC
18/05/2023-19/06/2023,Children & Family Services,Www.Argos.Co.Uk,09/06/2023,618.95,Payments to Carers-Foster Care,Department Stores,GPC
18/05/2023-19/06/2023,Children & Family Services,Www.Argos.Co.Uk,14/06/2023,709,Payments to Carers-Foster Care,Department Stores,GPC
18/05/2023-19/06/2023,Children & Family Services,Www.Argos.Co.Uk,14/06/2023,180,Payments to Carers-Foster Care,Department Stores,GPC
18/05/2023-19/06/2023,Children & Family Services,Www.Argos.Co.Uk,24/05/2023,139.17,Payments to Carers-Retainers,Department Stores,GPC
18/05/2023-19/06/2023,Children & Family Services,Www.Argos.Co.Uk,25/05/2023,105,Payments to Carers-Retainers,Department Stores,GPC
18/05/2023-19/06/2023,Children & Family Services,Www.Argos.Co.Uk,25/05/2023,78.33,Payments to Carers-Retainers,Department Stores,GPC
18/05/2023-19/06/2023,Children & Family Services,Www.Argos.Co.Uk,01/06/2023,51.67,Payments to Carers-Retainers,Department Stores,GPC
18/05/2023-19/06/2023,Children & Family Services,Www.Argos.Co.Uk,16/06/2023,40.94,Payments to Carers-Shared Live,Department Stores,GPC
18/05/2023-19/06/2023,Children & Family Services,Www.Bloomandwild.Com,14/06/2023,24,Recruitment ,Florists,GPC
18/05/2023-19/06/2023,Children & Family Services,Www.Kinchbus.Co.Uk,16/06/2023,20,Other Expenditure,Bus Lines,GPC
18/05/2023-19/06/2023,Children & Family Services,Www.Mapac.Com,14/06/2023,58.62,General Equipment - Purchase &,Childrens and Infants Wear Stores,GPC
18/05/2023-19/06/2023,Children & Family Services,Www.Temptationgifts.Com,22/05/2023,20.59,General Equipment - Purchase &,"Card, Gift, Novelty, and Souvenir Shops",GPC
18/05/2023-19/06/2023,Children & Family Services,Www.Therange.Co.Uk,23/05/2023,189.99,Payments to Carers-Foster Care,Miscellaneous House Furnishing Specialty Shops,GPC
18/05/2023-19/06/2023,Children & Family Services,Www.Therange.Co.Uk,26/05/2023,57.83,Payments to Carers-Foster Care,Miscellaneous House Furnishing Specialty Shops,GPC
18/05/2023-19/06/2023,Children & Family Services,Www.Therange.Co.Uk,13/06/2023,43.9,Payments to Carers-Shared Live,Miscellaneous House Furnishing Specialty Shops,GPC
18/05/2023-19/06/2023,Children & Family Services,Wwwkegworthhotelcouk,14/06/2023,48.38,Other Expenditure,"Hotels, Motels, Resorts",GPC
18/05/2023-19/06/2023,Children & Family Services,X-Sport,06/06/2023,6.99,Provisions Purchases,Sporting Goods Stores,GPC
18/05/2023-19/06/2023,Children & Family Services,Zapato Lounge,24/05/2023,12.35,Other Expenditure,"Bars, Cocktail Lounges, Discotheques, Nightclubs",GPC
18/05/2023-19/06/2023,Children & Family Services,Zettle_*hinckley Homel,31/05/2023,84,Payments to Carers-Shared Live,"Organizations, Charitable and Social Service",GPC
18/05/2023-19/06/2023,Corporate Resources,Abellio East Midlands,09/06/2023,10,Other Transport Costs,Automobile Parking Lots and Garages,GPC
18/05/2023-19/06/2023,Corporate Resources,Aldi Stores Uk,21/05/2023,9.25,Materials,Grocery Stores and Supermarkets,GPC
18/05/2023-19/06/2023,Corporate Resources,Aldi Stores Uk,30/05/2023,6.86,Materials,Grocery Stores and Supermarkets,GPC
18/05/2023-19/06/2023,Corporate Resources,Aldi Stores Uk,13/06/2023,8.64,Materials,Grocery Stores and Supermarkets,GPC
18/05/2023-19/06/2023,Corporate Resources,Amazon.Co.Uk*dc8ux2qq5,07/06/2023,64.16,Reactive Maintenance M&E,Other Direct Marketing-Other Direct Marketers,GPC
18/05/2023-19/06/2023,Corporate Resources,Amzn Mktp Uk*8k1ww3o95,06/06/2023,58.49,Other Expenditure,Book Stores,GPC
18/05/2023-19/06/2023,Corporate Resources,Amzn Mktp Uk*dj2qr1yz5 Am,05/06/2023,80,Other Expenditure,Book Stores,GPC
18/05/2023-19/06/2023,Corporate Resources,Amznbusiness*0i8f36735,30/05/2023,26.97,Materials,Miscellaneous and Specialty Retail Stores,GPC
18/05/2023-19/06/2023,Corporate Resources,Amznbusiness*1c8hv1to4,14/06/2023,49.17,Training Expenses ,Miscellaneous and Specialty Retail Stores,GPC
18/05/2023-19/06/2023,Corporate Resources,Amznbusiness*3h5xv1hi5,04/06/2023,20.79,Materials,Miscellaneous and Specialty Retail Stores,GPC
18/05/2023-19/06/2023,Corporate Resources,Amznbusiness*9e6qs06j5,11/06/2023,29.16,Training Expenses ,Miscellaneous and Specialty Retail Stores,GPC
18/05/2023-19/06/2023,Corporate Resources,Amznbusiness*9n4yc6c85,09/06/2023,29.16,Training Expenses ,Miscellaneous and Specialty Retail Stores,GPC
18/05/2023-19/06/2023,Corporate Resources,Amznbusiness*e19qo1r85,09/06/2023,29.16,Training Expenses ,Miscellaneous and Specialty Retail Stores,GPC
18/05/2023-19/06/2023,Corporate Resources,Amznbusiness*e21xq4ro5,06/06/2023,15,Materials,Miscellaneous and Specialty Retail Stores,GPC
18/05/2023-19/06/2023,Corporate Resources,Amznbusiness*ha0dz3pm5,03/06/2023,9.99,Other Expenditure,Miscellaneous and Specialty Retail Stores,GPC
18/05/2023-19/06/2023,Corporate Resources,Amznbusiness*hs8tf9lh5,06/06/2023,5.28,Materials,Miscellaneous and Specialty Retail Stores,GPC
18/05/2023-19/06/2023,Corporate Resources,Amznbusiness*l42808yc5,25/05/2023,9.99,Other Expenditure,Miscellaneous and Specialty Retail Stores,GPC
18/05/2023-19/06/2023,Corporate Resources,Amznbusiness*q05yb8k15,24/05/2023,22,Training Expenses ,Miscellaneous and Specialty Retail Stores,GPC
18/05/2023-19/06/2023,Corporate Resources,Amznbusiness*sj2fx3it5,30/05/2023,7.11,Materials,Miscellaneous and Specialty Retail Stores,GPC
18/05/2023-19/06/2023,Corporate Resources,Amznbusiness*vq67c0nq5,23/05/2023,70.82,General Equipment - Purchase &,Miscellaneous and Specialty Retail Stores,GPC
18/05/2023-19/06/2023,Corporate Resources,Amznbusiness*y190c58y5,30/05/2023,22.32,Materials,Miscellaneous and Specialty Retail Stores,GPC
18/05/2023-19/06/2023,Corporate Resources,Amznbusiness*zd6wz9ek5,30/05/2023,32.57,General Equipment - Purchase &,Miscellaneous and Specialty Retail Stores,GPC
18/05/2023-19/06/2023,Corporate Resources,Amznbusiness*zs2mj33x5,09/06/2023,29.16,Training Expenses ,Miscellaneous and Specialty Retail Stores,GPC
18/05/2023-19/06/2023,Corporate Resources,Amznmktplace,31/05/2023,9.99,General Equipment - Purchase &,Miscellaneous and Specialty Retail Stores,GPC
18/05/2023-19/06/2023,Corporate Resources,Amznmktplace,12/06/2023,19.99,General Equipment - Purchase &,Miscellaneous and Specialty Retail Stores,GPC
18/05/2023-19/06/2023,Corporate Resources,Amznmktplace,18/05/2023,42.49,IT Equipment Hardware,Miscellaneous and Specialty Retail Stores,GPC
18/05/2023-19/06/2023,Corporate Resources,Amznmktplace,21/05/2023,26.2,Materials,Miscellaneous and Specialty Retail Stores,GPC
18/05/2023-19/06/2023,Corporate Resources,Amznmktplace,22/05/2023,22.99,Materials,Miscellaneous and Specialty Retail Stores,GPC
18/05/2023-19/06/2023,Corporate Resources,Amznmktplace,22/05/2023,46.17,Materials,Miscellaneous and Specialty Retail Stores,GPC
18/05/2023-19/06/2023,Corporate Resources,Amznmktplace,22/05/2023,34.99,Materials,Miscellaneous and Specialty Retail Stores,GPC
18/05/2023-19/06/2023,Corporate Resources,Amznmktplace,23/05/2023,5.42,Materials,Miscellaneous and Specialty Retail Stores,GPC
18/05/2023-19/06/2023,Corporate Resources,Amznmktplace,23/05/2023,7.07,Materials,Miscellaneous and Specialty Retail Stores,GPC
18/05/2023-19/06/2023,Corporate Resources,Amznmktplace,23/05/2023,20.96,Materials,Miscellaneous and Specialty Retail Stores,GPC
18/05/2023-19/06/2023,Corporate Resources,Amznmktplace,24/05/2023,2.99,Materials,Miscellaneous and Specialty Retail Stores,GPC
18/05/2023-19/06/2023,Corporate Resources,Amznmktplace,25/05/2023,11.67,Materials,Miscellaneous and Specialty Retail Stores,GPC
18/05/2023-19/06/2023,Corporate Resources,Amznmktplace,25/05/2023,23.98,Materials,Miscellaneous and Specialty Retail Stores,GPC
18/05/2023-19/06/2023,Corporate Resources,Amznmktplace,29/05/2023,15.99,Materials,Miscellaneous and Specialty Retail Stores,GPC
18/05/2023-19/06/2023,Corporate Resources,Amznmktplace,01/06/2023,16.65,Materials,Miscellaneous and Specialty Retail Stores,GPC
18/05/2023-19/06/2023,Corporate Resources,Amznmktplace,02/06/2023,2.99,Materials,Miscellaneous and Specialty Retail Stores,GPC
18/05/2023-19/06/2023,Corporate Resources,Amznmktplace,06/06/2023,39.82,Materials,Miscellaneous and Specialty Retail Stores,GPC
18/05/2023-19/06/2023,Corporate Resources,Amznmktplace,08/06/2023,14.44,Materials,Miscellaneous and Specialty Retail Stores,GPC
18/05/2023-19/06/2023,Corporate Resources,Amznmktplace,08/06/2023,30.98,Materials,Miscellaneous and Specialty Retail Stores,GPC
18/05/2023-19/06/2023,Corporate Resources,Amznmktplace,09/06/2023,182.97,Materials,Miscellaneous and Specialty Retail Stores,GPC
18/05/2023-19/06/2023,Corporate Resources,Amznmktplace,14/06/2023,18.99,Materials,Miscellaneous and Specialty Retail Stores,GPC
18/05/2023-19/06/2023,Corporate Resources,Amznmktplace,15/06/2023,9.59,Materials,Miscellaneous and Specialty Retail Stores,GPC
18/05/2023-19/06/2023,Corporate Resources,Amznmktplace,15/06/2023,7.44,Materials,Miscellaneous and Specialty Retail Stores,GPC
18/05/2023-19/06/2023,Corporate Resources,Amznmktplace,15/06/2023,28.99,Materials,Miscellaneous and Specialty Retail Stores,GPC
18/05/2023-19/06/2023,Corporate Resources,Amznmktplace,17/05/2023,8.44,Other Expenditure,Miscellaneous and Specialty Retail Stores,GPC
18/05/2023-19/06/2023,Corporate Resources,Amznmktplace,19/05/2023,4.09,Other Expenditure,Miscellaneous and Specialty Retail Stores,GPC
18/05/2023-19/06/2023,Corporate Resources,Amznmktplace,21/05/2023,28.6,Other Expenditure,Miscellaneous and Specialty Retail Stores,GPC
18/05/2023-19/06/2023,Corporate Resources,Amznmktplace,21/05/2023,8.18,Other Expenditure,Miscellaneous and Specialty Retail Stores,GPC
18/05/2023-19/06/2023,Corporate Resources,Amznmktplace,22/05/2023,10.48,Other Expenditure,Miscellaneous and Specialty Retail Stores,GPC
18/05/2023-19/06/2023,Corporate Resources,Amznmktplace,22/05/2023,28.6,Other Expenditure,Miscellaneous and Specialty Retail Stores,GPC
18/05/2023-19/06/2023,Corporate Resources,Amznmktplace,23/05/2023,22.99,Other Expenditure,Miscellaneous and Specialty Retail Stores,GPC
18/05/2023-19/06/2023,Corporate Resources,Amznmktplace,28/05/2023,132,Other Expenditure,Miscellaneous and Specialty Retail Stores,GPC
18/05/2023-19/06/2023,Corporate Resources,Amznmktplace,30/05/2023,45.59,Other Expenditure,Miscellaneous and Specialty Retail Stores,GPC
18/05/2023-19/06/2023,Corporate Resources,Amznmktplace,30/05/2023,4.97,Other Expenditure,Miscellaneous and Specialty Retail Stores,GPC
18/05/2023-19/06/2023,Corporate Resources,Amznmktplace,11/06/2023,8.85,Other Expenditure,Miscellaneous and Specialty Retail Stores,GPC
18/05/2023-19/06/2023,Corporate Resources,Amznmktplace,23/05/2023,63.98,VPE - Equipment (Furniture/ IT,Miscellaneous and Specialty Retail Stores,GPC
18/05/2023-19/06/2023,Corporate Resources,Asda Stores 4477,10/06/2023,5.8,Materials,Grocery Stores and Supermarkets,GPC
18/05/2023-19/06/2023,Corporate Resources,Asda Stores 4477,17/05/2023,6.29,Other Services ,Grocery Stores and Supermarkets,GPC
18/05/2023-19/06/2023,Corporate Resources,B & Q 1012,15/06/2023,17.14,Materials,Home Supply Warehouse Stores,GPC
18/05/2023-19/06/2023,Corporate Resources,B & Q 1052,16/04/2023,94.78,Materials,Home Supply Warehouse Stores,GPC
18/05/2023-19/06/2023,Corporate Resources,B & Q 1052,30/05/2023,59.85,Materials,Home Supply Warehouse Stores,GPC
18/05/2023-19/06/2023,Corporate Resources,B & Q 1052,30/05/2023,92.11,Materials,Home Supply Warehouse Stores,GPC
18/05/2023-19/06/2023,Corporate Resources,B & Q 1052,09/06/2023,22.1,Materials,Home Supply Warehouse Stores,GPC
18/05/2023-19/06/2023,Corporate Resources,Bluetrolley.Com,12/06/2023,300,General Equipment - Purchase &,Metal Service Centers and Offices,GPC
18/05/2023-19/06/2023,Corporate Resources,Bluetrolley.Com,12/06/2023,230.4,General Equipment - Purchase &,Metal Service Centers and Offices,GPC
18/05/2023-19/06/2023,Corporate Resources,Bt Business Bill,19/05/2023,80.3,R&M Buildings ,Telecommunication Services,GPC
18/05/2023-19/06/2023,Corporate Resources,Bt Business Bill,19/05/2023,119.94,R&M Buildings ,Telecommunication Services,GPC
18/05/2023-19/06/2023,Corporate Resources,C Adamson,01/06/2023,1985,Training Expenses ,"Organizations, Charitable and Social Service",GPC
18/05/2023-19/06/2023,Corporate Resources,C C Heritage Services,02/06/2023,9,Other Expenditure,Government Services,GPC
18/05/2023-19/06/2023,Corporate Resources,Campaign For Learning,14/06/2023,70,Training Expenses ,Professional Services,GPC
18/05/2023-19/06/2023,Corporate Resources,Ce Cook And Sons,15/06/2023,22.9,Materials,Grocery Stores and Supermarkets,GPC
18/05/2023-19/06/2023,Corporate Resources,Charge.Prezi.Com,01/06/2023,153.88,"Advertising, Publicity & Marke","Computers, Computer Peripheral Equipment, Software",GPC
18/05/2023-19/06/2023,Corporate Resources,Charnwood Lock And Key Lt,25/05/2023,187.34,Materials,Hardware Stores,GPC
18/05/2023-19/06/2023,Corporate Resources,Clicksend.Com Recharge,22/05/2023,10,IT Software Licenses/Subscript,Computer Software Stores,GPC
18/05/2023-19/06/2023,Corporate Resources,Coaching Tools Company,23/05/2023,24.09,Training Expenses ,Digital Goods - Large Digital Goods Merchant,GPC
18/05/2023-19/06/2023,Corporate Resources,Co-Op Group 070412,05/06/2023,10.3,Materials,Grocery Stores and Supermarkets,GPC
18/05/2023-19/06/2023,Corporate Resources,Co-Op Late Shop,14/06/2023,10.25,Materials,Grocery Stores and Supermarkets,GPC
18/05/2023-19/06/2023,Corporate Resources,Dvla Vehicle Tax,24/05/2023,322.5,Road Licenses,Tax Payments,GPC
18/05/2023-19/06/2023,Corporate Resources,East Midlands Rail,16/06/2023,53,Training Expenses ,Passenger Railways,GPC
18/05/2023-19/06/2023,Corporate Resources,Eastwoods Sstn,07/06/2023,12.83,Vehicle & Plant Repairs & Main,Service Stations,GPC
18/05/2023-19/06/2023,Corporate Resources,Eb *local Authority Sa,22/05/2023,100,Training Expenses ,Other Business Services,GPC
18/05/2023-19/06/2023,Corporate Resources,Eb *local Authority Sa,22/05/2023,50,Training Expenses ,Other Business Services,GPC
18/05/2023-19/06/2023,Corporate Resources,Eb *local Authority Sa,23/05/2023,50,Training Expenses ,Other Business Services,GPC
18/05/2023-19/06/2023,Corporate Resources,Ebay O*21-10078-01211,21/05/2023,24.16,General Equipment - Purchase &,Department Stores,GPC
18/05/2023-19/06/2023,Corporate Resources,Eteach UK Limited,16/06/2023,598.8,Recruitment ,"Employment Agencies, Temporary Help Services",GPC
18/05/2023-19/06/2023,Corporate Resources,Expo* National Letsrec,25/05/2023,179.17,Training Expenses ,Other Business Services,GPC
18/05/2023-19/06/2023,Corporate Resources,Facebk *ecmnbrbcj2,05/06/2023,165.83,"Advertising, Publicity & Marke",Advertising Services,GPC
18/05/2023-19/06/2023,Corporate Resources,Facebk *tcqa6pk842,10/06/2023,25,"Advertising, Publicity & Marke",Advertising Services,GPC
18/05/2023-19/06/2023,Corporate Resources,Facebk Taxdjnxl52,22/05/2023,495,"Advertising, Publicity & Marke",Advertising Services,GPC
18/05/2023-19/06/2023,Corporate Resources,Facebk Wzqcxnfl52,31/05/2023,212.41,"Advertising, Publicity & Marke",Advertising Services,GPC
18/05/2023-19/06/2023,Corporate Resources,Find A Will,18/05/2023,1.5,Consultants & Specialists,Professional Services,GPC
18/05/2023-19/06/2023,Corporate Resources,Find A Will,22/05/2023,1.5,Consultants & Specialists,Professional Services,GPC
18/05/2023-19/06/2023,Corporate Resources,Find A Will,25/05/2023,4.5,Consultants & Specialists,Professional Services,GPC
18/05/2023-19/06/2023,Corporate Resources,Find A Will,02/06/2023,1.5,Consultants & Specialists,Professional Services,GPC
18/05/2023-19/06/2023,Corporate Resources,Find A Will,14/06/2023,1.5,Consultants & Specialists,Professional Services,GPC
18/05/2023-19/06/2023,Corporate Resources,Foreign Exchange Fee,31/05/2023,1.67,"Advertising, Publicity & Marke",,GPC
18/05/2023-19/06/2023,Corporate Resources,Foreign Exchange Fee,02/06/2023,4.23,"Advertising, Publicity & Marke",,GPC
18/05/2023-19/06/2023,Corporate Resources,Foreign Exchange Fee,08/06/2023,34.44,Subscriptions,,GPC
18/05/2023-19/06/2023,Corporate Resources,Foreign Exchange Fee,24/05/2023,0.66,Training Expenses ,,GPC
18/05/2023-19/06/2023,Corporate Resources,Gen Register Office,27/04/2023,-7.5,Other Expenditure,Government Services,GPC
18/05/2023-19/06/2023,Corporate Resources,Gen Register Office,24/05/2023,14,Other Expenditure,Government Services,GPC
18/05/2023-19/06/2023,Corporate Resources,Gen Register Office,24/05/2023,14,Other Expenditure,Government Services,GPC
18/05/2023-19/06/2023,Corporate Resources,Gen Register Office,07/06/2023,11,Other Expenditure,Government Services,GPC
18/05/2023-19/06/2023,Corporate Resources,Gen Register Office,09/06/2023,14,Other Expenditure,Government Services,GPC
18/05/2023-19/06/2023,Corporate Resources,Gen Register Office,09/06/2023,14,Other Expenditure,Government Services,GPC
18/05/2023-19/06/2023,Corporate Resources,George Walker Limited,07/06/2023,34.2,R&M Buildings ,Lumber & Building Materials Stores,GPC
18/05/2023-19/06/2023,Corporate Resources,George Walker Limited,17/06/2023,45.6,R&M Buildings ,Lumber & Building Materials Stores,GPC
18/05/2023-19/06/2023,Corporate Resources,Google Ads2388045597,01/06/2023,31.01,"Advertising, Publicity & Marke",Advertising Services,GPC
18/05/2023-19/06/2023,Corporate Resources,Google Ads3070599614,21/05/2023,500,"Advertising, Publicity & Marke",Advertising Services,GPC
18/05/2023-19/06/2023,Corporate Resources,Google Ads3070599614,29/05/2023,500,"Advertising, Publicity & Marke",Advertising Services,GPC
18/05/2023-19/06/2023,Corporate Resources,Google Ads3070599614,01/06/2023,153.21,"Advertising, Publicity & Marke",Advertising Services,GPC
18/05/2023-19/06/2023,Corporate Resources,Google Ads3070599614,09/06/2023,500,"Advertising, Publicity & Marke",Advertising Services,GPC
18/05/2023-19/06/2023,Corporate Resources,Google Ads5260245764,18/05/2023,500,"Advertising, Publicity & Marke",Advertising Services,GPC
18/05/2023-19/06/2023,Corporate Resources,Google Ads5260245764,01/06/2023,430.23,"Advertising, Publicity & Marke",Advertising Services,GPC
18/05/2023-19/06/2023,Corporate Resources,Google Ads5260245764,12/06/2023,500,"Advertising, Publicity & Marke",Advertising Services,GPC
18/05/2023-19/06/2023,Corporate Resources,Govnet Events,23/05/2023,345,Training Expenses ,"Organizations, Membership",GPC
18/05/2023-19/06/2023,Corporate Resources,H&bbc Internet,19/05/2023,23,IT Software Licenses/Subscript,Government Services,GPC
18/05/2023-19/06/2023,Corporate Resources,Halfords 0560,30/05/2023,17.59,Materials,Bicycle Shops-Sales and Service,GPC
18/05/2023-19/06/2023,Corporate Resources,Halfords 0560,15/06/2023,2.39,Materials,Bicycle Shops-Sales and Service,GPC
18/05/2023-19/06/2023,Corporate Resources,Himan And Company,05/06/2023,47.6,General Equipment - Purchase &,Other Business Services,GPC
18/05/2023-19/06/2023,Corporate Resources,Home Bargains,09/06/2023,7.37,Materials,Hardware Stores,GPC
18/05/2023-19/06/2023,Corporate Resources,Hoo*hootsuite Inc,30/05/2023,60.85,"Advertising, Publicity & Marke",Other Business Services,GPC
18/05/2023-19/06/2023,Corporate Resources,Hsd Online,06/06/2023,64.95,Materials,"General Contractors, Residential and Commercial",GPC
18/05/2023-19/06/2023,Corporate Resources,Https://Www.Oscars.Co.,06/06/2023,41.67,Materials,Pet Shops-Pet Food and Supplies,GPC
18/05/2023-19/06/2023,Corporate Resources,Https://Www.Oscars.Co.,06/06/2023,41.67,Materials,Pet Shops-Pet Food and Supplies,GPC
18/05/2023-19/06/2023,Corporate Resources,Https://Www.Oscars.Co.,06/06/2023,41.67,Provisions Purchases,Pet Shops-Pet Food and Supplies,GPC
18/05/2023-19/06/2023,Corporate Resources,Ilx Group Plc,07/06/2023,994.4,General Equipment - Purchase &,Other Business Services,GPC
18/05/2023-19/06/2023,Corporate Resources,Lcc Beacon Hill Cafe,15/06/2023,0.01,Other Expenditure,Government Services,GPC
18/05/2023-19/06/2023,Corporate Resources,Lcc Beacon Hill Cafe,16/06/2023,0.01,Other Expenditure,Government Services,GPC
18/05/2023-19/06/2023,Corporate Resources,Lcc Catering Services,14/06/2023,5.58,Other Expenditure,Government Services,GPC
18/05/2023-19/06/2023,Corporate Resources,Legal Training Consult,07/06/2023,192,Training Expenses ,"Theatrical Producers, Tic",GPC
18/05/2023-19/06/2023,Corporate Resources,Leic City Council,02/06/2023,12.5,Other Expenditure,Government Services,GPC
18/05/2023-19/06/2023,Corporate Resources,Leicestershire County Cou,26/05/2023,11,Other Expenditure,Government Services,GPC
18/05/2023-19/06/2023,Corporate Resources,Leicestershire County Cou,02/06/2023,11,Other Expenditure,Government Services,GPC
18/05/2023-19/06/2023,Corporate Resources,Leicestershire County Cou,15/06/2023,11,Other Expenditure,Government Services,GPC
18/05/2023-19/06/2023,Corporate Resources,Leicestershire County Cou,15/06/2023,11,Other Expenditure,Government Services,GPC
18/05/2023-19/06/2023,Corporate Resources,Linkedin Ads 9098230724,01/06/2023,12.4,"Advertising, Publicity & Marke",Advertising Services,GPC
18/05/2023-19/06/2023,Corporate Resources,Linkedin Ads 9105424224,03/06/2023,21.72,"Advertising, Publicity & Marke",Advertising Services,GPC
18/05/2023-19/06/2023,Corporate Resources,Linkedin Ads 9120405294,08/06/2023,125.26,"Advertising, Publicity & Marke",Advertising Services,GPC
18/05/2023-19/06/2023,Corporate Resources,Linkedin Ads 9129693904,11/06/2023,123.17,"Advertising, Publicity & Marke",Advertising Services,GPC
18/05/2023-19/06/2023,Corporate Resources,Linkedin Ads 9135996494,13/06/2023,55.63,"Advertising, Publicity & Marke",Advertising Services,GPC
18/05/2023-19/06/2023,Corporate Resources,Linkedin Ads 9139194964,14/06/2023,135.67,"Advertising, Publicity & Marke",Advertising Services,GPC
18/05/2023-19/06/2023,Corporate Resources,Linkedin Ads 9151418634,17/06/2023,126.43,"Advertising, Publicity & Marke",Advertising Services,GPC
18/05/2023-19/06/2023,Corporate Resources,Linkedin Ads 9153833644,18/06/2023,100.39,"Advertising, Publicity & Marke",Advertising Services,GPC
18/05/2023-19/06/2023,Corporate Resources,Linkedin Ads*115906194,07/06/2023,55.97,"Advertising, Publicity & Marke",Advertising Services,GPC
18/05/2023-19/06/2023,Corporate Resources,Linkedin Ads*348110216,31/05/2023,12.19,"Advertising, Publicity & Marke",Advertising Services,GPC
18/05/2023-19/06/2023,Corporate Resources,Linkedin Job 9049464294,17/05/2023,504.04,Recruitment ,Advertising Services,GPC
18/05/2023-19/06/2023,Corporate Resources,Linkedin Job*099482384,01/06/2023,497.02,Recruitment ,Advertising Services,GPC
18/05/2023-19/06/2023,Corporate Resources,Linkedin Job*149407874,16/06/2023,476.24,Recruitment ,Advertising Services,GPC
18/05/2023-19/06/2023,Corporate Resources,Lyreco UK Limited,23/05/2023,14.23,Stationery,"Office, School Supply, and Stationery Stores",GPC
18/05/2023-19/06/2023,Corporate Resources,M M Leggett Vet. Surge,24/05/2023,99.99,,Veterinary Services,GPC
18/05/2023-19/06/2023,Corporate Resources,M M Leggett Vet. Surge,24/05/2023,99.99,,Veterinary Services,GPC
18/05/2023-19/06/2023,Corporate Resources,Mbl Seminars,19/05/2023,135,Training Expenses ,Other Schools and Educational Services,GPC
18/05/2023-19/06/2023,Corporate Resources,Mbl Seminars,19/05/2023,135,Training Expenses ,Other Schools and Educational Services,GPC
18/05/2023-19/06/2023,Corporate Resources,Merlin Archery Limited,06/06/2023,177.59,General Equipment - Purchase &,Sporting Goods Stores,GPC
18/05/2023-19/06/2023,Corporate Resources,Mhfa England Cic Ltd,06/06/2023,140,Training Expenses ,"Organizations, Charitable and Social Service",GPC
18/05/2023-19/06/2023,Corporate Resources,Morgans Locksmiths,05/06/2023,60.3,General Equipment - Purchase &,Other Business Services,GPC
18/05/2023-19/06/2023,Corporate Resources,Paypal *abakhan,18/05/2023,15.94,Materials,"Fabric, Needlework, Piece Goods, and Sewing Stores",GPC
18/05/2023-19/06/2023,Corporate Resources,Post Office Counter,17/05/2023,2.25,Stationery,Postal Services - Government Only,GPC
18/05/2023-19/06/2023,Corporate Resources,Poundland Ltd - 1589,06/06/2023,23.1,Materials,Discount Stores,GPC
18/05/2023-19/06/2023,Corporate Resources,Premier Inn,23/05/2023,127.07,Subsistance & Conference,Premier Inn,GPC
18/05/2023-19/06/2023,Corporate Resources,Prime Video *ba7no90w5,17/06/2023,3.49,Materials,Record Shops,GPC
18/05/2023-19/06/2023,Corporate Resources,Prime Video Channels,24/05/2023,4.99,Other Expenditure,Direct Marketing Continuity Subscription Merchants,GPC
18/05/2023-19/06/2023,Corporate Resources,Prime Video Channels,26/05/2023,-4.99,Other Expenditure,Direct Marketing Continuity Subscription Merchants,GPC
18/05/2023-19/06/2023,Corporate Resources,Projector Lamps,25/05/2023,105.64,Materials,Electronic Sales,GPC
18/05/2023-19/06/2023,Corporate Resources,Projector Lamps,25/05/2023,105.64,Materials,Electronic Sales,GPC
18/05/2023-19/06/2023,Corporate Resources,Projector Lamps,25/05/2023,105.64,Materials,Electronic Sales,GPC
18/05/2023-19/06/2023,Corporate Resources,Projektory Lampy,30/05/2023,-80.68,R&M Buildings ,Electrical Parts and Equipment,GPC
18/05/2023-19/06/2023,Corporate Resources,Rs Components,17/05/2023,60.85,Other Services ,Electrical Parts and Equipment,GPC
18/05/2023-19/06/2023,Corporate Resources,Sccssurvey.Co.Uk,25/05/2023,171.6,General Equipment - Purchase &,Other Business Services,GPC
18/05/2023-19/06/2023,Corporate Resources,Screwfix Dir Ltd,14/06/2023,44.16,Protective Clothing & Uniforms,Lumber & Building Materials Stores,GPC
18/05/2023-19/06/2023,Corporate Resources,Screwfix Dir Ltd,15/06/2023,44.16,Protective Clothing & Uniforms,Lumber & Building Materials Stores,GPC
18/05/2023-19/06/2023,Corporate Resources,Screwfix Dir Ltd,17/05/2023,29.76,R&M Buildings ,Lumber & Building Materials Stores,GPC
18/05/2023-19/06/2023,Corporate Resources,Screwfix Dir Ltd,22/05/2023,41.98,R&M Buildings ,Lumber & Building Materials Stores,GPC
18/05/2023-19/06/2023,Corporate Resources,Screwfix Dir Ltd,30/05/2023,177.21,R&M Buildings ,Lumber & Building Materials Stores,GPC
